Workbook

Sheet Settings (hidden)
A1: Version Number | B1: Lock Workbooks: | C1: BETA
A2: 9.42 | B2: Yes | C2: No
A3: =CONCATENATE(A2," H | © 2022") -> 9.42 H | © 2022
A5: View Options | B5: 1 | C5: 1
A6: Input View | C6: Show Periods
A7: Print View | C7: Show Dates
A9: Summary Chart Data | C9: 1 | D9: 2 | E9: 3 | F9: 4 | G9: 5 | H9: 6 | I9: 7 | J9: 8 | K9: 9 | L9: 10 | N9: Amortizing Rate Structure | R9: Loan Costs Amortization
A10: Net Operating Income | C10: ='Sources & Uses'!D11 -> 0 | D10: ='Sources & Uses'!E11 -> 942827.8475 | E10: ='Sources & Uses'!F11 -> 1048455.058 | F10: ='Sources & Uses'!G11 -> 1090117.509 | G10: ='Sources & Uses'!H11 -> 1186085.847 | H10: ='Sources & Uses'!I11 -> 1225206.48 | I10: ='Sources & Uses'!J11 -> 1251030.074 | J10: ='Sources & Uses'!K11 -> 1288561.343 | K10: ='Sources & Uses'!L11 -> 1327219.059 | L10: ='Sources & Uses'!M11 -> 1367036.568 | N10: Year | O10: Step | P10: Rate | R10: Year | S10: Start | T10: End | U10: I/O | V10: Amortizing | W10: Total
A11: Debt Serivce | C11: =IF('Cash Flows'!F113=0,NA(),'Cash Flows'!F113) ->  | D11: =IF('Cash Flows'!G113=0,NA(),'Cash Flows'!G113) -> 673207.0279 | E11: =IF('Cash Flows'!H113=0,NA(),'Cash Flows'!H113) -> 673207.0279 | F11: =IF('Cash Flows'!I113=0,NA(),'Cash Flows'!I113) -> 673207.0279 | G11: =IF('Cash Flows'!J113=0,NA(),'Cash Flows'!J113) -> 673207.0279 | H11: =IF('Cash Flows'!K113=0,NA(),'Cash Flows'!K113) -> 673207.0279 | I11: =IF('Cash Flows'!L113=0,NA(),'Cash Flows'!L113) -> 673207.0279 | J11: =IF('Cash Flows'!M113=0,NA(),'Cash Flows'!M113) -> 673207.0279 | K11: =IF('Cash Flows'!N113=0,NA(),'Cash Flows'!N113) -> 673207.0279 | L11: =IF('Cash Flows'!O113=0,NA(),'Cash Flows'!O113) -> 673207.0279 | N11: 1 | O11: 0 | P11: =Loan_Amor_Rate+O11 -> 0.06 | R11: 1 | S11: 1 | T11: 12 | U11: =IF($R11>Hold,0,IF(Loan_IO_Term<$S11,0,IF(Loan_IO_Term>=$T11,(Loan_IO_Fee*Loan_Amount*12)/Loan_IO_Term,(Loan_IO_Term-S11+1)*((Loan_IO_Fee*Loan_Amount)/Loan_IO_Term)))) -> 0 | V11: =IF(OR(R11>Hold,Loan_IO_Term>=T11),0,IF(T11-Loan_IO_Term<12,((Loan_Amount_Amortizing*Loan_Amor_Fee)/Loan_Amor_Term)*(T11-Loan_IO_Term),IF(T11<=SUM(Loan_IO_Term,Loan_Amor_Term),(Loan_Amount_Amortizing*Loan_Amor_Fee*12)/Loan_Amor_Term,IF(AND(SUM(Loan_IO_Term,Loan_Amor_Term)>=S11,SUM(Loan_IO_Term,Loan_Amor_Term)<T11),((Loan_Amount_Amortizing*Loan_Amor_Fee)/Loan_Amor_Term)*(SUM(Loan_IO_Term,Loan_Amor_Term)-S11+1),0)))) -> 0 | W11: =SUM(U11:V11) -> 0
A12: Cash Flow After Taxes | C12: ='Return Detail'!F83 -> 168257.3103 | D12: ='Return Detail'!G83 -> 131670.1292 | E12: ='Return Detail'!H83 -> 197276.0845 | F12: ='Return Detail'!I83 -> 221134.8168 | G12: ='Return Detail'!J83 -> 280112.2957 | H12: ='Return Detail'!K83 -> 301948.1401 | I12: ='Return Detail'!L83 -> 314939.0999 | J12: ='Return Detail'!M83 -> 335326.3856 | K12: ='Return Detail'!N83 -> 356219.632 | L12: ='Return Detail'!O83 -> 930935.007 | N12: 2 | O12: =IF(MOD(N11,Loan_Amor_RateGrowthPeriod)=0,Loan_Amor_RateGrowth,0) -> 0 | P12: =P11+O12 -> 0.06 | R12: 2 | S12: =T11+1 -> 13 | T12: =T11+12 -> 24 | U12: 0 | V12: 0 | W12: =SUM(U12:V12) -> 0
A13: Return on Asset | C13: =IF(C$9>Hold,NA(),'Return Detail'!F9/Acquisition_Unlevered) -> 0 | D13: =IF(D$9>Hold,NA(),'Return Detail'!G9/Acquisition_Unlevered) -> 0.07557045855 | E13: =IF(E$9>Hold,NA(),'Return Detail'!H9/Acquisition_Unlevered) -> 0.08403679392 | F13: =IF(F$9>Hold,NA(),'Return Detail'!I9/Acquisition_Unlevered) -> 0.0873761634 | G13: =IF(G$9>Hold,NA(),'Return Detail'!J9/Acquisition_Unlevered) -> 0.09506831131 | H13: =IF(H$9>Hold,NA(),'Return Detail'!K9/Acquisition_Unlevered) -> 0.09820394656 | I13: =IF(I$9>Hold,NA(),'Return Detail'!L9/Acquisition_Unlevered) -> 0.1002737845 | J13: =IF(J$9>Hold,NA(),'Return Detail'!M9/Acquisition_Unlevered) -> 0.1032820274 | K13: =IF(K$9>Hold,NA(),'Return Detail'!N9/Acquisition_Unlevered) -> 0.1063805584 | L13: =IF(L$9>Hold,NA(),'Return Detail'!O9/Acquisition_Unlevered) -> 0.1539737489 | N13: 3 | O13: 0 | P13: 0.06 | R13: 3 | S13: =T12+1 -> 25 | T13: =T12+12 -> 36 | U13: 0 | V13: 0 | W13: 0
A14: Before Tax Cash on Cash | C14: =IF(C$9>Hold,NA(),'Return Detail'!F80/Equity_Amount) -> 0 | D14: =IF(D$9>Hold,NA(),'Return Detail'!G80/Equity_Amount) -> 0.08644364515 | E14: =IF(E$9>Hold,NA(),'Return Detail'!H80/Equity_Amount) -> 0.1203089866 | F14: =IF(F$9>Hold,NA(),'Return Detail'!I80/Equity_Amount) -> 0.1336664646 | G14: =IF(G$9>Hold,NA(),'Return Detail'!J80/Equity_Amount) -> 0.1644350562 | H14: =IF(H$9>Hold,NA(),'Return Detail'!K80/Equity_Amount) -> 0.1769775972 | I14: =IF(I$9>Hold,NA(),'Return Detail'!L80/Equity_Amount) -> 0.1852569489 | J14: =IF(J$9>Hold,NA(),'Return Detail'!M80/Equity_Amount) -> 0.1972899206 | K14: =IF(K$9>Hold,NA(),'Return Detail'!N80/Equity_Amount) -> 0.2096840447 | L14: =IF(L$9>Hold,NA(),'Return Detail'!O80/Equity_Amount) -> 0.4000568066 | N14: 4 | O14: 0 | P14: 0.06 | R14: 4 | S14: =T13+1 -> 37 | T14: =T13+12 -> 48 | U14: 0 | V14: 0 | W14: 0
A15: After Tax Cash on Cash | C15: =IF(C$9>Hold,NA(),'Return Detail'!F83/Equity_Amount) -> 0.05394529714 | D15: =IF(D$9>Hold,NA(),'Return Detail'!G83/Equity_Amount) -> 0.04221501123 | E15: =IF(E$9>Hold,NA(),'Return Detail'!H83/Equity_Amount) -> 0.06324906165 | F15: =IF(F$9>Hold,NA(),'Return Detail'!I83/Equity_Amount) -> 0.07089845534 | G15: =IF(G$9>Hold,NA(),'Return Detail'!J83/Equity_Amount) -> 0.08980733732 | H15: =IF(H$9>Hold,NA(),'Return Detail'!K83/Equity_Amount) -> 0.09680816904 | I15: =IF(I$9>Hold,NA(),'Return Detail'!L83/Equity_Amount) -> 0.1009732254 | J15: =IF(J$9>Hold,NA(),'Return Detail'!M83/Equity_Amount) -> 0.107509632 | K15: =IF(K$9>Hold,NA(),'Return Detail'!N83/Equity_Amount) -> 0.1142082556 | L15: =IF(L$9>Hold,NA(),'Return Detail'!O83/Equity_Amount) -> 0.2984688479 | N15: 5 | O15: 0 | P15: 0.06 | R15: 5 | S15: 49 | T15: 60 | U15: 0 | V15: 0 | W15: 0
A16: Pre Tax | C16: =IF(C9>Hold,NA(),'Cash Flows'!F116) -> - | D16: =IF(D9>Hold,NA(),'Cash Flows'!G116) -> 0.5204129789 | E16: =IF(E9>Hold,NA(),'Cash Flows'!H116) -> 0.5318250246 | F16: =IF(F9>Hold,NA(),'Cash Flows'!I116) -> 0.5446662247 | G16: =IF(G9>Hold,NA(),'Cash Flows'!J116) -> 0.5440793027 | H16: =IF(H9>Hold,NA(),'Cash Flows'!K116) -> 0.5381237153 | I16: =IF(I9>Hold,NA(),'Cash Flows'!L116) -> 0.535866922 | J16: =IF(J9>Hold,NA(),'Cash Flows'!M116) -> 0.5310899785 | K16: =IF(K9>Hold,NA(),'Cash Flows'!N116) -> 0.5264520837 | L16: =IF(L9>Hold,NA(),'Cash Flows'!O116) -> 0.5219492659 | N16: 6 | O16: =IF(MOD(N15,Loan_Amor_RateGrowthPeriod)=0,Loan_Amor_RateGrowth,0) -> 0.01 | P16: =P15+O16 -> 0.07 | R16: 6 | S16: =T15+1 -> 61 | T16: =T15+12 -> 72 | U16: 0 | V16: 0 | W16: 0
A17: After Tax | C17: =IF(C9>Hold,NA(),IFERROR(SUM('Cash Flows'!F152,'Cash Flows'!F113,'Cash Flows'!F76,'Cash Flows'!F35)/SUM('Cash Flows'!F23:F25,'Cash Flows'!F13*'Cash Flows'!F16),"-")) -> 0.06972759995 | D17: =IF(D9>Hold,NA(),IFERROR(SUM('Cash Flows'!G152,'Cash Flows'!G113,'Cash Flows'!G76,'Cash Flows'!G35)/SUM('Cash Flows'!G23:G25,'Cash Flows'!G13*'Cash Flows'!G16),"-")) -> 0.5175690677 | E17: =IF(E9>Hold,NA(),IFERROR(SUM('Cash Flows'!H152,'Cash Flows'!H113,'Cash Flows'!H76,'Cash Flows'!H35)/SUM('Cash Flows'!H23:H25,'Cash Flows'!H13*'Cash Flows'!H16),"-")) -> 0.5254261299 | F17: =IF(F9>Hold,NA(),IFERROR(SUM('Cash Flows'!I152,'Cash Flows'!I113,'Cash Flows'!I76,'Cash Flows'!I35)/SUM('Cash Flows'!I23:I25,'Cash Flows'!I13*'Cash Flows'!I16),"-")) -> 0.5362336168 | G17: =IF(G9>Hold,NA(),IFERROR(SUM('Cash Flows'!J152,'Cash Flows'!J113,'Cash Flows'!J76,'Cash Flows'!J35)/SUM('Cash Flows'!J23:J25,'Cash Flows'!J13*'Cash Flows'!J16),"-")) -> 0.5327706681 | H17: =IF(H9>Hold,NA(),IFERROR(SUM('Cash Flows'!K152,'Cash Flows'!K113,'Cash Flows'!K76,'Cash Flows'!K35)/SUM('Cash Flows'!K23:K25,'Cash Flows'!K13*'Cash Flows'!K16),"-")) -> 0.5260764404 | I17: =IF(I9>Hold,NA(),IFERROR(SUM('Cash Flows'!L152,'Cash Flows'!L113,'Cash Flows'!L76,'Cash Flows'!L35)/SUM('Cash Flows'!L23:L25,'Cash Flows'!L13*'Cash Flows'!L16),"-")) -> 0.5232895541 | J17: =IF(J9>Hold,NA(),IFERROR(SUM('Cash Flows'!M152,'Cash Flows'!M113,'Cash Flows'!M76,'Cash Flows'!M35)/SUM('Cash Flows'!M23:M25,'Cash Flows'!M13*'Cash Flows'!M16),"-")) -> 0.5178290825 | K17: =IF(K9>Hold,NA(),IFERROR(SUM('Cash Flows'!N152,'Cash Flows'!N113,'Cash Flows'!N76,'Cash Flows'!N35)/SUM('Cash Flows'!N23:N25,'Cash Flows'!N13*'Cash Flows'!N16),"-")) -> 0.5125084796 | L17: =IF(L9>Hold,NA(),IFERROR(SUM('Cash Flows'!O152,'Cash Flows'!O113,'Cash Flows'!O76,'Cash Flows'!O35)/SUM('Cash Flows'!O23:O25,'Cash Flows'!O13*'Cash Flows'!O16),"-")) -> 0.5072088664 | N17: 7 | O17: 0 | P17: 0.07 | R17: 7 | S17: 73 | T17: 84 | U17: 0 | V17: 0 | W17: 0
A18: Debt Service Coverage Ratio | C18: =C10/C11 ->  | D18: 1.400502087 | E18: 1.557403614 | F18: 1.61929015 | G18: 1.761844125 | H18: 1.819954976 | I18: 1.858314044 | J18: 1.91406401 | K18: 1.971487231 | L18: 2.03063324 | N18: 8 | O18: 0 | P18: 0.07 | R18: 8 | S18: 85 | T18: 96 | U18: 0 | V18: 0 | W18: 0
A19: LTV | C19: ='Cash Flows'!F115 -> 0.02257826713 | D19: ='Cash Flows'!G115 -> 0.04494660175 | E19: ='Cash Flows'!H115 -> 0.04322881849 | F19: ='Cash Flows'!I115 -> 0.03973109711 | G19: ='Cash Flows'!J115 -> 0.03846248996 | H19: ='Cash Flows'!K115 -> 0.03766855243 | I19: ='Cash Flows'!L115 -> 0.03657139972 | J19: ='Cash Flows'!M115 -> 0.03550618989 | K19: ='Cash Flows'!N115 -> 0.0344720054 | L19: ='Cash Flows'!O115 -> 0.03346796883 | N19: 9 | O19: 0 | P19: 0.07 | R19: 9 | S19: 97 | T19: 108 | U19: 0 | V19: 0 | W19: 0
A20: Debt Yield | C20: =IF(C9>Hold,NA(),'Cash Flows'!F117) -> -0.4396945681 | D20: =IF(D9>Hold,NA(),'Cash Flows'!G117) -> 1.400502087 | E20: =IF(E9>Hold,NA(),'Cash Flows'!H117) -> 1.557403614 | F20: =IF(F9>Hold,NA(),'Cash Flows'!I117) -> 1.61929015 | G20: =IF(G9>Hold,NA(),'Cash Flows'!J117) -> 1.761844125 | H20: =IF(H9>Hold,NA(),'Cash Flows'!K117) -> 1.819954976 | I20: =IF(I9>Hold,NA(),'Cash Flows'!L117) -> 1.858314044 | J20: =IF(J9>Hold,NA(),'Cash Flows'!M117) -> 1.91406401 | K20: =IF(K9>Hold,NA(),'Cash Flows'!N117) -> 1.971487231 | L20: =IF(L9>Hold,NA(),'Cash Flows'!O117) -> 2.03063324 | N20: 10 | O20: 0 | P20: 0.07 | R20: 10 | S20: 109 | T20: 120 | U20: 0 | V20: 0 | W20: 0
A23: Project Level | B23: Unleveraged | C23: ='Return Detail'!$C$17 -> 0.116858544
B24: Leveraged | C24: ='Return Detail'!$C$42 -> 0.2220086534
B25: Leveraged After Tax | C25: ='Return Detail'!$C$91 -> 0.1824690735
A26: Individual Level | B26: JV Partner | C26: =#REF! -> 
B27: Developer | C27: =#REF! -> 
A30: I/O Loan Sizing
A31: Loan IO Term | B31: =Loan_IO_Term -> 12
A32: At Maturity | B32: =Loan_IO_AtMaturity -> Amortize Loan Balance
A33: ="NOI in Year "&Loan_IO_Year -> NOI in Year 2 | B33: =HLOOKUP(Loan_IO_Year,$C$9:$L$10,2,FALSE) -> 942827.8475
A34: DSCR | B34: =Loan_IO_DSCR -> 1.25
A35: Max DS based on NOI | B35: =B33/B34 -> 754262.278
A36: Max Loan Based on DSCR | B36: =PV(Loan_Amor_Rate/12,Loan_Amortization,-B35/12) -> 10483718.58
A37: ="Value based on "&Loan_IO_Cap*100&"% Cap" -> Value based on 7% Cap | B37: =IFERROR((B33/Loan_IO_Cap),0) -> 13468969.25
A38: ="Max Loan based on "&Loan_IO_LTV*100&"% LTV" -> Max Loan based on 75% LTV | B38: =B37*Loan_IO_LTV -> 10101726.94
A39: Amortizing Loan Amount (Rounded) | B39: =ROUND(MIN(B36,B38),-3) -> 10102000
B49: Project Level IRR Sensitivity
E50: 1 | F50: 2 | G50: 3 | H50: 4 | I50: 5 | J50: 6 | K50: 7 | L50: 8 | M50: 9 | N50: 10 | O50: 11
B51: Net Operating Income | E51: ='Cash Flows'!F$89 -> -133713.75 | F51: ='Cash Flows'!G$89 -> 942827.8475 | G51: ='Cash Flows'!H$89 -> 1048455.058 | H51: ='Cash Flows'!I$89 -> 1090117.509 | I51: ='Cash Flows'!J$89 -> 1186085.847 | J51: ='Cash Flows'!K$89 -> 1225206.48 | K51: ='Cash Flows'!L$89 -> 1251030.074 | L51: ='Cash Flows'!M$89 -> 1288561.343 | M51: ='Cash Flows'!N$89 -> 1327219.059 | N51: ='Cash Flows'!O$89 -> 1367036.568 | O51: ='Cash Flows'!P$89 -> 1408047.563
B52: Refinance Proceeds | E52: ='Return Detail'!F26 -> 0 | F52: ='Return Detail'!G26 -> 0 | G52: ='Return Detail'!H26 -> 0 | H52: ='Return Detail'!I26 -> 0 | I52: ='Return Detail'!J26 -> 0 | J52: ='Return Detail'!K26 -> 0 | K52: ='Return Detail'!L26 -> 0 | L52: ='Return Detail'!M26 -> 0 | M52: ='Return Detail'!N26 -> 0 | N52: ='Return Detail'!O26 -> 0 | O52: ='Return Detail'!P26 -> 0
B53: Less: Debt Service | E53: =SUM(IF('Loan Amortization'!$B$51:$B$170>((E$50-1)*12),IF('Loan Amortization'!$B$51:$B$170<=((E$50*12)),'Loan Amortization'!$I$51:$I$170,0),0))*-1 -> -304105.9856 | F53: =SUM(IF('Loan Amortization'!$B$51:$B$170>((F$50-1)*12),IF('Loan Amortization'!$B$51:$B$170<=((F$50*12)),'Loan Amortization'!$I$51:$I$170,0),0))*-1 -> -673207.0279 | G53: =SUM(IF('Loan Amortization'!$B$51:$B$170>((G$50-1)*12),IF('Loan Amortization'!$B$51:$B$170<=((G$50*12)),'Loan Amortization'!$I$51:$I$170,0),0))*-1 -> -673207.0279 | H53: =SUM(IF('Loan Amortization'!$B$51:$B$170>((H$50-1)*12),IF('Loan Amortization'!$B$51:$B$170<=((H$50*12)),'Loan Amortization'!$I$51:$I$170,0),0))*-1 -> -673207.0279 | I53: =SUM(IF('Loan Amortization'!$B$51:$B$170>((I$50-1)*12),IF('Loan Amortization'!$B$51:$B$170<=((I$50*12)),'Loan Amortization'!$I$51:$I$170,0),0))*-1 -> -673207.0279 | J53: =SUM(IF('Loan Amortization'!$B$51:$B$170>((J$50-1)*12),IF('Loan Amortization'!$B$51:$B$170<=((J$50*12)),'Loan Amortization'!$I$51:$I$170,0),0))*-1 -> -673207.0279 | K53: =SUM(IF('Loan Amortization'!$B$51:$B$170>((K$50-1)*12),IF('Loan Amortization'!$B$51:$B$170<=((K$50*12)),'Loan Amortization'!$I$51:$I$170,0),0))*-1 -> -673207.0279 | L53: =SUM(IF('Loan Amortization'!$B$51:$B$170>((L$50-1)*12),IF('Loan Amortization'!$B$51:$B$170<=((L$50*12)),'Loan Amortization'!$I$51:$I$170,0),0))*-1 -> -673207.0279 | M53: =SUM(IF('Loan Amortization'!$B$51:$B$170>((M$50-1)*12),IF('Loan Amortization'!$B$51:$B$170<=((M$50*12)),'Loan Amortization'!$I$51:$I$170,0),0))*-1 -> -673207.0279 | N53: =SUM(IF('Loan Amortization'!$B$51:$B$170>((N$50-1)*12),IF('Loan Amortization'!$B$51:$B$170<=((N$50*12)),'Loan Amortization'!$I$51:$I$170,0),0))*-1 -> -673207.0279 | O53: =SUM(IF('Loan Amortization'!$B$51:$B$170>((O$50-1)*12),IF('Loan Amortization'!$B$51:$B$170<=((O$50*12)),'Loan Amortization'!$I$51:$I$170,0),0))*-1 -> 0
B54: Add: Interest Paid from Budget | E54: ='Cash Flows'!F$112*-1 -> 304105.9856 | F54: ='Cash Flows'!G$112*-1 -> 0 | G54: ='Cash Flows'!H$112*-1 -> 0 | H54: ='Cash Flows'!I$112*-1 -> 0 | I54: ='Cash Flows'!J$112*-1 -> 0 | J54: ='Cash Flows'!K$112*-1 -> 0 | K54: ='Cash Flows'!L$112*-1 -> 0 | L54: ='Cash Flows'!M$112*-1 -> 0 | M54: ='Cash Flows'!N$112*-1 -> 0 | N54: ='Cash Flows'!O$112*-1 -> 0 | O54: ='Cash Flows'!P$112*-1 -> 0
B55: Cash Flow After Debt Service | E55: =SUM(E51:E54) -> -133713.75 | F55: 269620.8196 | G55: 375248.0304 | H55: 416910.4815 | I55: 512878.8188 | J55: 551999.4526 | K55: 577823.0465 | L55: 615354.3154 | M55: 654012.0315 | N55: 693829.5401 | O55: 1408047.563
B56: Less: Mortgage Origination Fee | E56: ='Return Detail'!F28 -> 0 | F56: ='Return Detail'!G28 -> 0 | G56: ='Return Detail'!H28 -> 0 | H56: ='Return Detail'!I28 -> 0 | I56: ='Return Detail'!J28 -> 0 | J56: ='Return Detail'!K28 -> 0 | K56: ='Return Detail'!L28 -> 0 | L56: ='Return Detail'!M28 -> 0 | M56: ='Return Detail'!N28 -> 0 | N56: ='Return Detail'!O28 -> 0 | O56: ='Return Detail'!P28 -> 0
B57: Less: Capital Expenses | E57: =-'Cash Flows'!F$135 -> 0 | F57: =-'Cash Flows'!G$135 -> 0 | G57: =-'Cash Flows'!H$135 -> 0 | H57: =-'Cash Flows'!I$135 -> 0 | I57: =-'Cash Flows'!J$135 -> 0 | J57: =-'Cash Flows'!K$135 -> 0 | K57: =-'Cash Flows'!L$135 -> 0 | L57: =-'Cash Flows'!M$135 -> 0 | M57: =-'Cash Flows'!N$135 -> 0 | N57: =-'Cash Flows'!O$135 -> 0 | O57: =-'Cash Flows'!P$135 -> 0
B58: Non-Regular Income | E58: ='Cash Flows'!F138 -> 0 | F58: ='Cash Flows'!G138 -> 0 | G58: ='Cash Flows'!H138 -> 0 | H58: ='Cash Flows'!I138 -> 0 | I58: ='Cash Flows'!J138 -> 0 | J58: ='Cash Flows'!K138 -> 0 | K58: ='Cash Flows'!L138 -> 0 | L58: ='Cash Flows'!M138 -> 0 | M58: ='Cash Flows'!N138 -> 0 | N58: ='Cash Flows'!O138 -> 0 | O58: ='Cash Flows'!P138 -> 0
B59: Distributable Cash Flow | E59: =SUM(E55:E58) -> -133713.75 | F59: =SUM(F55:F58) -> 269620.8196 | G59: 375248.0304 | H59: 416910.4815 | I59: 512878.8188 | J59: 551999.4526 | K59: 577823.0465 | L59: 615354.3154 | M59: 654012.0315 | N59: 693829.5401 | O59: 1408047.563
B61: Reversion Cash Flow | E61: =IF(Disposition="Cap Rate",'Cash Flows'!G81/Exit_Rate,FV(Exit_Rate,E50,0,-Acquisition_Gross)) -> 14246140.68 | F61: =IF(Disposition="Cap Rate",'Cash Flows'!H81/Exit_Rate,FV(Exit_Rate,F50,0,-Acquisition_Gross)) -> 15778415.98 | G61: =IF(Disposition="Cap Rate",'Cash Flows'!I81/Exit_Rate,FV(Exit_Rate,G50,0,-Acquisition_Gross)) -> 16397608.45 | H61: =IF(Disposition="Cap Rate",'Cash Flows'!J81/Exit_Rate,FV(Exit_Rate,H50,0,-Acquisition_Gross)) -> 17793319.73 | I61: =IF(Disposition="Cap Rate",'Cash Flows'!K81/Exit_Rate,FV(Exit_Rate,I50,0,-Acquisition_Gross)) -> 18377663.01 | J61: =IF(Disposition="Cap Rate",'Cash Flows'!L81/Exit_Rate,FV(Exit_Rate,J50,0,-Acquisition_Gross)) -> 18772812.89 | K61: =IF(Disposition="Cap Rate",'Cash Flows'!M81/Exit_Rate,FV(Exit_Rate,K50,0,-Acquisition_Gross)) -> 19336002.52 | L61: =IF(Disposition="Cap Rate",'Cash Flows'!N81/Exit_Rate,FV(Exit_Rate,L50,0,-Acquisition_Gross)) -> 19916095.11 | M61: =IF(Disposition="Cap Rate",'Cash Flows'!O81/Exit_Rate,FV(Exit_Rate,M50,0,-Acquisition_Gross)) -> 20513591.34 | N61: =IF(Disposition="Cap Rate",'Cash Flows'!P81/Exit_Rate,FV(Exit_Rate,N50,0,-Acquisition_Gross)) -> 21128997.63
B62: Less: Cost of Sale | E62: =E61*Sale_Cost*-1 -> -569845.6271 | F62: -631136.639 | G62: -655904.3378 | H62: -711732.7891 | I62: -735106.5204 | J62: -750912.5158 | K62: -773440.1007 | L62: -796643.8042 | M62: -820543.6537 | N62: -845159.9051
B63: Less: Mortgage Exit Fee | E63: =E64*Loan_Exit_Fee -> 0 | F63: 0 | G63: 0 | H63: 0 | I63: 0 | J63: 0 | K63: 0 | L63: 0 | M63: 0 | N63: 0
B64: Less: Mortgage Balance | E64: =-VLOOKUP(E50*12,Amortization_Schedule_Monthly,8,FALSE) -> -46785.53625 | F64: -56100.58566 | G64: -56100.58566 | H64: -56100.58566 | I64: -56100.58566 | J64: -56100.58566 | K64: -56100.58566 | L64: -56100.58566 | M64: -56100.58566 | N64: -56100.58566
B65: Return of Reserve Funds | E65: ='Cash Flows'!F186 -> 1286.25 | F65: ='Cash Flows'!G186 -> 55688.25 | G65: ='Cash Flows'!H186 -> 111722.31 | H65: ='Cash Flows'!I186 -> 169437.3918 | I65: ='Cash Flows'!J186 -> 228883.9261 | J65: ='Cash Flows'!K186 -> 290113.8563 | K65: ='Cash Flows'!L186 -> 353180.6845 | L65: ='Cash Flows'!M186 -> 418139.5176 | M65: ='Cash Flows'!N186 -> 485047.1156 | N65: ='Cash Flows'!O186 -> 553961.9416
B66: Reversion Balance | D66: =-Equity_Amount -> -3119035.75 | E66: =SUM(E61:E65) -> 13630795.76 | F66: =SUM(F61:F65) -> 15146867 | G66: 15797325.83 | H66: 17194923.74 | I66: 17815339.83 | J66: 18255913.65 | K66: 18859642.52 | L66: 19481490.23 | M66: 20121994.22 | N66: 20781699.08
Q68: IRR | V68: NPV | AA68: Average Cash on Cash
C69: Periods | D69: 0 | E69: 1 | F69: 2 | G69: 3 | H69: 4 | I69: 5 | J69: 6 | K69: 7 | L69: 8 | M69: 9 | N69: 10 | Q69: Period | R69: Project Level | S69: Developer | T69: JV Partner | V69: Period | W69: ="Project Level at "&ROUND(Equity_Rate*100,1)&"%" -> Project Level at 8% | X69: ="Developer at "&ROUND(Equity_Rate*100,1)&"%" -> Developer at 8% | Y69: ="JV Partner at "&ROUND(Equity_Rate_JV*100,1)&"%" -> JV Partner at 0% | AA69: Period | AB69: Project Level | AC69: Developer | AD69: JV Partner
C70: 1 | D70: =-Equity_Amount -> -3119035.75 | E70: =IF($C70<E$50,0,IF($C70=E$50,SUM(E$59,E$66),E$59)) -> 13497082.01 | F70: 0 | G70: 0 | H70: 0 | I70: 0 | J70: 0 | K70: 0 | L70: 0 | M70: 0 | N70: 0 | Q70: 1 | R70: =IFERROR(IRR(D70:N70),"-") -> 3.327325204 | S70: =O107 -> 0 | T70: =O106 -> 0 | V70: 1 | W70: =SUM(D70,NPV(Equity_Rate,E70:N70)) -> 9378262.412 | X70: =P107 -> 0 | Y70: =P106 -> 0 | AA70: 1 | AB70: =IFERROR((SUM(E70:N70)/AA70)/Equity_Amount,NA()) -> 4.327325204 | AC70: =Q107 -> 0 | AD70: =Q106 -> 0
C71: 2 | D71: -3119035.75 | E71: -133713.75 | F71: 15416487.82 | G71: 0 | H71: 0 | I71: 0 | J71: 0 | K71: 0 | L71: 0 | M71: 0 | N71: 0 | Q71: 2 | R71: 1.201888758 | S71: =O133 -> 0 | T71: =O132 -> 0 | V71: 2 | W71: 9974308.703 | X71: =P133 -> 0 | Y71: =P132 -> 0 | AA71: 2 | AB71: 2.44991967 | AC71: =Q133 -> 0 | AD71: =Q132 -> 0
C72: 3 | D72: -3119035.75 | E72: -133713.75 | F72: 269620.8196 | G72: 16172573.86 | H72: 0 | I72: 0 | J72: 0 | K72: 0 | L72: 0 | M72: 0 | N72: 0 | Q72: 3 | R72: 0.7331625823 | S72: =O160 -> 0 | T72: =O159 -> 0 | V72: 3 | W72: 9826622.17 | X72: =P160 -> 0 | Y72: =P159 -> 0 | AA72: 3 | AB72: 1.742897724 | AC72: =Q160 -> 0 | AD72: =Q159 -> 0
C73: 4 | D73: -3119035.75 | E73: -133713.75 | F73: 269620.8196 | G73: 375248.0304 | H73: 17611834.23 | I73: 0 | J73: 0 | K73: 0 | L73: 0 | M73: 0 | N73: 0 | Q73: 4 | R73: 0.5573092518 | S73: =O186 -> 0 | T73: =O185 -> 0 | V73: 4 | W73: 10231419.52 | X73: =P186 -> 0 | Y73: =P185 -> 0 | AA73: 4 | AB73: 1.452611542 | AC73: =Q186 -> 0 | AD73: =Q185 -> 0
C74: 5 | D74: -3119035.75 | E74: -133713.75 | F74: 269620.8196 | G74: 375248.0304 | H74: 416910.4815 | I74: 18328218.65 | J74: 0 | K74: 0 | L74: 0 | M74: 0 | N74: 0 | Q74: 5 | R74: 0.4494116314 | S74: =O212 -> 0 | T74: =O211 -> 0 | V74: 5 | W74: 10066514.9 | X74: =P212 -> 0 | Y74: =P211 -> 0 | AA74: 5 | AB74: 1.234758802 | AC74: =Q212 -> 0 | AD74: =Q211 -> 0
C75: 6 | D75: -3119035.75 | E75: -133713.75 | F75: 269620.8196 | G75: 375248.0304 | H75: 416910.4815 | I75: 512878.8188 | J75: 18807913.1 | K75: 0 | L75: 0 | M75: 0 | N75: 0 | Q75: 6 | R75: 0.3806923735 | S75: =O238 -> 0 | T75: =O237 -> 0 | V75: 6 | W75: 9793869.54 | X75: =P238 -> 0 | Y75: =P237 -> 0 | AA75: 6 | AB75: 1.082004137 | AC75: =Q238 -> 0 | AD75: =Q237 -> 0
C76: 7 | D76: -3119035.75 | E76: -133713.75 | F76: 269620.8196 | G76: 375248.0304 | H76: 416910.4815 | I76: 512878.8188 | J76: 551999.4526 | K76: 19437465.56 | L76: 0 | M76: 0 | N76: 0 | Q76: 7 | R76: 0.3357556415 | S76: =O264 -> 0 | T76: =O263 -> 0 | V76: 7 | W76: 9631121.712 | X76: =P264 -> 0 | Y76: =P263 -> 0 | AA76: 7 | AB76: 0.9815492046 | AC76: =Q264 -> 0 | AD76: =Q263 -> 0
C77: 8 | D77: -3119035.75 | E77: -133713.75 | F77: 269620.8196 | G77: 375248.0304 | H77: 416910.4815 | I77: 512878.8188 | J77: 551999.4526 | K77: 577823.0465 | L77: 20096844.55 | M77: 0 | N77: 0 | Q77: 8 | R77: 0.3035767485 | S77: =O290 -> 0 | T77: =O289 -> 0 | V77: 8 | W77: 9484401.232 | X77: =P290 -> 0 | Y77: =P289 -> 0 | AA77: 8 | AB77: 0.9084382669 | AC77: =Q290 -> 0 | AD77: =Q289 -> 0
C78: 9 | D78: -3119035.75 | E78: -133713.75 | F78: 269620.8196 | G78: 375248.0304 | H78: 416910.4815 | I78: 512878.8188 | J78: 551999.4526 | K78: 577823.0465 | L78: 615354.3154 | M78: 20776006.25 | N78: 0 | Q78: 9 | R78: 0.279514208 | S78: =O316 -> 0 | T78: =O315 -> 0 | V78: 9 | W78: 9352333.903 | X78: =P316 -> 0 | Y78: =P315 -> 0 | AA78: 9 | AB78: 0.8536159315 | AC78: =Q316 -> 0 | AD78: =Q315 -> 0
C79: 10 | D79: -3119035.75 | E79: -133713.75 | F79: 269620.8196 | G79: 375248.0304 | H79: 416910.4815 | I79: 512878.8188 | J79: 551999.4526 | K79: 577823.0465 | L79: 615354.3154 | M79: 654012.0315 | N79: 21475528.62 | Q79: 10 | R79: 0.2609282207 | S79: =O342 -> 0 | T79: =O341 -> 0 | V79: 10 | W79: 9233652.088 | X79: =P342 -> 0 | Y79: =P341 -> 0 | AA79: 10 | AB79: 0.8116502629 | AC79: =Q342 -> 0 | AD79: =Q341 -> 0

Sheet Intro

Sheet Assumptions
B2: =$D$7 -> New Hospitality Project
B4: Project Assumptions
B6: Property Information | F6: Acquisition Assumptions
B7: Property Name | D7: New Hospitality Project | F7: Project Type | H7: New Construction
B8: Location | F8: =IF(Project_Type="Acquisition","Acquisition Cost","Land Cost") -> Land Cost | H8: 914312
B9: Property Use | D9: Hospitality | F9: =IF(Project_Type="Acquisition","Other Costs","Hard Costs") -> Hard Costs | H9: 9541703
B10: Rooms | D10: 84 | F10: =IF(Project_Type="Acquisition","-","Soft Costs") -> Soft Costs | H10: 1885128
B11: Analysis Begin | D11: 2022-01-01 | F11: =IF(Project_Type="Acquisition","Acquisition Cost","Development Cost") -> Development Cost | H11: =SUM(H8:H10) -> 12341143
B12: Annual Inflation Rate | D12: 0.03 | F12: Due Diligence/Closing Costs | G12: 0 | H12: =Acquisition_Gross*G12 -> 0
B13: Unit of Measure | D13: Square Feet | F13: Reserve Account Initial Deposits
B14: Currency | D14: Dollar | F14: Operating Reserve Account | H14: =135000 -> 135000
F15: Cap Ex Reserve Account | H15: 0
F16: Replacement Reserves Account | H16: 0
F17: =IF(Project_Type="Acquisition","Unleveraged Acquisition Cost","Unleveraged Development Cost") -> Unleveraged Development Cost | H17: =SUM(H11:H16) -> 12476143
F18: Initial Loan Origination Fee | G18: =IF(Loan_IO_Approval="Yes",Loan_IO_Fee,Loan_Amor_Fee) -> 0 | H18: =Loan_Fee_Rate*Loan_Amount -> 0
F19: =IF(Project_Type="Acquisition","Leveraged Acquisition Cost","Leveraged Development Cost") -> Leveraged Development Cost | H19: =SUM(H17:H18) -> 12476143
B22: Initial Capital Structure | F22: Tax Assumptions
B23: =IF(Project_Type="Acquisition","Debt: (LTV)","Debt: (LTC)") -> Debt: (LTC) | C23: 0.75 | D23: =C23*Acquisition_Unlevered -> 9357107.25 | F23: Ordinary Income Marginal Tax Rate | H23: 0.35
B24: Equity | D24: =Acquisition_Levered-Loan_Amount -> 3119035.75 | F24: Capital Gains Tax Rate | H24: 0.2
B25: Total | D25: =SUM(D23:D24) -> 12476143 | F25: Cost Recovery Recapture Tax Rate | H25: 0.25
B27: Desired Equity Return (Discount Rate) | D27: 0.08 | F27: Cost Recovery Assumptions
B28: Developer | C28: 0.1019575 | D28: =Equity_Amount*Contribution_Developer -> 318009.0875 | F28: Assessed Value of Land | H28: =1-Assessed_Value_Prop -> 0.86
B29: Equity Investor | C29: =1-C28 -> 0.8980425 | D29: =Equity_Amount*Contribution_JV -> 2801026.663 | F29: Assessed Value of Improvements | H29: 0.14
B30: Total Equity | C30: =SUM(C28:C29) -> 1 | D30: =SUM(D28:D29) -> 3119035.75 | F30: Cost Recovery Method | H30: Straight Line
B31: =IF(Contribution_Developer<1,"Please refer to the Equity Investor Returns worksheet for waterfall information.","") -> Please refer to the Equity Investor Returns worksheet for waterfall information. | F31: Useful Life | H31: 39
F32: C.R. 1st & Last Years (11.5 months) | H32: =ROUND(H33/12*11.5,5) -> 0.02457
F33: C.R. Interim Years (12 Months) | H33: =ROUND(1/Useful_Life,5) -> 0.02564
B36: Debt Structure Assumptions
B37: =IF(Project_Type="New Construction","Development Loan","Interest Only Loan") -> Development Loan | F37: Amortizing Debt Service
B38: Will there be an Interest Only Period? | D38: Yes | F38: Amortization Type | H38: American
B39: Loan Amount | D39: =Loan_Amount -> 9357107.25 | F39: Amortizing Loan Amount | H39: =IF(OR(Loan_IO_Approval="no",Loan_IO_AtMaturity="Amortize Loan Balance"),Loan_Amount,Settings!$B$39) -> 9357107.25
B40: Interest Expense | D40: Included in Budget | F40: Term (Months) | H40: 360
B41: Interest Amount in Budget | D41: 318760 | F41: Amortization (Months) | H41: 360
B42: Term (Months) | D42: 12 | F42: Start Rate | H42: 0.06
B43: Rate | D43: 0.06 | F43: Origination Fee | H43: 0
B44: Origination Fee | D44: 0 | F44: Initial Interest Only Period | G44: No | H44: 0
B45: Funding Status | D45: Fund Up | F45: Exit Fee | H45: 0
B46: Fully Funded by Month: | D46: 12 | F46: Rate Type | H46: Fixed
B47: Action at Maturity: | D47: Amortize Loan Balance | F47: Grow Rate | G47: 0.01 | H47: 5
B48: Minimum DSCR | D48: 1.25
B49: Maximum LTV | D49: 0.75
B50: Based on Cap Rate of | C50: =Exit_Rate -> 0.07 | D50: =ROUND(Loan_IO_Term/12,0)+1 -> 2
B51: =IFERROR(IF(Settings!B38=MIN(Settings!B36,Settings!B38),"Loan is limited based on LTV.","Loan is limited based on DSCR."),"") -> Loan is limited based on LTV.
B53: Sale Assumptions
B54: Year of Sale | D54: 10
B55: Terminal Value Calculation Method | D55: Cap Rate | F55: www.realpropmetrics.com
B56: Cost of Sale | D56: 0.04 | F56: ="Version: "&Version -> Version: 9.42 H | © 2022
B57: =IF(Disposition="Cap Rate","Exit Cap Rate",IF(Disposition="Annual Growth Rate","Annual Growth Rate","Sale Price")) -> Exit Cap Rate | D57: 0.07 | F57: =TODAY() -> 2022-02-23

Sheet Cash Flows
B5: =Project_Name&" - Schedule of Cash Flows" -> New Hospitality Project - Schedule of Cash Flows
B7: Period | F7: 1 | G7: 2 | H7: 3 | I7: 4 | J7: 5 | K7: 6 | L7: 7 | M7: 8 | N7: 9 | O7: 10 | P7: 11
F8: =RPMDateSpan(F7,1) -> Jan 22 - Dec 22 | G8: =RPMDateSpan(G7,1) -> Jan 23 - Dec 23 | H8: Jan 24 - Dec 24 | I8: Jan 25 - Dec 25 | J8: Jan 26 - Dec 26 | K8: Jan 27 - Dec 27 | L8: Jan 28 - Dec 28 | M8: Jan 29 - Dec 29 | N8: Jan 30 - Dec 30 | O8: Jan 31 - Dec 31 | P8: Jan 32 - Dec 32
B10: Operating Statistics | E10: Inflation | G10: 0 | H10: 0.03 | I10: =H10 -> 0.03 | J10: 0.03 | K10: 0.03 | L10: 0.03 | M10: 0.03 | N10: 0.03 | O10: 0.03 | P10: 0.03
B12: Rooms | F12: =Size_Total -> 84 | G12: 84 | H12: 84 | I12: 84 | J12: 84 | K12: 84 | L12: 84 | M12: 84 | N12: 84 | O12: 84 | P12: 84
B13: Room Nights | F13: =Size_Total*365 -> 30660 | G13: 30660 | H13: 30660 | I13: 30660 | J13: 30660 | K13: 30660 | L13: 30660 | M13: 30660 | N13: 30660 | O13: 30660 | P13: 30660
B14: Occupancy | F14: 0 | G14: 0.615 | H14: 0.652 | I14: 0.672 | J14: 0.692 | K14: 0.692 | L14: =K14 -> 0.692 | M14: 0.692 | N14: 0.692 | O14: 0.692 | P14: 0.692
B15: Occupied Rooms | F15: =F13*F14 -> 0 | G15: =G13*G14 -> 18855.9 | H15: 19990.32 | I15: 20603.52 | J15: 21216.72 | K15: 21216.72 | L15: 21216.72 | M15: 21216.72 | N15: 21216.72 | O15: 21216.72 | P15: 21216.72
B16: Average Daily Rate (ADR) | F16: 141.25 | G16: 145.49 | H16: 149.85 | I16: 154.35 | J16: 158.98 | K16: =+J16*1.03 -> 163.7494 | L16: =IFERROR(RPMGrow($E$16,K16,L$10),"Please Enable Macros") -> 168.661882 | M16: =IFERROR(RPMGrow($E$16,L16,M$10),"Please Enable Macros") -> 173.721757 | N16: =IFERROR(RPMGrow($E$16,M16,N$10),"Please Enable Macros") -> 178.933454 | O16: =IFERROR(RPMGrow($E$16,N16,O$10),"Please Enable Macros") -> 184.301505 | P16: =IFERROR(RPMGrow($E$16,O16,P$10),"Please Enable Macros") -> 189.830545
B17: RevPAR | F17: =F16*F14 -> 0 | G17: =G16*G14 -> 89.47635 | H17: 97.7022 | I17: 103.7232 | J17: 110.01416 | K17: 113.3145848 | L17: 116.7140223 | M17: 120.2154558 | N17: 123.8219502 | O17: 127.5366415 | P17: 131.3627371
B19: Income
B21: Revenues
B22: Rooms | F22: =F16*F15 -> 0 | G22: =G16*G15 -> 2743344.891 | H22: 2995549.452 | I22: 3180153.312 | J22: 3373034.146 | K22: 3474225.17 | L22: 3578451.925 | M22: 3685805.876 | N22: 3796380.992 | O22: 3910273.427 | P22: 4027581.521
B23: Telecommunications | F23: 0 | G23: 1000 | H23: =IFERROR(RPMGrow($E23,G23,H$10),"Please Enable Macros") -> 1030 | I23: =IFERROR(RPMGrow($E23,H23,I$10),"Please Enable Macros") -> 1060.9 | J23: =IFERROR(RPMGrow($E23,I23,J$10),"Please Enable Macros") -> 1092.727 | K23: =IFERROR(RPMGrow($E23,J23,K$10),"Please Enable Macros") -> 1125.50881 | L23: =IFERROR(RPMGrow($E23,K23,L$10),"Please Enable Macros") -> 1159.274074 | M23: =IFERROR(RPMGrow($E23,L23,M$10),"Please Enable Macros") -> 1194.052297 | N23: =IFERROR(RPMGrow($E23,M23,N$10),"Please Enable Macros") -> 1229.873865 | O23: =IFERROR(RPMGrow($E23,N23,O$10),"Please Enable Macros") -> 1266.770081 | P23: =IFERROR(RPMGrow($E23,O23,P$10),"Please Enable Macros") -> 1304.773184
B24: Food & Beverage | F24: 0 | G24: 0 | H24: =IFERROR(RPMGrow($E24,G24,H$10),"Please Enable Macros") -> 0 | I24: =IFERROR(RPMGrow($E24,H24,I$10),"Please Enable Macros") -> 0 | J24: =IFERROR(RPMGrow($E24,I24,J$10),"Please Enable Macros") -> 0 | K24: =IFERROR(RPMGrow($E24,J24,K$10),"Please Enable Macros") -> 0 | L24: =IFERROR(RPMGrow($E24,K24,L$10),"Please Enable Macros") -> 0 | M24: =IFERROR(RPMGrow($E24,L24,M$10),"Please Enable Macros") -> 0 | N24: =IFERROR(RPMGrow($E24,M24,N$10),"Please Enable Macros") -> 0 | O24: =IFERROR(RPMGrow($E24,N24,O$10),"Please Enable Macros") -> 0 | P24: =IFERROR(RPMGrow($E24,O24,P$10),"Please Enable Macros") -> 0
B25: Other Income | F25: 0 | G25: 55715 | H25: =IFERROR(RPMGrow($E25,G25,H$10),"Please Enable Macros") -> 57386.45 | I25: =IFERROR(RPMGrow($E25,H25,I$10),"Please Enable Macros") -> 59108.0435 | J25: =IFERROR(RPMGrow($E25,I25,J$10),"Please Enable Macros") -> 60881.28481 | K25: =IFERROR(RPMGrow($E25,J25,K$10),"Please Enable Macros") -> 62707.72335 | L25: =IFERROR(RPMGrow($E25,K25,L$10),"Please Enable Macros") -> 64588.95505 | M25: =IFERROR(RPMGrow($E25,L25,M$10),"Please Enable Macros") -> 66526.6237 | N25: =IFERROR(RPMGrow($E25,M25,N$10),"Please Enable Macros") -> 68522.42241 | O25: =IFERROR(RPMGrow($E25,N25,O$10),"Please Enable Macros") -> 70578.09508 | P25: =IFERROR(RPMGrow($E25,O25,P$10),"Please Enable Macros") -> 72695.43794
B26: Total Revenues | F26: =SUM(F22:F25) -> 0 | G26: =SUM(G22:G25) -> 2800059.891 | H26: 3053965.902 | I26: 3240322.255 | J26: 3435008.157 | K26: 3538058.402 | L26: 3644200.154 | M26: 3753526.552 | N26: 3866133.288 | O26: 3982118.292 | P26: 4101581.732
B27: $ Per Room | F27: =IFERROR(F26/Size_Total,"-") -> 0 | G27: 33334.04632 | H27: 36356.73693 | I27: 38575.26495 | J27: 40892.95425 | K27: 42119.74288 | L27: 43383.33517 | M27: 44684.83991 | N27: 46025.39629 | O27: 47406.17015 | P27: 48828.35395
B28: P.O.R | F28: =IFERROR(F26/F$15,"-") -> - | G28: =IFERROR(G26/G$15,"-") -> 148.4978119 | H28: 152.7722369 | I28: 157.2703235 | J28: 161.9009987 | K28: 166.7580287 | L28: 171.7607695 | M28: 176.9136112 | N28: 182.2210638 | O28: 187.6877431 | P28: 193.3183702
B30: Departmental Expenses
B31: Rooms | F31: 0 | G31: 663090 | H31: =IFERROR(RPMGrow($E31,G31,H$10),"Please Enable Macros") -> 682982.7 | I31: =IFERROR(RPMGrow($E31,H31,I$10),"Please Enable Macros") -> 703472.181 | J31: =IFERROR(RPMGrow($E31,I31,J$10),"Please Enable Macros") -> 724576.3464 | K31: =IFERROR(RPMGrow($E31,J31,K$10),"Please Enable Macros") -> 746313.6368 | L31: =IFERROR(RPMGrow($E31,K31,L$10),"Please Enable Macros") -> 768703.0459 | M31: =IFERROR(RPMGrow($E31,L31,M$10),"Please Enable Macros") -> 791764.1373 | N31: =IFERROR(RPMGrow($E31,M31,N$10),"Please Enable Macros") -> 815517.0614 | O31: =IFERROR(RPMGrow($E31,N31,O$10),"Please Enable Macros") -> 839982.5733 | P31: =IFERROR(RPMGrow($E31,O31,P$10),"Please Enable Macros") -> 865182.0505
B32: Telecommunications | F32: 0 | G32: 8000 | H32: =IFERROR(RPMGrow($E32,G32,H$10),"Please Enable Macros") -> 8240 | I32: =IFERROR(RPMGrow($E32,H32,I$10),"Please Enable Macros") -> 8487.2 | J32: =IFERROR(RPMGrow($E32,I32,J$10),"Please Enable Macros") -> 8741.816 | K32: =IFERROR(RPMGrow($E32,J32,K$10),"Please Enable Macros") -> 9004.07048 | L32: =IFERROR(RPMGrow($E32,K32,L$10),"Please Enable Macros") -> 9274.192594 | M32: =IFERROR(RPMGrow($E32,L32,M$10),"Please Enable Macros") -> 9552.418372 | N32: =IFERROR(RPMGrow($E32,M32,N$10),"Please Enable Macros") -> 9838.990923 | O32: =IFERROR(RPMGrow($E32,N32,O$10),"Please Enable Macros") -> 10134.16065 | P32: =IFERROR(RPMGrow($E32,O32,P$10),"Please Enable Macros") -> 10438.18547
B33: Food & Beverage | F33: 0 | G33: 0 | H33: =IFERROR(RPMGrow($E33,G33,H$10),"Please Enable Macros") -> 0 | I33: =IFERROR(RPMGrow($E33,H33,I$10),"Please Enable Macros") -> 0 | J33: =IFERROR(RPMGrow($E33,I33,J$10),"Please Enable Macros") -> 0 | K33: =IFERROR(RPMGrow($E33,J33,K$10),"Please Enable Macros") -> 0 | L33: =IFERROR(RPMGrow($E33,K33,L$10),"Please Enable Macros") -> 0 | M33: =IFERROR(RPMGrow($E33,L33,M$10),"Please Enable Macros") -> 0 | N33: =IFERROR(RPMGrow($E33,M33,N$10),"Please Enable Macros") -> 0 | O33: =IFERROR(RPMGrow($E33,N33,O$10),"Please Enable Macros") -> 0 | P33: =IFERROR(RPMGrow($E33,O33,P$10),"Please Enable Macros") -> 0
B34: Other Expenses | F34: 0 | G34: 22190 | H34: =IFERROR(RPMGrow($E34,G34,H$10),"Please Enable Macros") -> 22855.7 | I34: =IFERROR(RPMGrow($E34,H34,I$10),"Please Enable Macros") -> 23541.371 | J34: =IFERROR(RPMGrow($E34,I34,J$10),"Please Enable Macros") -> 24247.61213 | K34: =IFERROR(RPMGrow($E34,J34,K$10),"Please Enable Macros") -> 24975.04049 | L34: =IFERROR(RPMGrow($E34,K34,L$10),"Please Enable Macros") -> 25724.29171 | M34: =IFERROR(RPMGrow($E34,L34,M$10),"Please Enable Macros") -> 26496.02046 | N34: =IFERROR(RPMGrow($E34,M34,N$10),"Please Enable Macros") -> 27290.90107 | O34: =IFERROR(RPMGrow($E34,N34,O$10),"Please Enable Macros") -> 28109.62811 | P34: =IFERROR(RPMGrow($E34,O34,P$10),"Please Enable Macros") -> 28952.91695
B35: Total Departmental Expenses | F35: =SUM(F31:F34) -> 0 | G35: =SUM(G31:G34) -> 693280 | H35: 714078.4 | I35: 735500.752 | J35: 757565.7746 | K35: 780292.7478 | L35: 803701.5302 | M35: 827812.5761 | N35: 852646.9534 | O35: 878226.362 | P35: 904573.1529
B36: Ratio | F36: =F35/F26 ->  | G36: =G35/G26 -> 0.247594704 | H36: 0.2338200304 | I36: 0.2269838288 | J36: 0.2205426421 | K36: 0.2205426421 | L36: 0.2205426421 | M36: 0.220542619 | N36: 0.2205425654 | O36: 0.2205425097 | P36: 0.2205425156
B37: $ Per Room | F37: =F35/Size_Total -> 0 | G37: 8253.333333 | H37: 8500.933333 | I37: 8755.961333 | J37: 9018.640173 | K37: 9289.199379 | L37: 9567.87536 | M37: 9854.911621 | N37: 10150.55897 | O37: 10455.07574 | P37: 10768.72801
B38: P.O.R | F38: =F35/F$15 ->  | G38: =G35/G$15 -> 36.76727178 | H38: 35.72120907 | I38: 35.69782018 | J38: 35.70607401 | K38: 36.77725623 | L38: 37.88057392 | M38: 39.01699113 | N38: 40.18750087 | O38: 41.39312589 | P38: 42.63491967
B40: Gross Operating Income | F40: =SUM(F26,-F35) -> 0 | G40: =SUM(G26,-G35) -> 2106779.891 | H40: 2339887.502 | I40: 2504821.503 | J40: 2677442.383 | K40: 2757765.654 | L40: 2840498.624 | M40: 2925713.976 | N40: 3013486.335 | O40: 3103891.93 | P40: 3197008.579
B41: Ratio | F41: =IFERROR(F40/F$26,"-") -> - | G41: =IFERROR(G40/G$26,"-") -> 0.752405296 | H41: 0.7661799696 | I41: 0.7730161712 | J41: 0.7794573579 | K41: 0.7794573579 | L41: 0.7794573579 | M41: 0.779457381 | N41: 0.7794574346 | O41: 0.7794574903 | P41: 0.7794574844
B42: $ Per Room | F42: =IFERROR(F40/Size_Total,"-") -> 0 | G42: 25080.71299 | H42: 27855.8036 | I42: 29819.30361 | J42: 31874.31408 | K42: 32830.5435 | L42: 33815.45981 | M42: 34829.92829 | N42: 35874.83732 | O42: 36951.09441 | P42: 38059.62594
B43: P.O.R. | F43: =IFERROR(F40/F$15,"-") -> - | G43: =IFERROR(G40/G$15,"-") -> 111.7305401 | H43: 117.0510278 | I43: 121.5725033 | J43: 126.1949247 | K43: 129.9807724 | L43: 133.8801956 | M43: 137.89662 | N43: 142.0335629 | O43: 146.2946172 | P43: 150.6834505
B45: Expenses | G45: =Inflation -> 0.03 | H45: =G45 -> 0.03 | I45: =H45 -> 0.03 | J45: 0.03 | K45: 0.03 | L45: 0.03 | M45: 0.03 | N45: 0.03 | O45: 0.03 | P45: 0.03
B47: Undistributed Expenses
B48: Credit card commissions-2.8% | F48: =+F26*0.028 -> 0 | G48: =+G26*0.028 -> 78401.67695 | H48: 85511.04526 | I48: 90729.02315 | J48: 96180.22841 | K48: 99065.63526 | L48: 102037.6043 | M48: 105098.7435 | N48: 108251.7321 | O48: 111499.3122 | P48: 114844.2885
B49: Administrative & General | F49: =222235*0.25 -> 55558.75 | G49: 222235 | H49: =+H26*0.08 -> 244317.2722 | I49: 259225.7804 | J49: 274800.6526 | K49: 283044.6722 | L49: 291536.0123 | M49: =IFERROR(RPMGrow($E49,L49,M$45),"Please Enable Macros") -> 300282.0927 | N49: =IFERROR(RPMGrow($E49,M49,N$45),"Please Enable Macros") -> 309290.5555 | O49: =IFERROR(RPMGrow($E49,N49,O$45),"Please Enable Macros") -> 318569.2722 | P49: =IFERROR(RPMGrow($E49,O49,P$45),"Please Enable Macros") -> 328126.3503
B50: Marketing | F50: =135950*0.5 -> 67975 | G50: 135950 | H50: =+H26*0.05 -> 152698.2951 | I50: 162016.1128 | J50: 171750.4079 | K50: 176902.9201 | L50: 182210.0077 | M50: =IFERROR(RPMGrow($E50,L50,M$45),"Please Enable Macros") -> 187676.3079 | N50: =IFERROR(RPMGrow($E50,M50,N$45),"Please Enable Macros") -> 193306.5972 | O50: =IFERROR(RPMGrow($E50,N50,O$45),"Please Enable Macros") -> 199105.7951 | P50: =IFERROR(RPMGrow($E50,O50,P$45),"Please Enable Macros") -> 205078.9689
B51: Franchise Fee | F51: =+F26*0.075 -> 0 | G51: =+G26*0.075 -> 210004.4918 | H51: 229047.4427 | I51: 243024.1692 | J51: 257625.6118 | K51: 265354.3802 | L51: 273315.0116 | M51: =IFERROR(RPMGrow($E51,L51,M$45),"Please Enable Macros") -> 281514.4619 | N51: =IFERROR(RPMGrow($E51,M51,N$45),"Please Enable Macros") -> 289959.8958 | O51: =IFERROR(RPMGrow($E51,N51,O$45),"Please Enable Macros") -> 298658.6926 | P51: =IFERROR(RPMGrow($E51,O51,P$45),"Please Enable Macros") -> 307618.4534
B52: Repairs & Maintenance | F52: =+F26*0.05 -> 0 | G52: 126720 | H52: =+H26*0.045 -> 137428.4656 | I52: =+I26*0.045 -> 145814.5015 | J52: 154575.3671 | K52: 159212.6281 | L52: 163989.0069 | M52: =IFERROR(RPMGrow($E52,L52,M$45),"Please Enable Macros") -> 168908.6771 | N52: =IFERROR(RPMGrow($E52,M52,N$45),"Please Enable Macros") -> 173975.9375 | O52: =IFERROR(RPMGrow($E52,N52,O$45),"Please Enable Macros") -> 179195.2156 | P52: =IFERROR(RPMGrow($E52,O52,P$45),"Please Enable Macros") -> 184571.0721
B53: Utilities | F53: =+F26*0.034 -> 0 | G53: 93145 | H53: =+H26*0.034 -> 103834.8407 | I53: =+I26*0.033 -> 106930.6344 | J53: =+J26*0.032 -> 109920.261 | K53: =+K26*0.031 -> 109679.8105 | L53: 123902.8052 | M53: =IFERROR(RPMGrow($E53,L53,M$45),"Please Enable Macros") -> 127619.8894 | N53: =IFERROR(RPMGrow($E53,M53,N$45),"Please Enable Macros") -> 131448.4861 | O53: =IFERROR(RPMGrow($E53,N53,O$45),"Please Enable Macros") -> 135391.9407 | P53: =IFERROR(RPMGrow($E53,O53,P$45),"Please Enable Macros") -> 139453.6989
B54: Total Undistributed Expenses | F54: =SUM(F48:F53) -> 123533.75 | G54: =IFERROR(RPMSum(G48:G53),"Please Enable Macros") -> 866456.1688 | H54: =IFERROR(RPMSum(H48:H53),"Please Enable Macros") -> 952837.3614 | I54: =IFERROR(RPMSum(I48:I53),"Please Enable Macros") -> 1007740.221 | J54: =IFERROR(RPMSum(J48:J53),"Please Enable Macros") -> 1064852.529 | K54: =IFERROR(RPMSum(K48:K53),"Please Enable Macros") -> 1093260.046 | L54: =IFERROR(RPMSum(L48:L53),"Please Enable Macros") -> 1136990.448 | M54: =IFERROR(RPMSum(M48:M53),"Please Enable Macros") -> 1171100.173 | N54: =IFERROR(RPMSum(N48:N53),"Please Enable Macros") -> 1206233.204 | O54: =IFERROR(RPMSum(O48:O53),"Please Enable Macros") -> 1242420.228 | P54: =IFERROR(RPMSum(P48:P53),"Please Enable Macros") -> 1279692.832
B55: Ratio | F55: =F54/F$26 ->  | G55: =G54/G$26 -> 0.3094420129 | H55: 0.312 | I55: 0.311 | J55: 0.31 | K55: 0.309 | L55: 0.312 | M55: 0.3119999702 | N55: 0.3119999012 | O55: 0.3119998295 | P55: 0.3119998371
B56: $ Per Room | F56: =F54/Size_Total -> 1470.639881 | G56: 10314.95439 | H56: 11343.30192 | I56: 11996.9074 | J56: 12676.81582 | K56: 13015.00055 | L56: 13535.60057 | M56: 13941.66872 | N56: 14359.9191 | O56: 14790.717 | P56: 15234.43848
B57: P.O.R. | F57: =F54/F$15 ->  | G57: =G54/G$15 -> 45.95146181 | H57: 47.6649379 | I57: 48.91107061 | J57: 50.1893096 | K57: 51.52823086 | L57: 53.58936009 | M57: 55.19704142 | N57: 56.8529539 | O57: 58.55854384 | P57: 60.31530001
B59: Gross Operating Profit | F59: =SUM(F40,-F54) -> -123533.75 | G59: =SUM(G40,-G54) -> 1240323.722 | H59: 1387050.141 | I59: 1497081.282 | J59: 1612589.854 | K59: 1664505.608 | L59: 1703508.176 | M59: 1754613.803 | N59: 1807253.131 | O59: 1861471.702 | P59: 1917315.747
B60: Ratio | F60: =IFERROR(F59/F$26,"-") -> - | G60: =IFERROR(G59/G$26,"-") -> 0.4429632831 | H60: 0.4541799696 | I60: 0.4620161712 | J60: 0.4694573579 | K60: 0.4704573579 | L60: 0.4674573579 | M60: 0.4674574108 | N60: 0.4674575334 | O60: 0.4674576608 | P60: 0.4674576474
B61: $ Per Room | F61: =IFERROR(F59/Size_Total,"-") -> -1470.639881 | G61: 14765.7586 | H61: 16512.50167 | I61: 17822.39621 | J61: 19197.49826 | K61: 19815.54295 | L61: 20279.85924 | M61: 20888.25957 | N61: 21514.91823 | O61: 22160.3774 | P61: 22825.18746
B62: P.O.R. | F62: =IFERROR(F59/F$15,"-") -> - | G62: =IFERROR(G59/G$15,"-") -> 65.77907828 | H62: 69.3860899 | I62: 72.66143271 | J62: 76.0056151 | K62: 78.45254158 | L62: 80.29083552 | M62: 82.69957861 | N62: 85.18060902 | O62: 87.73607334 | P62: 90.36815054
B64: Fixed Expenses
B65: Property Taxes | F65: 10180 | G65: 82691 | H65: 105431 | I65: 161310 | J65: 167827 | K65: =+J65*1.03 -> 172861.81 | L65: =IFERROR(RPMGrow($E65,K65,L$45),"Please Enable Macros") -> 178047.6643 | M65: =IFERROR(RPMGrow($E65,L65,M$45),"Please Enable Macros") -> 183389.0942 | N65: =IFERROR(RPMGrow($E65,M65,N$45),"Please Enable Macros") -> 188890.7671 | O65: =IFERROR(RPMGrow($E65,N65,O$45),"Please Enable Macros") -> 194557.4901 | P65: =IFERROR(RPMGrow($E65,O65,P$45),"Please Enable Macros") -> 200394.2148
B66: Management Fee-3% | F66: =+F26*0.03 -> 0 | G66: =+G26*0.03 -> 84001.79673 | H66: 91618.97706 | I66: 97209.66767 | J66: 103050.2447 | K66: 106141.7521 | L66: 109326.0046 | M66: 112605.7966 | N66: 115983.9987 | O66: 119463.5488 | P66: 123047.452
B67: Administration Fee-1% | F67: =+F26*0.01 -> 0 | G67: =+G26*0.01 -> 28000.59891 | H67: 30539.65902 | I67: 32403.22256 | J67: 34350.08157 | K67: 35380.58402 | L67: 36442.00154 | M67: 37535.26552 | N67: 38661.33288 | O67: 39821.18292 | P67: 41015.81732
B68: Incentive Management Fee-.8% | F68: 0 | G68: =+G26*0.008 -> 22400.47913 | H68: 24431.72722 | I68: 25922.57804 | J68: 27480.06526 | K68: 28304.46722 | L68: 29153.60123 | M68: =IFERROR(RPMGrow($E68,L68,M$45),"Please Enable Macros") -> 30028.20927 | N68: =IFERROR(RPMGrow($E68,M68,N$45),"Please Enable Macros") -> 30929.05555 | O68: =IFERROR(RPMGrow($E68,N68,O$45),"Please Enable Macros") -> 31856.92722 | P68: =IFERROR(RPMGrow($E68,O68,P$45),"Please Enable Macros") -> 32812.63503
B69: Insurance | F69: =+F26*0.01 -> 0 | G69: 26000 | H69: =+H26*0.01 -> 30539.65902 | I69: 32403.22256 | J69: 34350.08157 | K69: 35380.58402 | L69: 36442.00154 | M69: =IFERROR(RPMGrow($E69,L69,M$45),"Please Enable Macros") -> 37535.26159 | N69: =IFERROR(RPMGrow($E69,M69,N$45),"Please Enable Macros") -> 38661.31944 | O69: =IFERROR(RPMGrow($E69,N69,O$45),"Please Enable Macros") -> 39821.15902 | P69: =IFERROR(RPMGrow($E69,O69,P$45),"Please Enable Macros") -> 41015.79379
B70: Miscellaneous | F70: 0 | G70: =IFERROR(RPMGrow($E70,F70,G$45),"Please Enable Macros") -> 0 | H70: =IFERROR(RPMGrow($E70,G70,H$45),"Please Enable Macros") -> 0 | I70: =IFERROR(RPMGrow($E70,H70,I$45),"Please Enable Macros") -> 0 | J70: =IFERROR(RPMGrow($E70,I70,J$45),"Please Enable Macros") -> 0 | K70: =IFERROR(RPMGrow($E70,J70,K$45),"Please Enable Macros") -> 0 | L70: =IFERROR(RPMGrow($E70,K70,L$45),"Please Enable Macros") -> 0 | M70: =IFERROR(RPMGrow($E70,L70,M$45),"Please Enable Macros") -> 0 | N70: =IFERROR(RPMGrow($E70,M70,N$45),"Please Enable Macros") -> 0 | O70: =IFERROR(RPMGrow($E70,N70,O$45),"Please Enable Macros") -> 0 | P70: =IFERROR(RPMGrow($E70,O70,P$45),"Please Enable Macros") -> 0
B71: Total Fixed Expenses | F71: =SUM(F65:F70) -> 10180 | G71: =SUM(G65:G70) -> 243093.8748 | H71: 282561.0223 | I71: 349248.6908 | J71: 367057.4731 | K71: 378069.1973 | L71: 389411.2732 | M71: 401093.6272 | N71: 413126.4736 | O71: 425520.308 | P71: 438285.9129
B72: Ratio | F72: =F71/F$26 ->  | G72: =G71/G$26 -> 0.086817384 | H72: 0.09252265133 | I72: 0.1077820856 | J72: 0.106857817 | K72: 0.106857817 | L72: 0.106857817 | M72: 0.10685781 | N72: 0.1068577938 | O72: 0.1068577769 | P72: 0.1068577787
B73: $ Per Room | F73: =F71/Size_Total -> 121.1904762 | G73: 2893.9747 | H73: 3363.821694 | I73: 4157.72251 | J73: 4369.731823 | K73: 4500.823778 | L73: 4635.848491 | M73: 4774.924133 | N73: 4918.172304 | O73: 5065.717952 | P73: 5217.689439
B74: P.O.R. | F74: =F71/F$15 ->  | G74: =G71/G$15 -> 12.89219156 | H74: 14.1348924 | I74: 16.95092347 | J74: 17.30038729 | K74: 17.81939891 | L74: 18.35398088 | M74: 18.90460105 | N74: 19.47174085 | O74: 20.05589497 | P74: 20.65757162
B76: Total Operating Expenses | F76: =SUM(F54,F71) -> 133713.75 | G76: =SUM(G54,G71) -> 1109550.044 | H76: 1235398.384 | I76: 1356988.912 | J76: 1431910.002 | K76: 1471329.244 | L76: 1526401.721 | M76: 1572193.8 | N76: 1619359.678 | O76: 1667940.536 | P76: 1717978.745
B77: Ratio | F77: =IFERROR(F76/F$26,"-") -> - | G77: =IFERROR(G76/G$26,"-") -> 0.3962593968 | H77: 0.4045226513 | I77: 0.4187820856 | J77: 0.416857817 | K77: 0.415857817 | L77: 0.418857817 | M77: 0.4188577802 | N77: 0.418857695 | O77: 0.4188576064 | P77: 0.4188576157
B78: $ Per Room | F78: =IFERROR(F76/Size_Total,"-") -> 1591.830357 | G78: 13208.92909 | H78: 14707.12362 | I78: 16154.62991 | J78: 17046.54764 | K78: 17515.82433 | L78: 18171.44906 | M78: 18716.59285 | N78: 19278.0914 | O78: 19856.43496 | P78: 20452.12792
B79: P.O.R. | F79: =IFERROR(F76/F$15,"-") -> - | G79: =IFERROR(G76/G$15,"-") -> 58.84365337 | H79: 61.7998303 | I79: 65.86199408 | J79: 67.4896969 | K79: 69.34762977 | L79: 71.94334098 | M79: 74.10164247 | N79: 76.32469475 | O79: 78.61443882 | P79: 80.97287163
B81: NOI Before Reserves | F81: =F40-F76 -> -133713.75 | G81: =G40-G76 -> 997229.8475 | H81: 1104489.118 | I81: 1147832.591 | J81: 1245532.381 | K81: 1286436.411 | L81: 1314096.903 | M81: 1353520.176 | N81: 1394126.657 | O81: 1435951.394 | P81: 1479029.834
B83: Operating Reserves Contributions
B84: Operting Deficit Reserves | F84: 0 | G84: =IFERROR(RPMGrow($E$85,F84,G$45),"Please Enable Macros") -> 0 | H84: =IFERROR(RPMGrow($E$85,G84,H$45),"Please Enable Macros") -> 0 | I84: =IFERROR(RPMGrow($E$85,H84,I$45),"Please Enable Macros") -> 0 | J84: =IFERROR(RPMGrow($E$85,I84,J$45),"Please Enable Macros") -> 0 | K84: =IFERROR(RPMGrow($E$85,J84,K$45),"Please Enable Macros") -> 0 | L84: =IFERROR(RPMGrow($E$85,K84,L$45),"Please Enable Macros") -> 0 | M84: =IFERROR(RPMGrow($E$85,L84,M$45),"Please Enable Macros") -> 0 | N84: =IFERROR(RPMGrow($E$85,M84,N$45),"Please Enable Macros") -> 0 | O84: =IFERROR(RPMGrow($E$85,N84,O$45),"Please Enable Macros") -> 0 | P84: =IFERROR(RPMGrow($E$85,O84,P$45),"Please Enable Macros") -> 0
B85: Cap Ex Reserve | F85: 0 | G85: =IFERROR(RPMGrow($E$85,F85,G$45),"Please Enable Macros") -> 0 | H85: =IFERROR(RPMGrow($E$85,G85,H$45),"Please Enable Macros") -> 0 | I85: =IFERROR(RPMGrow($E$85,H85,I$45),"Please Enable Macros") -> 0 | J85: =IFERROR(RPMGrow($E$85,I85,J$45),"Please Enable Macros") -> 0 | K85: =IFERROR(RPMGrow($E$85,J85,K$45),"Please Enable Macros") -> 0 | L85: =IFERROR(RPMGrow($E$85,K85,L$45),"Please Enable Macros") -> 0 | M85: =IFERROR(RPMGrow($E$85,L85,M$45),"Please Enable Macros") -> 0 | N85: =IFERROR(RPMGrow($E$85,M85,N$45),"Please Enable Macros") -> 0 | O85: =IFERROR(RPMGrow($E$85,N85,O$45),"Please Enable Macros") -> 0 | P85: =IFERROR(RPMGrow($E$85,O85,P$45),"Please Enable Macros") -> 0
B86: Replacement Reserves | F86: 0 | G86: 54402 | H86: =IFERROR(RPMGrow($E$85,G86,H$45),"Please Enable Macros") -> 56034.06 | I86: =IFERROR(RPMGrow($E$85,H86,I$45),"Please Enable Macros") -> 57715.0818 | J86: =IFERROR(RPMGrow($E$85,I86,J$45),"Please Enable Macros") -> 59446.53425 | K86: =IFERROR(RPMGrow($E$85,J86,K$45),"Please Enable Macros") -> 61229.93028 | L86: =IFERROR(RPMGrow($E$86,K86,L$45),"Please Enable Macros") -> 63066.82819 | M86: =IFERROR(RPMGrow($E$86,L86,M$45),"Please Enable Macros") -> 64958.83304 | N86: =IFERROR(RPMGrow($E$86,M86,N$45),"Please Enable Macros") -> 66907.59803 | O86: =IFERROR(RPMGrow($E$86,N86,O$45),"Please Enable Macros") -> 68914.82597 | P86: =IFERROR(RPMGrow($E$86,O86,P$45),"Please Enable Macros") -> 70982.27075
B87: Total Reserves | F87: =SUM(F84:F86) -> 0 | G87: =SUM(G84:G86) -> 54402 | H87: 56034.06 | I87: 57715.0818 | J87: 59446.53425 | K87: 61229.93028 | L87: 63066.82819 | M87: 64958.83304 | N87: 66907.59803 | O87: 68914.82597 | P87: 70982.27075
B89: Net Operating Income | F89: =F81-F87 -> -133713.75 | G89: =G81-G87 -> 942827.8475 | H89: 1048455.058 | I89: 1090117.509 | J89: 1186085.847 | K89: 1225206.48 | L89: 1251030.074 | M89: 1288561.343 | N89: 1327219.059 | O89: 1367036.568 | P89: 1408047.563
B90: Ratio | F90: =IFERROR(F89/F$26,"-") -> - | G90: =IFERROR(G89/G$26,"-") -> 0.336717029 | H90: 0.3433093531 | I90: 0.3364225603 | J90: 0.3452934585 | K90: 0.3462934585 | L90: 0.3432934585 | M90: 0.3432935202 | N90: 0.3432936633 | O90: 0.3432938119 | P90: 0.3432937962
B91: $ Per Room | F91: =IFERROR(F89/Size_Total,"-") -> -1591.830357 | G91: 11224.14104 | H91: 12481.60784 | I91: 12977.5894 | J91: 14120.0696 | K91: 14585.79143 | L91: 14893.21517 | M91: 15340.01599 | N91: 15800.2269 | O91: 16274.24486 | P91: 16762.47099
B92: P.O.R. | F92: =IFERROR(F89/F$15,"-") -> - | G92: =IFERROR(G89/G$15,"-") -> 50.00174203 | H92: 52.44813781 | I92: 52.90928489 | J92: 55.90335578 | K92: 57.74721448 | L92: 58.96434861 | M92: 60.73329635 | N92: 62.55533652 | O92: 64.43204077 | P92: 66.36499719
B93: =IF(Project_Type="Acquisition","Cap Rate based on Acquisition Cost","Cap Rate based on Development Cost") -> Cap Rate based on Development Cost | F93: =IFERROR(F89/Acquisition_Gross,"-") -> -0.01083479464 | G93: 0.07639712525 | H93: 0.08495607402 | I93: 0.08833197293 | J93: 0.09610826539 | K93: 0.09927820142 | L93: 0.1013706813 | M93: 0.1044118315 | N93: 0.1075442574 | O93: 0.110770661 | P93: 0.1140937726
B94: =IF(Disposition="Cap Rate","Value based on "&ROUND(Exit_Rate*100,2)&"% Exit Cap Rate","Value based on "&ROUND(Exit_Rate*100,2)&"% Annual Growth Rate") -> Value based on 7% Exit Cap Rate | F94: =IFERROR(IF(F$7<=Hold,IF(Disposition="Cap Rate",G$89/Exit_Rate,FV(Exit_Rate,F$7,0,-Acquisition_Gross)),0),"-") -> 13468969.25 | G94: 14977929.4 | H94: 15573107.28 | I94: 16944083.52 | J94: 17502949.72 | K94: 17871858.21 | L94: 18408019.19 | M94: 18960272.28 | N94: 19529093.83 | O94: 20114965.19
B98: www.realpropmetrics.com
B99: ="Version: "&Version -> Version: 9.42 H | © 2022
B100: =TODAY() -> 2022-02-23
B102: Schedule of Prospective Cash Flows
B104: Period | F104: 1 | G104: 2 | H104: 3 | I104: 4 | J104: 5 | K104: 6 | L104: 7 | M104: 8 | N104: 9 | O104: 10
F105: =RPMDateSpan(F104,1) -> Jan 22 - Dec 22 | G105: =RPMDateSpan(G104,1) -> Jan 23 - Dec 23 | H105: Jan 24 - Dec 24 | I105: Jan 25 - Dec 25 | J105: Jan 26 - Dec 26 | K105: Jan 27 - Dec 27 | L105: Jan 28 - Dec 28 | M105: Jan 29 - Dec 29 | N105: Jan 30 - Dec 30 | O105: Jan 31 - Dec 31
B107: Net Operating Income | F107: =F89 -> -133713.75 | G107: =G89 -> 942827.8475 | H107: 1048455.058 | I107: 1090117.509 | J107: 1186085.847 | K107: 1225206.48 | L107: 1251030.074 | M107: 1288561.343 | N107: 1327219.059 | O107: 1367036.568
B109: Debt Service
B110: Interest | F110: =VLOOKUP(F$7,Amortization_Schedule_Annual,6,FALSE) -> 304105.9856 | G110: 558300.6549 | H110: 551213.4813 | I110: 543689.1862 | J110: 535700.8092 | K110: 527219.7265 | L110: 518215.5492 | M110: 508656.0139 | N110: 498506.8674 | O110: 487731.7438
B111: Principal | F111: =VLOOKUP(F$7,Amortization_Schedule_Annual,7,FALSE) -> 0 | G111: 114906.373 | H111: 121993.5466 | I111: 129517.8416 | J111: 137506.2187 | K111: 145987.3014 | L111: 154991.4787 | M111: 164551.014 | N111: 174700.1604 | O111: 185475.2841
B112: Less: Interest in Development Budget | F112: =IF(Loan_IO_Interest="Pass to Cash Flow",0,VLOOKUP(F$7,'Loan Amortization'!$B$13:$O$24,13,FALSE)) -> -304105.9856 | G112: =IF(Loan_IO_Interest="Pass to Cash Flow",0,VLOOKUP(G$7,'Loan Amortization'!$B$13:$O$24,13,FALSE)) -> 0 | H112: =IF(Loan_IO_Interest="Pass to Cash Flow",0,VLOOKUP(H$7,'Loan Amortization'!$B$13:$O$24,13,FALSE)) -> 0 | I112: =IF(Loan_IO_Interest="Pass to Cash Flow",0,VLOOKUP(I$7,'Loan Amortization'!$B$13:$O$24,13,FALSE)) -> 0 | J112: =IF(Loan_IO_Interest="Pass to Cash Flow",0,VLOOKUP(J$7,'Loan Amortization'!$B$13:$O$24,13,FALSE)) -> 0 | K112: =IF(Loan_IO_Interest="Pass to Cash Flow",0,VLOOKUP(K$7,'Loan Amortization'!$B$13:$O$24,13,FALSE)) -> 0 | L112: =IF(Loan_IO_Interest="Pass to Cash Flow",0,VLOOKUP(L$7,'Loan Amortization'!$B$13:$O$24,13,FALSE)) -> 0 | M112: =IF(Loan_IO_Interest="Pass to Cash Flow",0,VLOOKUP(M$7,'Loan Amortization'!$B$13:$O$24,13,FALSE)) -> 0 | N112: =IF(Loan_IO_Interest="Pass to Cash Flow",0,VLOOKUP(N$7,'Loan Amortization'!$B$13:$O$24,13,FALSE)) -> 0 | O112: =IF(Loan_IO_Interest="Pass to Cash Flow",0,VLOOKUP(O$7,'Loan Amortization'!$B$13:$O$24,13,FALSE)) -> 0
B113: Total Debt Service | F113: =SUM(F110:F112) -> 0 | G113: =SUM(G110:G112) -> 673207.0279 | H113: 673207.0279 | I113: 673207.0279 | J113: 673207.0279 | K113: 673207.0279 | L113: 673207.0279 | M113: 673207.0279 | N113: 673207.0279 | O113: 673207.0279
B114: DSCR | F114: =IFERROR(F89/F113,"-") -> - | G114: 1.400502087 | H114: 1.557403614 | I114: 1.61929015 | J114: 1.761844125 | K114: 1.819954976 | L114: 1.858314044 | M114: 1.91406401 | N114: 1.971487231 | O114: 2.03063324
B115: LTV | F115: =IFERROR(F118/F94,"-") -> 0.02257826713 | G115: 0.04494660175 | H115: 0.04322881849 | I115: 0.03973109711 | J115: 0.03846248996 | K115: 0.03766855243 | L115: 0.03657139972 | M115: 0.03550618989 | N115: 0.0344720054 | O115: 0.03346796883
B116: Break Even Occupancy | F116: =IFERROR(SUM(F122,F113,F76)/(F40/F14),"-") -> - | G116: 0.5204129789 | H116: 0.5318250246 | I116: 0.5446662247 | J116: 0.5440793027 | K116: 0.5381237153 | L116: 0.535866922 | M116: 0.5310899785 | N116: 0.5264520837 | O116: 0.5219492659
B117: Debt Yield | F117: =IFERROR(F107/F118,"-") -> -0.4396945681 | G117: =IFERROR(G107/G118,"-") -> 1.400502087 | H117: 1.557403614 | I117: 1.61929015 | J117: 1.761844125 | K117: 1.819954976 | L117: 1.858314044 | M117: 1.91406401 | N117: 1.971487231 | O117: 2.03063324
B118: Mortgage Balance | F118: =IF(F30<=Hold,VLOOKUP(F$7,Amortization_Schedule_Annual,8,FALSE),0) -> 304105.9856 | G118: 673207.0279 | H118: 673207.0279 | I118: 673207.0279 | J118: 673207.0279 | K118: 673207.0279 | L118: 673207.0279 | M118: 673207.0279 | N118: 673207.0279 | O118: 673207.0279
B119: Equity | F119: =IFERROR(IF(F$7<=Hold,F94-F118,0),"-") -> 13164863.26 | G119: 14304722.38 | H119: 14899900.25 | I119: 16270876.5 | J119: 16829742.69 | K119: 17198651.18 | L119: 17734812.16 | M119: 18287065.25 | N119: 18855886.8 | O119: 19441758.16
B121: Refinance Proceeds | F121: ='Return Detail'!F26 -> 0 | G121: ='Return Detail'!G26 -> 0 | H121: ='Return Detail'!H26 -> 0 | I121: ='Return Detail'!I26 -> 0 | J121: ='Return Detail'!J26 -> 0 | K121: ='Return Detail'!K26 -> 0 | L121: ='Return Detail'!L26 -> 0 | M121: ='Return Detail'!M26 -> 0 | N121: ='Return Detail'!N26 -> 0 | O121: ='Return Detail'!O26 -> 0
B122: Less: Mortgage Origination Fee | F122: ='Return Detail'!F28 -> 0 | G122: ='Return Detail'!G28 -> 0 | H122: ='Return Detail'!H28 -> 0 | I122: ='Return Detail'!I28 -> 0 | J122: ='Return Detail'!J28 -> 0 | K122: ='Return Detail'!K28 -> 0 | L122: ='Return Detail'!L28 -> 0 | M122: ='Return Detail'!M28 -> 0 | N122: ='Return Detail'!N28 -> 0 | O122: ='Return Detail'!O28 -> 0
B124: Cash Flow After Debt Service | F124: =SUM(F107,-F113,F121:F122) -> -133713.75 | G124: =SUM(G107,-G113,G121:G122) -> 269620.8196 | H124: 375248.0304 | I124: 416910.4815 | J124: 512878.8188 | K124: 551999.4526 | L124: 577823.0465 | M124: 615354.3154 | N124: 654012.0315 | O124: 693829.5401
B125: CFADS/Month | F125: =F124/12 -> -11142.8125 | G125: =G124/12 -> 22468.40163 | H125: 31270.6692 | I125: 34742.54013 | J125: 42739.90157 | K125: 45999.95438 | L125: 48151.92055 | M125: 51279.52628 | N125: 54501.00262 | O125: 57819.12835
B127: Capital Expenses
B128: Capital Expenditures | F128: 0 | G128: 0 | H128: 0 | I128: 0 | J128: 0 | K128: 0 | L128: 0 | M128: 0 | N128: 0 | O128: 0
B129: =B86&" Expenditures" -> Replacement Reserves Expenditures | F129: 0 | G129: 0 | H129: 0 | I129: 0 | J129: 0 | K129: 0 | L129: 0 | M129: 0 | N129: 0 | O129: 0
B130: Total Capital Expenses | F130: =SUM(F128:F129) -> 0 | G130: =SUM(G128:G129) -> 0 | H130: 0 | I130: 0 | J130: 0 | K130: 0 | L130: 0 | M130: 0 | N130: 0 | O130: 0
B132: Expenses Paid from Reserves
B133: Less: Cap Ex Paid from Reserves | F133: =F$177 -> 0 | G133: =G$177 -> 0 | H133: 0 | I133: 0 | J133: 0 | K133: 0 | L133: 0 | M133: 0 | N133: 0 | O133: 0
B134: Less: User Defined Paid from Reserves | F134: =F$183 -> 0 | G134: =G$183 -> 0 | H134: 0 | I134: 0 | J134: 0 | K134: 0 | L134: 0 | M134: 0 | N134: 0 | O134: 0
B135: Net Capital Expenses | F135: =SUM(F130,F133:F134) -> 0 | G135: =SUM(G130,G133:G134) -> 0 | H135: 0 | I135: 0 | J135: 0 | K135: 0 | L135: 0 | M135: 0 | N135: 0 | O135: 0
B137: Other Non-Regular Income
B138: Other Non-Regular Income | F138: 0 | G138: 0 | H138: 0 | I138: 0 | J138: 0 | K138: 0 | L138: 0 | M138: 0 | N138: 0 | O138: 0
B139: Other Non-Regular Expenses | F139: 0 | G139: 0 | H139: 0 | I139: 0 | J139: 0 | K139: 0 | L139: 0 | M139: 0 | N139: 0 | O139: 0
B140: Operating Deficit Reserve Draw | F140: =-F$169 -> 133713.75 | G140: =-G$169 -> 0 | H140: 0 | I140: 0 | J140: 0 | K140: 0 | L140: 0 | M140: 0 | N140: 0 | O140: 0
B141: Return of Reserve Funds | F141: =IF(F$7=Hold,F$186,0) -> 0 | G141: 0 | H141: 0 | I141: 0 | J141: 0 | K141: 0 | L141: 0 | M141: 0 | N141: 0 | O141: 553961.9416
B142: Total Non-Regular Income | F142: =SUM(F138:F141) -> 133713.75 | G142: =SUM(G138:G141) -> 0 | H142: 0 | I142: 0 | J142: 0 | K142: 0 | L142: 0 | M142: 0 | N142: 0 | O142: 553961.9416
B144: Cash Flow Before Taxes | F144: =SUM(F124,-F135,F142) -> 0 | G144: =SUM(G124,-G135,G142) -> 269620.8196 | H144: 375248.0304 | I144: 416910.4815 | J144: 512878.8188 | K144: 551999.4526 | L144: 577823.0465 | M144: 615354.3154 | N144: 654012.0315 | O144: 1247791.482
B145: CFBT/Month | F145: =F144/12 -> 0 | G145: =G144/12 -> 22468.40163 | H145: 31270.6692 | I145: 34742.54013 | J145: 42739.90157 | K145: 45999.95438 | L145: 48151.92055 | M145: 51279.52628 | N145: 54501.00262 | O145: 103982.6235
B146: Cash on Cash Return | F146: =IFERROR(F144/Equity_Amount,"-") -> 0 | G146: 0.08644364515 | H146: 0.1203089866 | I146: 0.1336664646 | J146: 0.1644350562 | K146: 0.1769775972 | L146: 0.1852569489 | M146: 0.1972899206 | N146: 0.2096840447 | O146: 0.4000568066
B148: Tax Liability*
B149: Cost Recovery Improvements | F149: =Acquisition_Unlevered*Assessed_Value_Prop*Cost_Recovery_11M -> 42915.43669 | G149: =IF(G$7<Hold,Acquisition_Unlevered*Cost_Recovery_12M*Assessed_Value_Prop,IF(G$7=Hold,Acquisition_Unlevered*Cost_Recovery_11M*Assessed_Value_Prop,0)) -> 44784.36291 | H149: 44784.36291 | I149: 44784.36291 | J149: 44784.36291 | K149: 44784.36291 | L149: 44784.36291 | M149: 44784.36291 | N149: 44784.36291 | O149: 42915.43669
B150: Loan Costs Amortization | F150: =VLOOKUP(F7,Loan_Cost_Table,6,FALSE) -> 0 | G150: 0 | H150: 0 | I150: 0 | J150: 0 | K150: 0 | L150: 0 | M150: 0 | N150: 0 | O150: 0
B151: Taxable Income | F151: =F81-SUM(F110,F149:F150) -> -480735.1723 | G151: =G81-SUM(G110,G149:G150) -> 394144.8296 | H151: 508491.2741 | I151: 559359.0421 | J151: 665047.2088 | K151: 714432.3213 | L151: 751096.9905 | M151: 800079.7995 | N151: 850835.427 | O151: 905304.2135
B152: ="Less: Tax Liability at " & ROUND(Tax_Ordinary*100,0)&"%" -> Less: Tax Liability at 35% | F152: =-F151*Tax_Ordinary -> 168257.3103 | G152: -137950.6904 | H152: -177971.9459 | I152: -195775.6647 | J152: -232766.5231 | K152: -250051.3125 | L152: -262883.9467 | M152: -280027.9298 | N152: -297792.3995 | O152: -316856.4747
B154: Operating Deficit Reserve Draw for Taxes | F154: =-F170 -> 0 | G154: =-G170 -> 0 | H154: 0 | I154: 0 | J154: 0 | K154: 0 | L154: 0 | M154: 0 | N154: 0 | O154: 0
B156: Cash Flow After Taxes | F156: =SUM(F144,F152,F154) -> 168257.3103 | G156: =SUM(G144,G152,G154) -> 131670.1292 | H156: 197276.0845 | I156: 221134.8168 | J156: 280112.2957 | K156: 301948.1401 | L156: 314939.0999 | M156: 335326.3856 | N156: 356219.632 | O156: 930935.007
B157: CFAT/Month | F157: =F156/12 -> 14021.44253 | G157: =G156/12 -> 10972.51077 | H157: 16439.6737 | I157: 18427.9014 | J157: 23342.69131 | K157: 25162.34501 | L157: 26244.92499 | M157: 27943.86546 | N157: 29684.96933 | O157: 77577.91725
B158: After Tax Cash on Cash Return | F158: =IFERROR(F156/Equity_Amount,"-") -> 0.05394529714 | G158: 0.04221501123 | H158: 0.06324906165 | I158: 0.07089845534 | J158: 0.08980733732 | K158: 0.09680816904 | L158: 0.1009732254 | M158: 0.107509632 | N158: 0.1142082556 | O158: 0.2984688479
B159: *Does not include Capital Expenses as they are often subject to separate tax treatment.
B160: This pro forma does not constitute tax advice. Please consult a professional tax advisor.
B162: Reserve Account Balances
B164: Period | F164: 1 | G164: 2 | H164: 3 | I164: 4 | J164: 5 | K164: 6 | L164: 7 | M164: 8 | N164: 9 | O164: 10
F165: =RPMDateSpan(F164,1) -> Jan 22 - Dec 22 | G165: =RPMDateSpan(G164,1) -> Jan 23 - Dec 23 | H165: Jan 24 - Dec 24 | I165: Jan 25 - Dec 25 | J165: Jan 26 - Dec 26 | K165: Jan 27 - Dec 27 | L165: Jan 28 - Dec 28 | M165: Jan 29 - Dec 29 | N165: Jan 30 - Dec 30 | O165: Jan 31 - Dec 31
B166: Operating Deficit Reserve
B167: Beginning Balance | F167: =Reserve_Operating -> 135000 | G167: =F171 -> 1286.25 | H167: =G171 -> 1286.25 | I167: 1286.25 | J167: 1286.25 | K167: 1286.25 | L167: 1286.25 | M167: 1286.25 | N167: 1286.25 | O167: 1286.25
B168: Contributions | F168: =F$84 -> 0 | G168: =G$84 -> 0 | H168: 0 | I168: 0 | J168: 0 | K168: 0 | L168: 0 | M168: 0 | N168: 0 | O168: 0
B169: Expenses Paid | F169: =IF(SUM(F124,F138:F139)>0,0,MAX(SUM(F124,F138:F139),-SUM(F167:F168))) -> -133713.75 | G169: 0 | H169: 0 | I169: 0 | J169: 0 | K169: 0 | L169: 0 | M169: 0 | N169: 0 | O169: 0
B170: Taxes Paid | F170: =IF(F$7>=Hold,0,IF(SUM(F144,F152)>0,0,MAX(SUM(F144,F152),-SUM(F167:F169)))) -> 0 | G170: 0 | H170: 0 | I170: 0 | J170: 0 | K170: 0 | L170: 0 | M170: 0 | N170: 0 | O170: 0
B171: Ending Balance | F171: =SUM(F167:F170) -> 1286.25 | G171: =SUM(G167:G170) -> 1286.25 | H171: 1286.25 | I171: 1286.25 | J171: 1286.25 | K171: 1286.25 | L171: 1286.25 | M171: 1286.25 | N171: 1286.25 | O171: 1286.25
B174: Cap Ex Reserve
B175: Beginning Balance | F175: =Reserve_CapEx -> 0 | G175: =F178 -> 0 | H175: =G178 -> 0 | I175: 0 | J175: 0 | K175: 0 | L175: 0 | M175: 0 | N175: 0 | O175: 0
B176: Contributions | F176: =F$85 -> 0 | G176: =G$85 -> 0 | H176: 0 | I176: 0 | J176: 0 | K176: 0 | L176: 0 | M176: 0 | N176: 0 | O176: 0
B177: Expenses Paid | F177: =IF(F$128<SUM(F175:F176),-F$128,-SUM(F175:F176)) -> 0 | G177: =IF(G$128<SUM(G175:G176),-G$128,-SUM(G175:G176)) -> 0 | H177: 0 | I177: 0 | J177: 0 | K177: 0 | L177: 0 | M177: 0 | N177: 0 | O177: 0
B178: Ending Balance | F178: =SUM(F175:F177) -> 0 | G178: =SUM(G175:G177) -> 0 | H178: 0 | I178: 0 | J178: 0 | K178: 0 | L178: 0 | M178: 0 | N178: 0 | O178: 0
B180: =B86 -> Replacement Reserves
B181: Beginning Balance | F181: =Reserve_Replacement -> 0 | G181: =F184 -> 0 | H181: =G184 -> 54402 | I181: 110436.06 | J181: 168151.1418 | K181: 227597.6761 | L181: 288827.6063 | M181: 351894.4345 | N181: 416853.2676 | O181: 483760.8656
B182: Contributions | F182: =F$86 -> 0 | G182: =G$86 -> 54402 | H182: 56034.06 | I182: 57715.0818 | J182: 59446.53425 | K182: 61229.93028 | L182: 63066.82819 | M182: 64958.83304 | N182: 66907.59803 | O182: 68914.82597
B183: Expenses Paid | F183: =IF(F$129<SUM(F181:F182),-F$129,-SUM(F181:F182)) -> 0 | G183: =IF(G$129<SUM(G181:G182),-G$129,-SUM(G181:G182)) -> 0 | H183: 0 | I183: 0 | J183: 0 | K183: 0 | L183: 0 | M183: 0 | N183: 0 | O183: 0
B184: Ending Balance | F184: =SUM(F181:F183) -> 0 | G184: =SUM(G181:G183) -> 54402 | H184: 110436.06 | I184: 168151.1418 | J184: 227597.6761 | K184: 288827.6063 | L184: 351894.4345 | M184: 416853.2676 | N184: 483760.8656 | O184: 552675.6916
B186: Total Reserve Balances | F186: =SUM(F171,F178,F184) -> 1286.25 | G186: =SUM(G171,G178,G184) -> 55688.25 | H186: 111722.31 | I186: 169437.3918 | J186: 228883.9261 | K186: 290113.8563 | L186: 353180.6845 | M186: 418139.5176 | N186: 485047.1156 | O186: 553961.9416
B190: www.realpropmetrics.com
B191: ="Version: "&Version -> Version: 9.42 H | © 2022
B192: =TODAY() -> 2022-02-23

Sheet Summary Charts
B3: =Project_Name -> New Hospitality Project
B5: Project Return Summary
O6: Summary Chart Data | P6: =IF(DateView=1,P7,RPMDateSpan(P7,2)) -> 1 | Q6: 2 | R6: 3 | S6: 4 | T6: 5 | U6: 6 | V6: 7 | W6: 8 | X6: 9 | Y6: 10
B7: Summary | E7: Sale Analysis | H7: Cash Flows | L7: IRR & Present Value | O7: Period | P7: 1 | Q7: 2 | R7: 3 | S7: 4 | T7: 5 | U7: 6 | V7: 7 | W7: 8 | X7: 9 | Y7: 10
B8: Units | C8: =Size_Total -> 84 | E8: =IF(Project_Type="Acquisition","Acquisition Price","Development Cost") -> Development Cost | F8: =Acquisition_Gross -> 12341143 | I8: Before Tax | J8: After Tax | L8: Unleveraged IRR | M8: ='Return Detail'!$C$17 -> 0.116858544 | O8: Net Operating Income | P8: ='Summary & Ratios'!D$10 -> -133713.75 | Q8: ='Summary & Ratios'!E$10 -> 942827.8475 | R8: ='Summary & Ratios'!F$10 -> 1048455.058 | S8: ='Summary & Ratios'!G$10 -> 1090117.509 | T8: ='Summary & Ratios'!H$10 -> 1186085.847 | U8: ='Summary & Ratios'!I$10 -> 1225206.48 | V8: ='Summary & Ratios'!J$10 -> 1251030.074 | W8: ='Summary & Ratios'!K$10 -> 1288561.343 | X8: ='Summary & Ratios'!L$10 -> 1327219.059 | Y8: ='Summary & Ratios'!M$10 -> 1367036.568
B9: =IF(Project_Type="Acquisition","Acquisition Price","Development Costs") -> Development Costs | C9: =Acquisition_Gross -> 12341143 | E9: Per Unit | F9: =IFERROR(Acquisition_Gross/Size_Total,0) -> 146918.369 | H9: Operating Cash Flows | I9: =SUM('Return Detail'!$F$32:$O$32) -> 5221638.478 | J9: =SUM('Return Detail'!F83:O83) -> 3237818.901 | L9: ="Unleveraged PV at " &(Equity_Rate*100)&"%" -> Unleveraged PV at 8% | M9: ='Return Detail'!$C$20 -> 16400000 | O9: Debt Serivce | P9: =IF(-'Summary & Ratios'!D$11=0,NA(),-'Summary & Ratios'!D$11) ->  | Q9: =IF(-'Summary & Ratios'!E$11=0,NA(),-'Summary & Ratios'!E$11) -> 673207.0279 | R9: =IF(-'Summary & Ratios'!F$11=0,NA(),-'Summary & Ratios'!F$11) -> 673207.0279 | S9: =IF(-'Summary & Ratios'!G$11=0,NA(),-'Summary & Ratios'!G$11) -> 673207.0279 | T9: =IF(-'Summary & Ratios'!H$11=0,NA(),-'Summary & Ratios'!H$11) -> 673207.0279 | U9: =IF(-'Summary & Ratios'!I$11=0,NA(),-'Summary & Ratios'!I$11) -> 673207.0279 | V9: =IF(-'Summary & Ratios'!J$11=0,NA(),-'Summary & Ratios'!J$11) -> 673207.0279 | W9: =IF(-'Summary & Ratios'!K$11=0,NA(),-'Summary & Ratios'!K$11) -> 673207.0279 | X9: =IF(-'Summary & Ratios'!L$11=0,NA(),-'Summary & Ratios'!L$11) -> 673207.0279 | Y9: =IF(-'Summary & Ratios'!M$11=0,NA(),-'Summary & Ratios'!M$11) -> 673207.0279
B10: Other Costs | C10: ='Sources & Uses'!C19 -> 0 | E10: Sale Price | F10: =SUM('Return Detail'!F10:O10) -> 21128997.63 | H10: Net Sale Proceeds | I10: =SUM('Return Detail'!$F$33:$O$36) -> 12256359.69 | J10: =SUM('Return Detail'!F84:O84) -> 10583794.3 | L10: Leveraged IRR | M10: ='Return Detail'!C42 -> 0.2220086534 | O10: Cash Flow After Taxes | P10: ='Return Detail'!F$83 -> 168257.3103 | Q10: ='Return Detail'!G$83 -> 131670.1292 | R10: ='Return Detail'!H$83 -> 197276.0845 | S10: ='Return Detail'!I$83 -> 221134.8168 | T10: ='Return Detail'!J$83 -> 280112.2957 | U10: ='Return Detail'!K$83 -> 301948.1401 | V10: ='Return Detail'!L$83 -> 314939.0999 | W10: ='Return Detail'!M$83 -> 335326.3856 | X10: ='Return Detail'!N$83 -> 356219.632 | Y10: ='Return Detail'!O$83 -> 930935.007
B11: Equity | C11: =Equity_Amount -> 3119035.75 | E11: Per Unit | F11: =IFERROR(F10/Size_Total,0) -> 251535.686 | H11: Total Cash Flow | I11: =SUM(I9:I10) -> 17477998.17 | J11: =SUM(J9:J10) -> 13821613.2 | L11: ="Leveraged PV at " &(Equity_Rate*100)&"%" -> Leveraged PV at 8% | M11: ='Return Detail'!$C$48 -> 18140000 | O11: Mortgage Balance (EOY) | P11: ='Summary & Ratios'!D$27 -> 9357107.25 | Q11: ='Summary & Ratios'!E$27 -> 9242200.877 | R11: ='Summary & Ratios'!F$27 -> 9120207.33 | S11: ='Summary & Ratios'!G$27 -> 8990689.489 | T11: ='Summary & Ratios'!H$27 -> 8853183.27 | U11: ='Summary & Ratios'!I$27 -> 8707195.969 | V11: ='Summary & Ratios'!J$27 -> 8552204.49 | W11: ='Summary & Ratios'!K$27 -> 8387653.476 | X11: ='Summary & Ratios'!L$27 -> 8212953.316 | Y11: ='Summary & Ratios'!M$27 -> 8027478.032
B12: Debt | C12: =Loan_Amount -> 9357107.25 | E12: Appreciation | F12: =IFERROR((F10/F8)-1,"-") -> 0.7120778544 | H12: Profit | I12: =SUM('Return Detail'!$E$37:$O$37) -> 14358962.42 | J12: =SUM('Return Detail'!E85:O85) -> 10702577.45 | L12: After Tax IRR (Leveraged) | M12: ='Return Detail'!$C$91 -> 0.1824690735 | O12: Equity (EOY) | P12: ='Summary & Ratios'!D$28 -> 4111861.999 | Q12: ='Summary & Ratios'!E$28 -> 5735728.527 | R12: ='Summary & Ratios'!F$28 -> 6452899.947 | S12: ='Summary & Ratios'!G$28 -> 7953394.035 | T12: ='Summary & Ratios'!H$28 -> 8649766.451 | U12: ='Summary & Ratios'!I$28 -> 9164662.237 | V12: ='Summary & Ratios'!J$28 -> 9855814.699 | W12: ='Summary & Ratios'!K$28 -> 10572618.8 | X12: ='Summary & Ratios'!L$28 -> 11316140.51 | Y12: ='Summary & Ratios'!M$28 -> 12087487.16
B13: =IF(Project_Type="Acquisition","LTV","LTC") -> LTC | C13: =LTV -> 0.75 | E13: Avg. App/Year | F13: =IFERROR(F12/Hold,"-") -> 0.07120778544 | H13: Equity Multiple | I13: =IFERROR(I12/Equity_Amount,"-") -> 4.603654325 | J13: =IFERROR(J12/Equity_Amount,"-") -> 3.431373768 | L13: ="After Tax PV at " &(Equity_Rate*100)&"%" -> After Tax PV at 8% | M13: ='Return Detail'!$C$97 -> 16200000 | O13: Before Tax Cash on Cash | P13: =IFERROR('Summary & Ratios'!D$33,NA()) -> 0 | Q13: =IFERROR('Summary & Ratios'!E$33,NA()) -> 0.08644364515 | R13: =IFERROR('Summary & Ratios'!F$33,NA()) -> 0.1203089866 | S13: =IFERROR('Summary & Ratios'!G$33,NA()) -> 0.1336664646 | T13: =IFERROR('Summary & Ratios'!H$33,NA()) -> 0.1644350562 | U13: =IFERROR('Summary & Ratios'!I$33,NA()) -> 0.1769775972 | V13: =IFERROR('Summary & Ratios'!J$33,NA()) -> 0.1852569489 | W13: =IFERROR('Summary & Ratios'!K$33,NA()) -> 0.1972899206 | X13: =IFERROR('Summary & Ratios'!L$33,NA()) -> 0.2096840447 | Y13: =IFERROR('Summary & Ratios'!M$33,NA()) -> 0.4000568066
O14: After Tax Cash on Cash | P14: =IFERROR('Summary & Ratios'!D$34,NA()) -> 0.05394529714 | Q14: =IFERROR('Summary & Ratios'!E$34,NA()) -> 0.04221501123 | R14: =IFERROR('Summary & Ratios'!F$34,NA()) -> 0.06324906165 | S14: =IFERROR('Summary & Ratios'!G$34,NA()) -> 0.07089845534 | T14: =IFERROR('Summary & Ratios'!H$34,NA()) -> 0.08980733732 | U14: =IFERROR('Summary & Ratios'!I$34,NA()) -> 0.09680816904 | V14: =IFERROR('Summary & Ratios'!J$34,NA()) -> 0.1009732254 | W14: =IFERROR('Summary & Ratios'!K$34,NA()) -> 0.107509632 | X14: =IFERROR('Summary & Ratios'!L$34,NA()) -> 0.1142082556 | Y14: =IFERROR('Summary & Ratios'!M$34,NA()) -> 0.2984688479
O15: After Tax | P15: =IFERROR('Summary & Ratios'!D$42,NA()) -> - | Q15: =IFERROR('Summary & Ratios'!E$42,NA()) -> 0.4801431458 | R15: =IFERROR('Summary & Ratios'!F$42,NA()) -> 0.4822338761 | S15: =IFERROR('Summary & Ratios'!G$42,NA()) -> 0.4921430223 | T15: =IFERROR('Summary & Ratios'!H$42,NA()) -> 0.4839194893 | U15: =IFERROR('Summary & Ratios'!I$42,NA()) -> 0.4753788958 | V15: =IFERROR('Summary & Ratios'!J$42,NA()) -> 0.4718233454 | W15: =IFERROR('Summary & Ratios'!K$42,NA()) -> 0.464856803 | X15: =IFERROR('Summary & Ratios'!L$42,NA()) -> 0.4580687172 | Y15: =IFERROR('Summary & Ratios'!M$42,NA()) -> 0.4513074119
O16: Pre Tax | P16: =IFERROR('Summary & Ratios'!D$41,NA()) -> - | Q16: =IFERROR('Summary & Ratios'!E$41,NA()) -> 0.5204129789 | R16: =IFERROR('Summary & Ratios'!F$41,NA()) -> 0.5318250246 | S16: =IFERROR('Summary & Ratios'!G$41,NA()) -> 0.5446662247 | T16: =IFERROR('Summary & Ratios'!H$41,NA()) -> 0.5440793027 | U16: =IFERROR('Summary & Ratios'!I$41,NA()) -> 0.5381237153 | V16: =IFERROR('Summary & Ratios'!J$41,NA()) -> 0.535866922 | W16: =IFERROR('Summary & Ratios'!K$41,NA()) -> 0.5310899785 | X16: =IFERROR('Summary & Ratios'!L$41,NA()) -> 0.5264520837 | Y16: =IFERROR('Summary & Ratios'!M$41,NA()) -> 0.5219492659
O17: Debt Service Coverage Ratio | P17: =IFERROR('Summary & Ratios'!D$40,NA()) -> - | Q17: =IFERROR('Summary & Ratios'!E$40,NA()) -> 1.400502087 | R17: =IFERROR('Summary & Ratios'!F$40,NA()) -> 1.557403614 | S17: =IFERROR('Summary & Ratios'!G$40,NA()) -> 1.61929015 | T17: =IFERROR('Summary & Ratios'!H$40,NA()) -> 1.761844125 | U17: =IFERROR('Summary & Ratios'!I$40,NA()) -> 1.819954976 | V17: =IFERROR('Summary & Ratios'!J$40,NA()) -> 1.858314044 | W17: =IFERROR('Summary & Ratios'!K$40,NA()) -> 1.91406401 | X17: =IFERROR('Summary & Ratios'!L$40,NA()) -> 1.971487231 | Y17: =IFERROR('Summary & Ratios'!M$40,NA()) -> 2.03063324
O18: LTV | P18: =IFERROR('Summary & Ratios'!D$38,NA()) -> 0.6947159116 | Q18: =IFERROR('Summary & Ratios'!E$38,NA()) -> 0.6170546427 | R18: =IFERROR('Summary & Ratios'!F$38,NA()) -> 0.5856382524 | S18: =IFERROR('Summary & Ratios'!G$38,NA()) -> 0.5306093703 | T18: =IFERROR('Summary & Ratios'!H$38,NA()) -> 0.5058109297 | U18: =IFERROR('Summary & Ratios'!I$38,NA()) -> 0.4872014912 | V18: =IFERROR('Summary & Ratios'!J$38,NA()) -> 0.4645912416 | W18: =IFERROR('Summary & Ratios'!K$38,NA()) -> 0.4423804339 | X18: =IFERROR('Summary & Ratios'!L$38,NA()) -> 0.4205496367 | Y18: =IFERROR('Summary & Ratios'!M$38,NA()) -> 0.3990798868
O19: Debt Yield | P19: =IFERROR('Summary & Ratios'!D$43,NA()) -> -0.01429007346 | Q19: =IFERROR('Summary & Ratios'!E$43,NA()) -> 0.1020133473 | R19: =IFERROR('Summary & Ratios'!F$43,NA()) -> 0.114959564 | S19: =IFERROR('Summary & Ratios'!G$43,NA()) -> 0.1212496006 | T19: =IFERROR('Summary & Ratios'!H$43,NA()) -> 0.1339728107 | U19: =IFERROR('Summary & Ratios'!I$43,NA()) -> 0.140711945 | V19: =IFERROR('Summary & Ratios'!J$43,NA()) -> 0.1462815904 | W19: =IFERROR('Summary & Ratios'!K$43,NA()) -> 0.1536259631 | X19: =IFERROR('Summary & Ratios'!L$43,NA()) -> 0.1616007066 | Y19: =IFERROR('Summary & Ratios'!M$43,NA()) -> 0.1702946508
O20: =IF(Disposition="Cap Rate",TEXT((Exit_Rate-0.01),"0.0%")&" Cap Rate",TEXT(Exit_Rate-0.01,"0.0%")&" Growth Rate") -> 6.0% Cap Rate | P20: =IFERROR(MAX(0,IF(Disposition="Cap Rate",'Cash Flows'!G$81/(Exit_Rate-0.01),FV((Exit_Rate-0.01),P$7,0,-Acquisition_Gross))),"-") -> 16620497.46 | Q20: =IFERROR(MAX(0,IF(Disposition="Cap Rate",'Cash Flows'!H$81/(Exit_Rate-0.01),FV((Exit_Rate-0.01),Q$7,0,-Acquisition_Gross))),"-") -> 18408151.97 | R20: =IFERROR(MAX(0,IF(Disposition="Cap Rate",'Cash Flows'!I$81/(Exit_Rate-0.01),FV((Exit_Rate-0.01),R$7,0,-Acquisition_Gross))),"-") -> 19130543.19 | S20: =IFERROR(MAX(0,IF(Disposition="Cap Rate",'Cash Flows'!J$81/(Exit_Rate-0.01),FV((Exit_Rate-0.01),S$7,0,-Acquisition_Gross))),"-") -> 20758873.02 | T20: =IFERROR(MAX(0,IF(Disposition="Cap Rate",'Cash Flows'!K$81/(Exit_Rate-0.01),FV((Exit_Rate-0.01),T$7,0,-Acquisition_Gross))),"-") -> 21440606.85 | U20: =IFERROR(MAX(0,IF(Disposition="Cap Rate",'Cash Flows'!L$81/(Exit_Rate-0.01),FV((Exit_Rate-0.01),U$7,0,-Acquisition_Gross))),"-") -> 21901615.04 | V20: =IFERROR(MAX(0,IF(Disposition="Cap Rate",'Cash Flows'!M$81/(Exit_Rate-0.01),FV((Exit_Rate-0.01),V$7,0,-Acquisition_Gross))),"-") -> 22558669.6 | W20: =IFERROR(MAX(0,IF(Disposition="Cap Rate",'Cash Flows'!N$81/(Exit_Rate-0.01),FV((Exit_Rate-0.01),W$7,0,-Acquisition_Gross))),"-") -> 23235444.29 | X20: =IFERROR(MAX(0,IF(Disposition="Cap Rate",'Cash Flows'!O$81/(Exit_Rate-0.01),FV((Exit_Rate-0.01),X$7,0,-Acquisition_Gross))),"-") -> 23932523.23 | Y20: =IFERROR(MAX(0,IF(Disposition="Cap Rate",'Cash Flows'!P$81/(Exit_Rate-0.01),FV((Exit_Rate-0.01),Y$7,0,-Acquisition_Gross))),"-") -> 24650497.23
O21: =IF(Disposition="Cap Rate",TEXT((Exit_Rate),"0.0%")&" Cap Rate",TEXT(Exit_Rate,"0.0%")&" Growth Rate") -> 7.0% Cap Rate | P21: =IFERROR(MAX(0,IF(Disposition="Cap Rate",'Cash Flows'!G$81/(Exit_Rate),FV((Exit_Rate),P$7,0,-Acquisition_Gross))),"-") -> 14246140.68 | Q21: =IFERROR(MAX(0,IF(Disposition="Cap Rate",'Cash Flows'!H$81/(Exit_Rate),FV((Exit_Rate),Q$7,0,-Acquisition_Gross))),"-") -> 15778415.98 | R21: =IFERROR(MAX(0,IF(Disposition="Cap Rate",'Cash Flows'!I$81/(Exit_Rate),FV((Exit_Rate),R$7,0,-Acquisition_Gross))),"-") -> 16397608.45 | S21: =IFERROR(MAX(0,IF(Disposition="Cap Rate",'Cash Flows'!J$81/(Exit_Rate),FV((Exit_Rate),S$7,0,-Acquisition_Gross))),"-") -> 17793319.73 | T21: =IFERROR(MAX(0,IF(Disposition="Cap Rate",'Cash Flows'!K$81/(Exit_Rate),FV((Exit_Rate),T$7,0,-Acquisition_Gross))),"-") -> 18377663.01 | U21: =IFERROR(MAX(0,IF(Disposition="Cap Rate",'Cash Flows'!L$81/(Exit_Rate),FV((Exit_Rate),U$7,0,-Acquisition_Gross))),"-") -> 18772812.89 | V21: =IFERROR(MAX(0,IF(Disposition="Cap Rate",'Cash Flows'!M$81/(Exit_Rate),FV((Exit_Rate),V$7,0,-Acquisition_Gross))),"-") -> 19336002.52 | W21: =IFERROR(MAX(0,IF(Disposition="Cap Rate",'Cash Flows'!N$81/(Exit_Rate),FV((Exit_Rate),W$7,0,-Acquisition_Gross))),"-") -> 19916095.11 | X21: =IFERROR(MAX(0,IF(Disposition="Cap Rate",'Cash Flows'!O$81/(Exit_Rate),FV((Exit_Rate),X$7,0,-Acquisition_Gross))),"-") -> 20513591.34 | Y21: =IFERROR(MAX(0,IF(Disposition="Cap Rate",'Cash Flows'!P$81/(Exit_Rate),FV((Exit_Rate),Y$7,0,-Acquisition_Gross))),"-") -> 21128997.63
O22: =IF(Disposition="Cap Rate",TEXT((Exit_Rate+0.01),"0.0%")&" Cap Rate",TEXT(Exit_Rate+0.01,"0.0%")&" Growth Rate") -> 8.0% Cap Rate | P22: =IFERROR(MAX(0,IF(Disposition="Cap Rate",'Cash Flows'!G$81/(Exit_Rate+0.01),FV((Exit_Rate+0.01),P$7,0,-Acquisition_Gross))),"-") -> 12465373.09 | Q22: =IFERROR(MAX(0,IF(Disposition="Cap Rate",'Cash Flows'!H$81/(Exit_Rate+0.01),FV((Exit_Rate+0.01),Q$7,0,-Acquisition_Gross))),"-") -> 13806113.98 | R22: =IFERROR(MAX(0,IF(Disposition="Cap Rate",'Cash Flows'!I$81/(Exit_Rate+0.01),FV((Exit_Rate+0.01),R$7,0,-Acquisition_Gross))),"-") -> 14347907.39 | S22: =IFERROR(MAX(0,IF(Disposition="Cap Rate",'Cash Flows'!J$81/(Exit_Rate+0.01),FV((Exit_Rate+0.01),S$7,0,-Acquisition_Gross))),"-") -> 15569154.76 | T22: =IFERROR(MAX(0,IF(Disposition="Cap Rate",'Cash Flows'!K$81/(Exit_Rate+0.01),FV((Exit_Rate+0.01),T$7,0,-Acquisition_Gross))),"-") -> 16080455.13 | U22: =IFERROR(MAX(0,IF(Disposition="Cap Rate",'Cash Flows'!L$81/(Exit_Rate+0.01),FV((Exit_Rate+0.01),U$7,0,-Acquisition_Gross))),"-") -> 16426211.28 | V22: =IFERROR(MAX(0,IF(Disposition="Cap Rate",'Cash Flows'!M$81/(Exit_Rate+0.01),FV((Exit_Rate+0.01),V$7,0,-Acquisition_Gross))),"-") -> 16919002.2 | W22: =IFERROR(MAX(0,IF(Disposition="Cap Rate",'Cash Flows'!N$81/(Exit_Rate+0.01),FV((Exit_Rate+0.01),W$7,0,-Acquisition_Gross))),"-") -> 17426583.22 | X22: =IFERROR(MAX(0,IF(Disposition="Cap Rate",'Cash Flows'!O$81/(Exit_Rate+0.01),FV((Exit_Rate+0.01),X$7,0,-Acquisition_Gross))),"-") -> 17949392.42 | Y22: =IFERROR(MAX(0,IF(Disposition="Cap Rate",'Cash Flows'!P$81/(Exit_Rate+0.01),FV((Exit_Rate+0.01),Y$7,0,-Acquisition_Gross))),"-") -> 18487872.92
O23: Development Cost | P23: =Acquisition_Levered -> 12476143 | Q23: 12476143 | R23: 12476143 | S23: 12476143 | T23: 12476143 | U23: 12476143 | V23: 12476143 | W23: 12476143 | X23: 12476143 | Y23: 12476143
B70: www.realpropmetrics.com
B71: ="Version: "&Version -> Version: 9.42 H | © 2022
B72: =TODAY() -> 2022-02-23
B73: This pro forma does not constitute tax advice. Please consult a professional tax advisor.

Sheet Summary & Ratios
B2: =Project_Name&" - Summary & Ratios" -> New Hospitality Project - Summary & Ratios
D4: 1 | E4: 2 | F4: 3 | G4: 4 | H4: 5 | I4: 6 | J4: 7 | K4: 8 | L4: 9 | M4: 10 | N4: Total
D5: =RPMDateSpan(D4,1) -> Jan 22 - Dec 22 | E5: =RPMDateSpan(E4,1) -> Jan 23 - Dec 23 | F5: Jan 24 - Dec 24 | G5: Jan 25 - Dec 25 | H5: Jan 26 - Dec 26 | I5: Jan 27 - Dec 27 | J5: Jan 28 - Dec 28 | K5: Jan 29 - Dec 29 | L5: Jan 30 - Dec 30 | M5: Jan 31 - Dec 31
B6: Operating Summary
B7: Effective Gross Income | D7: ='Cash Flows'!F40 -> 0 | E7: ='Cash Flows'!G40 -> 2106779.891 | F7: ='Cash Flows'!H40 -> 2339887.502 | G7: ='Cash Flows'!I40 -> 2504821.503 | H7: ='Cash Flows'!J40 -> 2677442.383 | I7: ='Cash Flows'!K40 -> 2757765.654 | J7: ='Cash Flows'!L40 -> 2840498.624 | K7: ='Cash Flows'!M40 -> 2925713.976 | L7: ='Cash Flows'!N40 -> 3013486.335 | M7: ='Cash Flows'!O40 -> 3103891.93 | N7: =SUM(D7:M7) -> 24270287.8
B8: Operating Expenses | D8: =-'Cash Flows'!F76 -> -133713.75 | E8: =-'Cash Flows'!G76 -> -1109550.044 | F8: =-'Cash Flows'!H76 -> -1235398.384 | G8: =-'Cash Flows'!I76 -> -1356988.912 | H8: =-'Cash Flows'!J76 -> -1431910.002 | I8: =-'Cash Flows'!K76 -> -1471329.244 | J8: =-'Cash Flows'!L76 -> -1526401.721 | K8: =-'Cash Flows'!M76 -> -1572193.8 | L8: =-'Cash Flows'!N76 -> -1619359.678 | M8: =-'Cash Flows'!O76 -> -1667940.536 | N8: =SUM(D8:M8) -> -13124786.07
B9: Operating Reserves | D9: =-'Cash Flows'!F87 -> 0 | E9: =-'Cash Flows'!G87 -> -54402 | F9: =-'Cash Flows'!H87 -> -56034.06 | G9: =-'Cash Flows'!I87 -> -57715.0818 | H9: =-'Cash Flows'!J87 -> -59446.53425 | I9: =-'Cash Flows'!K87 -> -61229.93028 | J9: =-'Cash Flows'!L87 -> -63066.82819 | K9: =-'Cash Flows'!M87 -> -64958.83304 | L9: =-'Cash Flows'!N87 -> -66907.59803 | M9: =-'Cash Flows'!O87 -> -68914.82597 | N9: -552675.6916
B10: Net Operating Income | D10: ='Cash Flows'!F89 -> -133713.75 | E10: ='Cash Flows'!G89 -> 942827.8475 | F10: ='Cash Flows'!H89 -> 1048455.058 | G10: ='Cash Flows'!I89 -> 1090117.509 | H10: ='Cash Flows'!J89 -> 1186085.847 | I10: ='Cash Flows'!K89 -> 1225206.48 | J10: ='Cash Flows'!L89 -> 1251030.074 | K10: ='Cash Flows'!M89 -> 1288561.343 | L10: ='Cash Flows'!N89 -> 1327219.059 | M10: ='Cash Flows'!O89 -> 1367036.568 | N10: 10592826.04
B11: Less: Debt Service | D11: =-'Cash Flows'!F113 -> 0 | E11: =-'Cash Flows'!G113 -> -673207.0279 | F11: =-'Cash Flows'!H113 -> -673207.0279 | G11: =-'Cash Flows'!I113 -> -673207.0279 | H11: =-'Cash Flows'!J113 -> -673207.0279 | I11: =-'Cash Flows'!K113 -> -673207.0279 | J11: =-'Cash Flows'!L113 -> -673207.0279 | K11: =-'Cash Flows'!M113 -> -673207.0279 | L11: =-'Cash Flows'!N113 -> -673207.0279 | M11: =-'Cash Flows'!O113 -> -673207.0279 | N11: -6058863.251
B12: Less: Fees | D12: ='Cash Flows'!F122 -> 0 | E12: ='Cash Flows'!G122 -> 0 | F12: ='Cash Flows'!H122 -> 0 | G12: ='Cash Flows'!I122 -> 0 | H12: ='Cash Flows'!J122 -> 0 | I12: ='Cash Flows'!K122 -> 0 | J12: ='Cash Flows'!L122 -> 0 | K12: ='Cash Flows'!M122 -> 0 | L12: ='Cash Flows'!N122 -> 0 | M12: ='Cash Flows'!O122 -> 0 | N12: 0
B13: Refinance Proceeds | D13: ='Cash Flows'!F121 -> 0 | E13: ='Cash Flows'!G121 -> 0 | F13: ='Cash Flows'!H121 -> 0 | G13: ='Cash Flows'!I121 -> 0 | H13: ='Cash Flows'!J121 -> 0 | I13: ='Cash Flows'!K121 -> 0 | J13: ='Cash Flows'!L121 -> 0 | K13: ='Cash Flows'!M121 -> 0 | L13: ='Cash Flows'!N121 -> 0 | M13: ='Cash Flows'!O121 -> 0 | N13: 0
B14: Cash Flow After Debt Service | D14: ='Cash Flows'!F124 -> -133713.75 | E14: ='Cash Flows'!G124 -> 269620.8196 | F14: ='Cash Flows'!H124 -> 375248.0304 | G14: ='Cash Flows'!I124 -> 416910.4815 | H14: ='Cash Flows'!J124 -> 512878.8188 | I14: ='Cash Flows'!K124 -> 551999.4526 | J14: ='Cash Flows'!L124 -> 577823.0465 | K14: ='Cash Flows'!M124 -> 615354.3154 | L14: ='Cash Flows'!N124 -> 654012.0315 | M14: ='Cash Flows'!O124 -> 693829.5401 | N14: 4533962.786
B15: Capital Expenses | D15: =-'Cash Flows'!F135 -> 0 | E15: =-'Cash Flows'!G135 -> 0 | F15: =-'Cash Flows'!H135 -> 0 | G15: =-'Cash Flows'!I135 -> 0 | H15: =-'Cash Flows'!J135 -> 0 | I15: =-'Cash Flows'!K135 -> 0 | J15: =-'Cash Flows'!L135 -> 0 | K15: =-'Cash Flows'!M135 -> 0 | L15: =-'Cash Flows'!N135 -> 0 | M15: =-'Cash Flows'!O135 -> 0 | N15: 0
B16: Non-Regular Income | D16: ='Cash Flows'!F142 -> 133713.75 | E16: ='Cash Flows'!G142 -> 0 | F16: ='Cash Flows'!H142 -> 0 | G16: ='Cash Flows'!I142 -> 0 | H16: ='Cash Flows'!J142 -> 0 | I16: ='Cash Flows'!K142 -> 0 | J16: ='Cash Flows'!L142 -> 0 | K16: ='Cash Flows'!M142 -> 0 | L16: ='Cash Flows'!N142 -> 0 | M16: ='Cash Flows'!O142 -> 553961.9416 | N16: 687675.6916
B17: =IF(Disposition="Cap Rate","Sale Price Based on "&ROUND(Exit_Rate*100,2)&"% Exit Cap Rate","Sale Price Based on "&ROUND(Exit_Rate*100,2)&"% Annual Growth Rate") -> Sale Price Based on 7% Exit Cap Rate | D17: ='Return Detail'!F$33 -> 0 | E17: ='Return Detail'!G$33 -> 0 | F17: ='Return Detail'!H$33 -> 0 | G17: ='Return Detail'!I$33 -> 0 | H17: ='Return Detail'!J$33 -> 0 | I17: ='Return Detail'!K$33 -> 0 | J17: ='Return Detail'!L$33 -> 0 | K17: ='Return Detail'!M$33 -> 0 | L17: ='Return Detail'!N$33 -> 0 | M17: ='Return Detail'!O$33 -> 21128997.63 | N17: 21128997.63
B18: Less: Mortgage Balance | D18: ='Return Detail'!F$35 -> 0 | E18: ='Return Detail'!G$35 -> 0 | F18: ='Return Detail'!H$35 -> 0 | G18: ='Return Detail'!I$35 -> 0 | H18: ='Return Detail'!J$35 -> 0 | I18: ='Return Detail'!K$35 -> 0 | J18: ='Return Detail'!L$35 -> 0 | K18: ='Return Detail'!M$35 -> 0 | L18: ='Return Detail'!N$35 -> 0 | M18: ='Return Detail'!O$35 -> -8027478.032 | N18: -8027478.032
B19: Less: Cost of Sale | D19: =SUM('Return Detail'!F$34,'Return Detail'!F$36) -> 0 | E19: =SUM('Return Detail'!G$34,'Return Detail'!G$36) -> 0 | F19: =SUM('Return Detail'!H$34,'Return Detail'!H$36) -> 0 | G19: =SUM('Return Detail'!I$34,'Return Detail'!I$36) -> 0 | H19: =SUM('Return Detail'!J$34,'Return Detail'!J$36) -> 0 | I19: =SUM('Return Detail'!K$34,'Return Detail'!K$36) -> 0 | J19: =SUM('Return Detail'!L$34,'Return Detail'!L$36) -> 0 | K19: =SUM('Return Detail'!M$34,'Return Detail'!M$36) -> 0 | L19: =SUM('Return Detail'!N$34,'Return Detail'!N$36) -> 0 | M19: =SUM('Return Detail'!O$34,'Return Detail'!O$36) -> -845159.9051 | N19: -845159.9051
B20: Cash Flow Before Taxes | D20: =SUM(D14:D19) -> 0 | E20: =SUM(E14:E19) -> 269620.8196 | F20: 375248.0304 | G20: 416910.4815 | H20: 512878.8188 | I20: 551999.4526 | J20: 577823.0465 | K20: 615354.3154 | L20: 654012.0315 | M20: 13504151.17 | N20: 17477998.17
B21: Less: Taxes | D21: =SUM('Return Detail'!F74:F76,'Return Detail'!F81:F82) -> 168257.3103 | E21: =SUM('Return Detail'!G74:G76,'Return Detail'!G81:G82) -> -137950.6904 | F21: =SUM('Return Detail'!H74:H76,'Return Detail'!H81:H82) -> -177971.9459 | G21: =SUM('Return Detail'!I74:I76,'Return Detail'!I81:I82) -> -195775.6647 | H21: =SUM('Return Detail'!J74:J76,'Return Detail'!J81:J82) -> -232766.5231 | I21: =SUM('Return Detail'!K74:K76,'Return Detail'!K81:K82) -> -250051.3125 | J21: =SUM('Return Detail'!L74:L76,'Return Detail'!L81:L82) -> -262883.9467 | K21: =SUM('Return Detail'!M74:M76,'Return Detail'!M81:M82) -> -280027.9298 | L21: =SUM('Return Detail'!N74:N76,'Return Detail'!N81:N82) -> -297792.3995 | M21: =SUM('Return Detail'!O74:O76,'Return Detail'!O81:O82) -> -1989421.864 | N21: =SUM(D21:M21) -> -3656384.966
B22: Cash Flow After Taxes | D22: =SUM(D20:D21) -> 168257.3103 | E22: =SUM(E20:E21) -> 131670.1292 | F22: 197276.0845 | G22: 221134.8168 | H22: 280112.2957 | I22: 301948.1401 | J22: 314939.0999 | K22: 335326.3856 | L22: 356219.632 | M22: 11514729.31 | N22: =SUM(D22:M22) -> 13821613.2
B24: Value Summary
B25: =IF(Project_Type="Acquisition","Cap Rate Based on Acquisition Cost","Cap Rate Based on Development Cost") -> Cap Rate Based on Development Cost | D25: =IFERROR(SUM(D7:D8)/Acquisition_Levered,"-") -> -0.0107175551 | E25: 0.07993094079 | F25: 0.08852809063 | G25: 0.09200219901 | H25: 0.09983312799 | I25: 0.1031117077 | J25: 0.1053287785 | K25: 0.1084886712 | L25: 0.1117434016 | M25: 0.1150957787
B26: =IF(Disposition="Cap Rate","Value Based on "&ROUND(Exit_Rate*100,2)&"% Exit Cap Rate","Value Based on "&ROUND(Exit_Rate*100,2)&"% Annual Growth Rate") -> Value Based on 7% Exit Cap Rate | D26: =IFERROR(IF(Disposition="Cap Rate",'Cash Flows'!G$89/Exit_Rate,FV(Exit_Rate,D$4,0,-Acquisition_Gross)),"-") -> 13468969.25 | E26: =IFERROR(IF(Disposition="Cap Rate",'Cash Flows'!H$89/Exit_Rate,FV(Exit_Rate,E$4,0,-Acquisition_Gross)),"-") -> 14977929.4 | F26: =IFERROR(IF(Disposition="Cap Rate",'Cash Flows'!I$89/Exit_Rate,FV(Exit_Rate,F$4,0,-Acquisition_Gross)),"-") -> 15573107.28 | G26: =IFERROR(IF(Disposition="Cap Rate",'Cash Flows'!J$89/Exit_Rate,FV(Exit_Rate,G$4,0,-Acquisition_Gross)),"-") -> 16944083.52 | H26: =IFERROR(IF(Disposition="Cap Rate",'Cash Flows'!K$89/Exit_Rate,FV(Exit_Rate,H$4,0,-Acquisition_Gross)),"-") -> 17502949.72 | I26: =IFERROR(IF(Disposition="Cap Rate",'Cash Flows'!L$89/Exit_Rate,FV(Exit_Rate,I$4,0,-Acquisition_Gross)),"-") -> 17871858.21 | J26: =IFERROR(IF(Disposition="Cap Rate",'Cash Flows'!M$89/Exit_Rate,FV(Exit_Rate,J$4,0,-Acquisition_Gross)),"-") -> 18408019.19 | K26: =IFERROR(IF(Disposition="Cap Rate",'Cash Flows'!N$89/Exit_Rate,FV(Exit_Rate,K$4,0,-Acquisition_Gross)),"-") -> 18960272.28 | L26: =IFERROR(IF(Disposition="Cap Rate",'Cash Flows'!O$89/Exit_Rate,FV(Exit_Rate,L$4,0,-Acquisition_Gross)),"-") -> 19529093.83 | M26: =IFERROR(IF(Disposition="Cap Rate",'Cash Flows'!P$89/Exit_Rate,FV(Exit_Rate,M$4,0,-Acquisition_Gross)),"-") -> 20114965.19
B27: Mortgage Balance (EOY) | D27: =IFERROR(VLOOKUP(D$4,'Loan Amortization'!$B$14:$J$23,9,FALSE),"-") -> 9357107.25 | E27: =IFERROR(VLOOKUP(E$4,'Loan Amortization'!$B$14:$J$23,9,FALSE),"-") -> 9242200.877 | F27: =IFERROR(VLOOKUP(F$4,'Loan Amortization'!$B$14:$J$23,9,FALSE),"-") -> 9120207.33 | G27: =IFERROR(VLOOKUP(G$4,'Loan Amortization'!$B$14:$J$23,9,FALSE),"-") -> 8990689.489 | H27: =IFERROR(VLOOKUP(H$4,'Loan Amortization'!$B$14:$J$23,9,FALSE),"-") -> 8853183.27 | I27: =IFERROR(VLOOKUP(I$4,'Loan Amortization'!$B$14:$J$23,9,FALSE),"-") -> 8707195.969 | J27: =IFERROR(VLOOKUP(J$4,'Loan Amortization'!$B$14:$J$23,9,FALSE),"-") -> 8552204.49 | K27: =IFERROR(VLOOKUP(K$4,'Loan Amortization'!$B$14:$J$23,9,FALSE),"-") -> 8387653.476 | L27: =IFERROR(VLOOKUP(L$4,'Loan Amortization'!$B$14:$J$23,9,FALSE),"-") -> 8212953.316 | M27: =IFERROR(VLOOKUP(M$4,'Loan Amortization'!$B$14:$J$23,9,FALSE),"-") -> 8027478.032 | N27: =IFERROR(VLOOKUP(N$4,'Loan Amortization'!$B$14:$J$23,8,FALSE),"-") -> -
B28: Equity (EOY) | D28: =IFERROR(D26-D27,"-") -> 4111861.999 | E28: =IFERROR(E26-E27,"-") -> 5735728.527 | F28: 6452899.947 | G28: 7953394.035 | H28: 8649766.451 | I28: 9164662.237 | J28: 9855814.699 | K28: 10572618.8 | L28: 11316140.51 | M28: 12087487.16
B30: Operating Ratios
B31: Net Income Multiplier* | D31: =IFERROR(Acquisition_Levered/D10,"-") -> -93.30486207 | E31: 13.23268403 | F31: 11.89954963 | G31: 11.44476893 | H31: 10.51875211 | I31: 10.18289015 | J31: 9.972696305 | K31: 9.682226667 | L31: 9.400213862 | M31: 9.126414971
B32: Operating Expense Ratio | D32: =IFERROR(-D8/D7,"-") -> - | E32: 0.5266568417 | F32: 0.5279734101 | G32: 0.5417507437 | H32: 0.53480516 | I32: 0.5335222162 | J32: 0.5373710476 | K32: 0.5373709845 | L32: 0.5373708382 | M32: 0.5373706861
B33: Cash on Cash Return (Pre Tax) | D33: =IFERROR('Return Detail'!F32/Equity_Amount,"-") -> 0 | E33: =IFERROR('Return Detail'!G32/Equity_Amount,"-") -> 0.08644364515 | F33: =IFERROR('Return Detail'!H32/Equity_Amount,"-") -> 0.1203089866 | G33: =IFERROR('Return Detail'!I32/Equity_Amount,"-") -> 0.1336664646 | H33: =IFERROR('Return Detail'!J32/Equity_Amount,"-") -> 0.1644350562 | I33: =IFERROR('Return Detail'!K32/Equity_Amount,"-") -> 0.1769775972 | J33: =IFERROR('Return Detail'!L32/Equity_Amount,"-") -> 0.1852569489 | K33: =IFERROR('Return Detail'!M32/Equity_Amount,"-") -> 0.1972899206 | L33: =IFERROR('Return Detail'!N32/Equity_Amount,"-") -> 0.2096840447 | M33: =IFERROR('Return Detail'!O32/Equity_Amount,"-") -> 0.4000568066 | N33: ='Cash Flows'!P146 -> 0
B34: Cash on Cash Return (Post Tax) | D34: =IFERROR('Return Detail'!F$83/Equity_Amount,"-") -> 0.05394529714 | E34: ='Cash Flows'!G158 -> 0.04221501123 | F34: ='Cash Flows'!H158 -> 0.06324906165 | G34: ='Cash Flows'!I158 -> 0.07089845534 | H34: ='Cash Flows'!J158 -> 0.08980733732 | I34: ='Cash Flows'!K158 -> 0.09680816904 | J34: ='Cash Flows'!L158 -> 0.1009732254 | K34: ='Cash Flows'!M158 -> 0.107509632 | L34: ='Cash Flows'!N158 -> 0.1142082556 | M34: ='Cash Flows'!O158 -> 0.2984688479 | N34: ='Cash Flows'!P158 -> 0
B35: =IF(Project_Type="Acquisition","*Based on Acquisition Cost","*Based on Development Cost") -> *Based on Development Cost
B37: Lender Ratios
B38: Loan to Value Ratio (EOY) | D38: =IFERROR(D27/D26,"-") -> 0.6947159116 | E38: =IFERROR(E27/E26,"-") -> 0.6170546427 | F38: 0.5856382524 | G38: 0.5306093703 | H38: 0.5058109297 | I38: 0.4872014912 | J38: 0.4645912416 | K38: 0.4423804339 | L38: 0.4205496367 | M38: 0.3990798868
B39: Debt to Equity Ratio (EOY) | D39: =IFERROR(D27/D28,"-") -> 2.275637473 | E39: =IFERROR(E27/E28,"-") -> 1.611338618 | F39: 1.413350184 | G39: 1.130421736 | H39: 1.02351703 | I39: 0.9500836739 | J39: 0.867731867 | K39: 0.7933373589 | L39: 0.7257733594 | M39: 0.6641147103
B40: Debt Service Coverage Ratio | D40: =IFERROR(D$10/-D$11,"-") -> - | E40: =IFERROR(E$10/-E$11,"-") -> 1.400502087 | F40: 1.557403614 | G40: 1.61929015 | H40: 1.761844125 | I40: 1.819954976 | J40: 1.858314044 | K40: 1.91406401 | L40: 1.971487231 | M40: 2.03063324
B41: Break Even Occupancy (Pre Tax) | D41: =IFERROR(SUM('Cash Flows'!F122,'Cash Flows'!F113,'Cash Flows'!F76)/('Cash Flows'!F40/'Cash Flows'!F14),"-") -> - | E41: =IFERROR(SUM('Cash Flows'!G122,'Cash Flows'!G113,'Cash Flows'!G76)/('Cash Flows'!G40/'Cash Flows'!G14),"-") -> 0.5204129789 | F41: =IFERROR(SUM('Cash Flows'!H122,'Cash Flows'!H113,'Cash Flows'!H76)/('Cash Flows'!H40/'Cash Flows'!H14),"-") -> 0.5318250246 | G41: =IFERROR(SUM('Cash Flows'!I122,'Cash Flows'!I113,'Cash Flows'!I76)/('Cash Flows'!I40/'Cash Flows'!I14),"-") -> 0.5446662247 | H41: =IFERROR(SUM('Cash Flows'!J122,'Cash Flows'!J113,'Cash Flows'!J76)/('Cash Flows'!J40/'Cash Flows'!J14),"-") -> 0.5440793027 | I41: =IFERROR(SUM('Cash Flows'!K122,'Cash Flows'!K113,'Cash Flows'!K76)/('Cash Flows'!K40/'Cash Flows'!K14),"-") -> 0.5381237153 | J41: =IFERROR(SUM('Cash Flows'!L122,'Cash Flows'!L113,'Cash Flows'!L76)/('Cash Flows'!L40/'Cash Flows'!L14),"-") -> 0.535866922 | K41: =IFERROR(SUM('Cash Flows'!M122,'Cash Flows'!M113,'Cash Flows'!M76)/('Cash Flows'!M40/'Cash Flows'!M14),"-") -> 0.5310899785 | L41: =IFERROR(SUM('Cash Flows'!N122,'Cash Flows'!N113,'Cash Flows'!N76)/('Cash Flows'!N40/'Cash Flows'!N14),"-") -> 0.5264520837 | M41: =IFERROR(SUM('Cash Flows'!O122,'Cash Flows'!O113,'Cash Flows'!O76)/('Cash Flows'!O40/'Cash Flows'!O14),"-") -> 0.5219492659
B42: Break Even Occupancy (Post Tax) | D42: =IFERROR(SUM('Cash Flows'!F122,'Cash Flows'!F113,'Cash Flows'!F76,'Cash Flows'!F152)/('Cash Flows'!F40/'Cash Flows'!F14),"-") -> - | E42: =IFERROR(SUM('Cash Flows'!G122,'Cash Flows'!G113,'Cash Flows'!G76,'Cash Flows'!G152)/('Cash Flows'!G40/'Cash Flows'!G14),"-") -> 0.4801431458 | F42: =IFERROR(SUM('Cash Flows'!H122,'Cash Flows'!H113,'Cash Flows'!H76,'Cash Flows'!H152)/('Cash Flows'!H40/'Cash Flows'!H14),"-") -> 0.4822338761 | G42: =IFERROR(SUM('Cash Flows'!I122,'Cash Flows'!I113,'Cash Flows'!I76,'Cash Flows'!I152)/('Cash Flows'!I40/'Cash Flows'!I14),"-") -> 0.4921430223 | H42: =IFERROR(SUM('Cash Flows'!J122,'Cash Flows'!J113,'Cash Flows'!J76,'Cash Flows'!J152)/('Cash Flows'!J40/'Cash Flows'!J14),"-") -> 0.4839194893 | I42: =IFERROR(SUM('Cash Flows'!K122,'Cash Flows'!K113,'Cash Flows'!K76,'Cash Flows'!K152)/('Cash Flows'!K40/'Cash Flows'!K14),"-") -> 0.4753788958 | J42: =IFERROR(SUM('Cash Flows'!L122,'Cash Flows'!L113,'Cash Flows'!L76,'Cash Flows'!L152)/('Cash Flows'!L40/'Cash Flows'!L14),"-") -> 0.4718233454 | K42: =IFERROR(SUM('Cash Flows'!M122,'Cash Flows'!M113,'Cash Flows'!M76,'Cash Flows'!M152)/('Cash Flows'!M40/'Cash Flows'!M14),"-") -> 0.464856803 | L42: =IFERROR(SUM('Cash Flows'!N122,'Cash Flows'!N113,'Cash Flows'!N76,'Cash Flows'!N152)/('Cash Flows'!N40/'Cash Flows'!N14),"-") -> 0.4580687172 | M42: =IFERROR(SUM('Cash Flows'!O122,'Cash Flows'!O113,'Cash Flows'!O76,'Cash Flows'!O152)/('Cash Flows'!O40/'Cash Flows'!O14),"-") -> 0.4513074119
B43: Debt Yield | D43: =IFERROR(D10/D27,"-") -> -0.01429007346 | E43: 0.1020133473 | F43: 0.114959564 | G43: 0.1212496006 | H43: 0.1339728107 | I43: 0.140711945 | J43: 0.1462815904 | K43: 0.1536259631 | L43: 0.1616007066 | M43: 0.1702946508
B45: ="Performance Summary over " & Hold & " Years" -> Performance Summary over 10 Years | D45: Pre Tax | E45: Post Tax
B46: Initial Equity | D46: =-Equity_Amount -> -3119035.75 | E46: =-Equity_Amount -> -3119035.75
B47: Operating Cash Flows | D47: =SUM('Return Detail'!$F$32:$O$32) -> 5221638.478 | E47: =SUM('Return Detail'!$F$83:$O$83) -> 3237818.901
B48: Net Reversion Proceeds | D48: =SUM('Return Detail'!$F$33:$O$36) -> 12256359.69 | E48: =SUM('Return Detail'!$F$84:$O$84) -> 10583794.3
B49: Net Cash Flow | D49: =SUM(D46:D48) -> 14358962.42 | E49: =SUM(E46:E48) -> 10702577.45
B50: ="Net Present Value at "&ROUND(Equity_Rate*100,2)&"%" -> Net Present Value at 8% | D50: ='Return Detail'!$C$41 -> 5665170.992 | E50: ='Return Detail'!$C$89 -> 3726383.534
B51: Leveraged IRR | D51: ='Return Detail'!$C$42 -> 0.2220086534 | E51: ='Return Detail'!C91 -> 0.1824690735
B56: www.realpropmetrics.com
B57: ="Version: "&Version -> Version: 9.42 H | © 2022
B58: =TODAY() -> 2022-02-23
B59: This pro forma does not constitute tax advice. Please consult a professional tax advisor.

Sheet Return Detail
B2: =Project_Name&" - Project Return Details" -> New Hospitality Project - Project Return Details
B4: Unlevered Returns
F5: 1 | G5: 2 | H5: 3 | I5: 4 | J5: 5 | K5: 6 | L5: 7 | M5: 8 | N5: 9 | O5: 10
B6: Net Operating Income | F6: =IF(F$5<=Hold,'Cash Flows'!F$89,0) -> -133713.75 | G6: =IF(G$5<=Hold,'Cash Flows'!G$89,0) -> 942827.8475 | H6: =IF(H$5<=Hold,'Cash Flows'!H$89,0) -> 1048455.058 | I6: =IF(I$5<=Hold,'Cash Flows'!I$89,0) -> 1090117.509 | J6: =IF(J$5<=Hold,'Cash Flows'!J$89,0) -> 1186085.847 | K6: =IF(K$5<=Hold,'Cash Flows'!K$89,0) -> 1225206.48 | L6: =IF(L$5<=Hold,'Cash Flows'!L$89,0) -> 1251030.074 | M6: =IF(M$5<=Hold,'Cash Flows'!M$89,0) -> 1288561.343 | N6: =IF(N$5<=Hold,'Cash Flows'!N$89,0) -> 1327219.059 | O6: =IF(O$5<=Hold,'Cash Flows'!O$89,0) -> 1367036.568
B7: Less: Net Capital Expenses | F7: =IF(F$5<=Hold,'Cash Flows'!F$135*-1,0) -> 0 | G7: =IF(G$5<=Hold,'Cash Flows'!G$135*-1,0) -> 0 | H7: =IF(H$5<=Hold,'Cash Flows'!H$135*-1,0) -> 0 | I7: =IF(I$5<=Hold,'Cash Flows'!I$135*-1,0) -> 0 | J7: =IF(J$5<=Hold,'Cash Flows'!J$135*-1,0) -> 0 | K7: =IF(K$5<=Hold,'Cash Flows'!K$135*-1,0) -> 0 | L7: =IF(L$5<=Hold,'Cash Flows'!L$135*-1,0) -> 0 | M7: =IF(M$5<=Hold,'Cash Flows'!M$135*-1,0) -> 0 | N7: =IF(N$5<=Hold,'Cash Flows'!N$135*-1,0) -> 0 | O7: =IF(O$5<=Hold,'Cash Flows'!O$135*-1,0) -> 0
B8: Non-Regular Income | F8: =IF(F5>Hold,0,'Cash Flows'!F142) -> 133713.75 | G8: =IF(G5>Hold,0,'Cash Flows'!G142) -> 0 | H8: =IF(H5>Hold,0,'Cash Flows'!H142) -> 0 | I8: =IF(I5>Hold,0,'Cash Flows'!I142) -> 0 | J8: =IF(J5>Hold,0,'Cash Flows'!J142) -> 0 | K8: =IF(K5>Hold,0,'Cash Flows'!K142) -> 0 | L8: =IF(L5>Hold,0,'Cash Flows'!L142) -> 0 | M8: =IF(M5>Hold,0,'Cash Flows'!M142) -> 0 | N8: =IF(N5>Hold,0,'Cash Flows'!N142) -> 0 | O8: =IF(O5>Hold,0,'Cash Flows'!O142) -> 553961.9416
B9: Operating Cash Flow | F9: =SUM(F6:F8) -> 0 | G9: =SUM(G6:G8) -> 942827.8475 | H9: 1048455.058 | I9: 1090117.509 | J9: 1186085.847 | K9: 1225206.48 | L9: 1251030.074 | M9: 1288561.343 | N9: 1327219.059 | O9: 1920998.51
B10: Reversion Cash Flow | F10: =IFERROR(IF(F$5=Hold,IF(Disposition="Cap Rate",'Cash Flows'!G$81/Exit_Rate,FV(Exit_Rate,Hold,0,-Acquisition_Gross)),0),0) -> 0 | G10: =IFERROR(IF(G$5=Hold,IF(Disposition="Cap Rate",'Cash Flows'!H$81/Exit_Rate,FV(Exit_Rate,Hold,0,-Acquisition_Gross)),0),0) -> 0 | H10: =IFERROR(IF(H$5=Hold,IF(Disposition="Cap Rate",'Cash Flows'!I$81/Exit_Rate,FV(Exit_Rate,Hold,0,-Acquisition_Gross)),0),0) -> 0 | I10: =IFERROR(IF(I$5=Hold,IF(Disposition="Cap Rate",'Cash Flows'!J$81/Exit_Rate,FV(Exit_Rate,Hold,0,-Acquisition_Gross)),0),0) -> 0 | J10: =IFERROR(IF(J$5=Hold,IF(Disposition="Cap Rate",'Cash Flows'!K$81/Exit_Rate,FV(Exit_Rate,Hold,0,-Acquisition_Gross)),0),0) -> 0 | K10: =IFERROR(IF(K$5=Hold,IF(Disposition="Cap Rate",'Cash Flows'!L$81/Exit_Rate,FV(Exit_Rate,Hold,0,-Acquisition_Gross)),0),0) -> 0 | L10: =IFERROR(IF(L$5=Hold,IF(Disposition="Cap Rate",'Cash Flows'!M$81/Exit_Rate,FV(Exit_Rate,Hold,0,-Acquisition_Gross)),0),0) -> 0 | M10: =IFERROR(IF(M$5=Hold,IF(Disposition="Cap Rate",'Cash Flows'!N$81/Exit_Rate,FV(Exit_Rate,Hold,0,-Acquisition_Gross)),0),0) -> 0 | N10: =IFERROR(IF(N$5=Hold,IF(Disposition="Cap Rate",'Cash Flows'!O$81/Exit_Rate,FV(Exit_Rate,Hold,0,-Acquisition_Gross)),0),0) -> 0 | O10: =IFERROR(IF(O$5=Hold,IF(Disposition="Cap Rate",'Cash Flows'!P$81/Exit_Rate,FV(Exit_Rate,Hold,0,-Acquisition_Gross)),0),0) -> 21128997.63
B11: Less: Cost of Sale | F11: =F10*-Sale_Cost -> 0 | G11: 0 | H11: 0 | I11: 0 | J11: 0 | K11: 0 | L11: 0 | M11: 0 | N11: 0 | O11: -845159.9051
B12: Net Cash Flow | E12: =-Acquisition_Unlevered -> -12476143 | F12: =SUM(F9:F11) -> 0 | G12: 942827.8475 | H12: 1048455.058 | I12: 1090117.509 | J12: 1186085.847 | K12: 1225206.48 | L12: 1251030.074 | M12: 1288561.343 | N12: 1327219.059 | O12: 22204836.23
B13: Cash on Cash Return | F13: =IFERROR(F9/Acquisition_Unlevered,"-") -> 0 | G13: 0.07557045855 | H13: 0.08403679392 | I13: 0.0873761634 | J13: 0.09506831131 | K13: 0.09820394656 | L13: 0.1002737845 | M13: 0.1032820274 | N13: 0.1063805584 | O13: 0.1539737489
B15: Net Cash Flow | C15: =SUM(E12:O12) -> 19088196.45
B16: ="Net Present Value at "&ROUND(Equity_Rate*100,2)&"%" -> Net Present Value at 8% | C16: =SUM(E12,NPV(Equity_Rate,F12:O12)) -> 3920273.406
B17: Unleveraged IRR | C17: =IFERROR(IRR(E12:O12),"-") -> 0.116858544
B18: Avg. Operating Cash on Cash | C18: =IFERROR(((SUM($F$9:$O$9)/Hold)/Acquisition_Unlevered),"-") -> 0.0904165793
B19: Avg. Cash on Cash | C19: =IFERROR(((SUM($F$12:$O$12)/Hold)/Acquisition_Unlevered),"-") -> 0.2529975767
B20: ="Unleveraged PV at " & TEXT(Equity_Rate,"#%") & IF(LEN(C20)>=7," Rounded ($10,000's)"," Rounded ($1,000's)") -> Unleveraged PV at 8% Rounded ($10,000's) | C20: =IF(LEN(INT(NPV(Equity_Rate,F12:O12)))>=7,ROUND(NPV(Equity_Rate,F12:O12),-4),ROUND(NPV(Equity_Rate,F12:O12),-3)) -> 16400000
B21: =IF(Property_Use="Commercial","Per Square Feet","Per Unit") -> Per Unit | C21: =IFERROR(C20/Size_Total,0) -> 195238.0952
B23: Levered Cash Flow
F24: 1 | G24: 2 | H24: 3 | I24: 4 | J24: 5 | K24: 6 | L24: 7 | M24: 8 | N24: 9 | O24: 10
B25: Net Operating Income | F25: =F6 -> -133713.75 | G25: =G6 -> 942827.8475 | H25: 1048455.058 | I25: 1090117.509 | J25: 1186085.847 | K25: 1225206.48 | L25: 1251030.074 | M25: 1288561.343 | N25: 1327219.059 | O25: 1367036.568
B26: Refinance Proceeds | F26: =IF(Hold<F24,0,IF(ROUNDUP((Loan_IO_Term+1)/12,0)=F24,Loan_Amount_Amortizing-Loan_Amount,0)) -> 0 | G26: 0 | H26: 0 | I26: 0 | J26: 0 | K26: 0 | L26: 0 | M26: 0 | N26: 0 | O26: 0
B27: Less: Debt Service | F27: =IF(F24<=Hold,-'Cash Flows'!F$113,0) -> 0 | G27: =IF(G24<=Hold,-'Cash Flows'!G$113,0) -> -673207.0279 | H27: =IF(H24<=Hold,-'Cash Flows'!H$113,0) -> -673207.0279 | I27: =IF(I24<=Hold,-'Cash Flows'!I$113,0) -> -673207.0279 | J27: =IF(J24<=Hold,-'Cash Flows'!J$113,0) -> -673207.0279 | K27: =IF(K24<=Hold,-'Cash Flows'!K$113,0) -> -673207.0279 | L27: =IF(L24<=Hold,-'Cash Flows'!L$113,0) -> -673207.0279 | M27: =IF(M24<=Hold,-'Cash Flows'!M$113,0) -> -673207.0279 | N27: =IF(N24<=Hold,-'Cash Flows'!N$113,0) -> -673207.0279 | O27: =IF(O24<=Hold,-'Cash Flows'!O$113,0) -> -673207.0279
B28: Less: Mortgage Origination Fee | F28: =IF(OR(F24>Hold,Loan_IO_Approval="No"),0,IF(AND(Loan_IO_Term<>0,(Loan_IO_Term+1)/12<=F24,(Loan_IO_Term+1)/12>F24-1),Loan_Amor_Fee*-Loan_Amount_Amortizing,0)) -> 0 | G28: 0 | H28: 0 | I28: 0 | J28: 0 | K28: 0 | L28: 0 | M28: 0 | N28: 0 | O28: 0
B29: Cash Flow After Debt Service | F29: =SUM(F25:F28) -> -133713.75 | G29: =SUM(G25:G28) -> 269620.8196 | H29: 375248.0304 | I29: 416910.4815 | J29: 512878.8188 | K29: 551999.4526 | L29: 577823.0465 | M29: 615354.3154 | N29: 654012.0315 | O29: 693829.5401
B30: Less: Net Capital Expenses | F30: =F$7 -> 0 | G30: =G$7 -> 0 | H30: 0 | I30: 0 | J30: 0 | K30: 0 | L30: 0 | M30: 0 | N30: 0 | O30: 0
B31: Non-Regular Income | F31: =F8 -> 133713.75 | G31: =G8 -> 0 | H31: 0 | I31: 0 | J31: 0 | K31: 0 | L31: 0 | M31: 0 | N31: 0 | O31: 553961.9416
B32: Distributable Cash Flow | F32: =SUM(F29:F31) -> 0 | G32: =SUM(G29:G31) -> 269620.8196 | H32: 375248.0304 | I32: 416910.4815 | J32: 512878.8188 | K32: 551999.4526 | L32: 577823.0465 | M32: 615354.3154 | N32: 654012.0315 | O32: 1247791.482
B33: Reversion Cash Flow | F33: =F10 -> 0 | G33: =G10 -> 0 | H33: 0 | I33: 0 | J33: 0 | K33: 0 | L33: 0 | M33: 0 | N33: 0 | O33: 21128997.63
B34: Less: Cost of Sale | F34: =F33*-Sale_Cost -> 0 | G34: 0 | H34: 0 | I34: 0 | J34: 0 | K34: 0 | L34: 0 | M34: 0 | N34: 0 | O34: -845159.9051
B35: Less: Mortgage Balance | F35: =IF(F$24=Hold,-VLOOKUP(F$24,Amortization_Schedule_Annual,9,FALSE),0) -> 0 | G35: 0 | H35: 0 | I35: 0 | J35: 0 | K35: 0 | L35: 0 | M35: 0 | N35: 0 | O35: -8027478.032
B36: Less: Mortgage Exit Fee | F36: =F35*Loan_Exit_Fee -> 0 | G36: =G35*Loan_Exit_Fee -> 0 | H36: 0 | I36: 0 | J36: 0 | K36: 0 | L36: 0 | M36: 0 | N36: 0 | O36: 0
B37: Net Cash Flow | E37: =-Equity_Amount -> -3119035.75 | F37: =SUM(F32:F36) -> 0 | G37: 269620.8196 | H37: 375248.0304 | I37: 416910.4815 | J37: 512878.8188 | K37: 551999.4526 | L37: 577823.0465 | M37: 615354.3154 | N37: 654012.0315 | O37: 13504151.17
B38: Cash on Cash Return | F38: =IFERROR(F32/Equity_Amount,"-") -> 0 | G38: 0.08644364515 | H38: 0.1203089866 | I38: 0.1336664646 | J38: 0.1644350562 | K38: 0.1769775972 | L38: 0.1852569489 | M38: 0.1972899206 | N38: 0.2096840447 | O38: 0.4000568066
B40: Net Leveraged Cash Flow | C40: =SUM(E37:O37) -> 14358962.42
B41: ="Net Present Value at "&ROUND(Equity_Rate*100,2)&"%" -> Net Present Value at 8% | C41: =SUM(E37,NPV(Equity_Rate,F37:O37)) -> 5665170.992
B42: Leveraged IRR | C42: =IFERROR(IRR(E37:O37),"-") -> 0.2220086534
B43: Avg. Operating Cash on Cash | C43: =IFERROR(((SUM($F$32:$O$32)/Hold)/-E37),"-") -> 0.167411947
B44: Avg. Cash on Cash | C44: =IFERROR(((SUM($F$37:$O$37)/Hold)/-E37),"-") -> 0.5603654325
B45: ="Present Value of Cash Flows at "&ROUND(Equity_Rate*100,0)&"%" -> Present Value of Cash Flows at 8% | C45: =NPV(Equity_Rate,F37:O37) -> 8784206.742
B46: Plus: Original Loan Amount | C46: =Loan_Amount -> 9357107.25
B47: Total Leveraged Present Value | C47: =SUM(C45:C46) -> 18141313.99
B48: =IF(LEN(C48)>=7,"Rounded ($10,000's)","Rounded ($1,000's)") -> Rounded ($10,000's) | C48: =IF(LEN(INT(C47))>=7,ROUND(C47,-4),ROUND(C47,-3)) -> 18140000
B49: =IF(Property_Use="Commercial","Per Square Feet","Per Unit") -> Per Unit | C49: =IFERROR(C48/Size_Total,0) -> 215952.381
B51: After Tax Returns
F52: 1 | G52: 2 | H52: 3 | I52: 4 | J52: 5 | K52: 6 | L52: 7 | M52: 8 | N52: 9 | O52: 10
B53: Basis Calculation
B54: Basis at Acquisition | F54: =IF(F52=Hold,Acquisition_Unlevered,0) -> 0 | G54: 0 | H54: 0 | I54: 0 | J54: 0 | K54: 0 | L54: 0 | M54: 0 | N54: 0 | O54: 12476143
B55: + Capital Additions | F55: =IF(F52=Hold,SUM('Cash Flows'!$F$130:F$130),0) -> 0 | G55: =IF(G52=Hold,SUM('Cash Flows'!$F$130:G$130),0) -> 0 | H55: =IF(H52=Hold,SUM('Cash Flows'!$F$130:H$130),0) -> 0 | I55: =IF(I52=Hold,SUM('Cash Flows'!$F$130:I$130),0) -> 0 | J55: =IF(J52=Hold,SUM('Cash Flows'!$F$130:J$130),0) -> 0 | K55: =IF(K52=Hold,SUM('Cash Flows'!$F$130:K$130),0) -> 0 | L55: =IF(L52=Hold,SUM('Cash Flows'!$F$130:L$130),0) -> 0 | M55: =IF(M52=Hold,SUM('Cash Flows'!$F$130:M$130),0) -> 0 | N55: =IF(N52=Hold,SUM('Cash Flows'!$F$130:N$130),0) -> 0 | O55: =IF(O52=Hold,SUM('Cash Flows'!$F$130:O$130),0) -> 0
B56: Cost Recovery (Depreciation) Taken | F56: =IF(F52=Hold,SUM('Cash Flows'!$F$149:F$149)*-1,0) -> 0 | G56: =IF(G52=Hold,SUM('Cash Flows'!$F$149:G$149)*-1,0) -> 0 | H56: =IF(H52=Hold,SUM('Cash Flows'!$F$149:H$149)*-1,0) -> 0 | I56: =IF(I52=Hold,SUM('Cash Flows'!$F$149:I$149)*-1,0) -> 0 | J56: =IF(J52=Hold,SUM('Cash Flows'!$F$149:J$149)*-1,0) -> 0 | K56: =IF(K52=Hold,SUM('Cash Flows'!$F$149:K$149)*-1,0) -> 0 | L56: =IF(L52=Hold,SUM('Cash Flows'!$F$149:L$149)*-1,0) -> 0 | M56: =IF(M52=Hold,SUM('Cash Flows'!$F$149:M$149)*-1,0) -> 0 | N56: =IF(N52=Hold,SUM('Cash Flows'!$F$149:N$149)*-1,0) -> 0 | O56: =IF(O52=Hold,SUM('Cash Flows'!$F$149:O$149)*-1,0) -> -444105.7767
B57: Adjusted Basis at Sale | F57: =SUM(F54:F56) -> 0 | G57: =SUM(G54:G56) -> 0 | H57: 0 | I57: 0 | J57: 0 | K57: 0 | L57: 0 | M57: 0 | N57: 0 | O57: 12032037.22
B59: Capital Gain Calculation
B60: Sale Price | F60: =F10 -> 0 | G60: 0 | H60: 0 | I60: 0 | J60: 0 | K60: 0 | L60: 0 | M60: 0 | N60: 0 | O60: 21128997.63
B61: Less Cost of Sale | F61: =F11 -> 0 | G61: 0 | H61: 0 | I61: 0 | J61: 0 | K61: 0 | L61: 0 | M61: 0 | N61: 0 | O61: -845159.9051
B62: Less Adjusted Basis at Sale | F62: =IF(F52=Hold,SUM($F$57:F57)*-1,0) -> 0 | G62: =IF(G52=Hold,SUM($F$57:G57)*-1,0) -> 0 | H62: =IF(H52=Hold,SUM($F$57:H57)*-1,0) -> 0 | I62: =IF(I52=Hold,SUM($F$57:I57)*-1,0) -> 0 | J62: =IF(J52=Hold,SUM($F$57:J57)*-1,0) -> 0 | K62: =IF(K52=Hold,SUM($F$57:K57)*-1,0) -> 0 | L62: =IF(L52=Hold,SUM($F$57:L57)*-1,0) -> 0 | M62: =IF(M52=Hold,SUM($F$57:M57)*-1,0) -> 0 | N62: =IF(N52=Hold,SUM($F$57:N57)*-1,0) -> 0 | O62: =IF(O52=Hold,SUM($F$57:O57)*-1,0) -> -12032037.22
B63: Gain (Loss) | F63: =SUM(F60:F62) -> 0 | G63: =SUM(G60:G62) -> 0 | H63: 0 | I63: 0 | J63: 0 | K63: 0 | L63: 0 | M63: 0 | N63: 0 | O63: 8251800.5
B64: Straight Line Cost Recovery (Limited to Gain) | F64: =IF(F63<=0,0,IF(F63<SUM($F$56:F56)*-1,F63,SUM($F$56:F56)*-1)) -> 0 | G64: =IF(G63<=0,0,IF(G63<SUM($F$56:G56)*-1,G63,SUM($F$56:G56)*-1)) -> 0 | H64: =IF(H63<=0,0,IF(H63<SUM($F$56:H56)*-1,H63,SUM($F$56:H56)*-1)) -> 0 | I64: =IF(I63<=0,0,IF(I63<SUM($F$56:I56)*-1,I63,SUM($F$56:I56)*-1)) -> 0 | J64: =IF(J63<=0,0,IF(J63<SUM($F$56:J56)*-1,J63,SUM($F$56:J56)*-1)) -> 0 | K64: =IF(K63<=0,0,IF(K63<SUM($F$56:K56)*-1,K63,SUM($F$56:K56)*-1)) -> 0 | L64: =IF(L63<=0,0,IF(L63<SUM($F$56:L56)*-1,L63,SUM($F$56:L56)*-1)) -> 0 | M64: =IF(M63<=0,0,IF(M63<SUM($F$56:M56)*-1,M63,SUM($F$56:M56)*-1)) -> 0 | N64: =IF(N63<=0,0,IF(N63<SUM($F$56:N56)*-1,N63,SUM($F$56:N56)*-1)) -> 0 | O64: =IF(O63<=0,0,IF(O63<SUM($F$56:O56)*-1,O63,SUM($F$56:O56)*-1)) -> 444105.7767
B65: Capital Gain from Appreciation | F65: =IF(F63<=0,0,F63-F64) -> 0 | G65: =IF(G63<=0,0,G63-G64) -> 0 | H65: 0 | I65: 0 | J65: 0 | K65: 0 | L65: 0 | M65: 0 | N65: 0 | O65: 7807694.723
B66: Unamortized Loan Fees (Costs) | F66: =IF(F52=Hold,SUM('Cash Flows'!G$150:$P$150)*-1,0) -> 0 | G66: =IF(G52=Hold,SUM('Cash Flows'!H$150:$P$150)*-1,0) -> 0 | H66: =IF(H52=Hold,SUM('Cash Flows'!I$150:$P$150)*-1,0) -> 0 | I66: =IF(I52=Hold,SUM('Cash Flows'!J$150:$P$150)*-1,0) -> 0 | J66: =IF(J52=Hold,SUM('Cash Flows'!K$150:$P$150)*-1,0) -> 0 | K66: =IF(K52=Hold,SUM('Cash Flows'!L$150:$P$150)*-1,0) -> 0 | L66: =IF(L52=Hold,SUM('Cash Flows'!M$150:$P$150)*-1,0) -> 0 | M66: =IF(M52=Hold,SUM('Cash Flows'!N$150:$P$150)*-1,0) -> 0 | N66: =IF(N52=Hold,SUM('Cash Flows'!O$150:$P$150)*-1,0) -> 0 | O66: =IF(O52=Hold,SUM('Cash Flows'!P$150:$P$150)*-1,0) -> 0
B68: Sale Proceeds Calculation
B69: Sale Price | F69: =F60 -> 0 | G69: =G60 -> 0 | H69: 0 | I69: 0 | J69: 0 | K69: 0 | L69: 0 | M69: 0 | N69: 0 | O69: 21128997.63
B70: Less Cost of Sale | F70: =F61 -> 0 | G70: =G61 -> 0 | H70: 0 | I70: 0 | J70: 0 | K70: 0 | L70: 0 | M70: 0 | N70: 0 | O70: -845159.9051
B71: Less Mortgage Exit Fee | F71: =F72*Loan_Exit_Fee -> 0 | G71: 0 | H71: 0 | I71: 0 | J71: 0 | K71: 0 | L71: 0 | M71: 0 | N71: 0 | O71: 0
B72: Less Mortgage Balance | F72: =F35 -> 0 | G72: 0 | H72: 0 | I72: 0 | J72: 0 | K72: 0 | L72: 0 | M72: 0 | N72: 0 | O72: -8027478.032
B73: Sale Proceeds Before Tax | F73: =SUM(F69:F72) -> 0 | G73: =SUM(G69:G72) -> 0 | H73: 0 | I73: 0 | J73: 0 | K73: 0 | L73: 0 | M73: 0 | N73: 0 | O73: 12256359.69
B74: ="Less Tax on Ordinary Income at "&ROUND(Tax_Ordinary*100,0)&"%" -> Less Tax on Ordinary Income at 35% | F74: =-F66*Tax_Ordinary -> 0 | G74: 0 | H74: 0 | I74: 0 | J74: 0 | K74: 0 | L74: 0 | M74: 0 | N74: 0 | O74: 0
B75: ="Less Tax on Cost Recovery Recapture at "&ROUND(Tax_CR*100,0)&"%" -> Less Tax on Cost Recovery Recapture at 25% | F75: =-F64*Tax_CR -> 0 | G75: 0 | H75: 0 | I75: 0 | J75: 0 | K75: 0 | L75: 0 | M75: 0 | N75: 0 | O75: -111026.4442
B76: ="Less Tax on Capital Gain at "&ROUND(Tax_CG*100,0)&"%" -> Less Tax on Capital Gain at 20% | F76: =-F65*Tax_CG -> 0 | G76: 0 | H76: 0 | I76: 0 | J76: 0 | K76: 0 | L76: 0 | M76: 0 | N76: 0 | O76: -1561538.945
B77: Sale Proceeds After Tax | F77: =SUM(F73:F76) -> 0 | G77: =SUM(G73:G76) -> 0 | H77: 0 | I77: 0 | J77: 0 | K77: 0 | L77: 0 | M77: 0 | N77: 0 | O77: 10583794.3
B79: Proceeds After Taxes
B80: Cash Flow Before Taxes | F80: =IF(F$52<=Hold,'Cash Flows'!F$144,0) -> 0 | G80: =IF(G$52<=Hold,'Cash Flows'!G$144,0) -> 269620.8196 | H80: =IF(H$52<=Hold,'Cash Flows'!H$144,0) -> 375248.0304 | I80: =IF(I$52<=Hold,'Cash Flows'!I$144,0) -> 416910.4815 | J80: =IF(J$52<=Hold,'Cash Flows'!J$144,0) -> 512878.8188 | K80: =IF(K$52<=Hold,'Cash Flows'!K$144,0) -> 551999.4526 | L80: =IF(L$52<=Hold,'Cash Flows'!L$144,0) -> 577823.0465 | M80: =IF(M$52<=Hold,'Cash Flows'!M$144,0) -> 615354.3154 | N80: =IF(N$52<=Hold,'Cash Flows'!N$144,0) -> 654012.0315 | O80: =IF(O$52<=Hold,'Cash Flows'!O$144,0) -> 1247791.482
B81: Less: Annual Operating Tax Liability | F81: =IF(F$52<=Hold,'Cash Flows'!F152,0) -> 168257.3103 | G81: =IF(G$52<=Hold,'Cash Flows'!G152,0) -> -137950.6904 | H81: =IF(H$52<=Hold,'Cash Flows'!H152,0) -> -177971.9459 | I81: =IF(I$52<=Hold,'Cash Flows'!I152,0) -> -195775.6647 | J81: =IF(J$52<=Hold,'Cash Flows'!J152,0) -> -232766.5231 | K81: =IF(K$52<=Hold,'Cash Flows'!K152,0) -> -250051.3125 | L81: =IF(L$52<=Hold,'Cash Flows'!L152,0) -> -262883.9467 | M81: =IF(M$52<=Hold,'Cash Flows'!M152,0) -> -280027.9298 | N81: =IF(N$52<=Hold,'Cash Flows'!N152,0) -> -297792.3995 | O81: =IF(O$52<=Hold,'Cash Flows'!O152,0) -> -316856.4747
B82: Draw from Operating Reserve | F82: =IF(F$52<=Hold,'Cash Flows'!F154,0) -> 0 | G82: =IF(G$52<=Hold,'Cash Flows'!G154,0) -> 0 | H82: =IF(H$52<=Hold,'Cash Flows'!H154,0) -> 0 | I82: =IF(I$52<=Hold,'Cash Flows'!I154,0) -> 0 | J82: =IF(J$52<=Hold,'Cash Flows'!J154,0) -> 0 | K82: =IF(K$52<=Hold,'Cash Flows'!K154,0) -> 0 | L82: =IF(L$52<=Hold,'Cash Flows'!L154,0) -> 0 | M82: =IF(M$52<=Hold,'Cash Flows'!M154,0) -> 0 | N82: =IF(N$52<=Hold,'Cash Flows'!N154,0) -> 0 | O82: =IF(O$52<=Hold,'Cash Flows'!O154,0) -> 0
B83: Cash Flow After Taxes | F83: =SUM(F80:F82) -> 168257.3103 | G83: =SUM(G80:G82) -> 131670.1292 | H83: 197276.0845 | I83: 221134.8168 | J83: 280112.2957 | K83: 301948.1401 | L83: 314939.0999 | M83: 335326.3856 | N83: 356219.632 | O83: 930935.007
B84: Sale Proceeds After Taxes | F84: =F77 -> 0 | G84: =G77 -> 0 | H84: 0 | I84: 0 | J84: 0 | K84: 0 | L84: 0 | M84: 0 | N84: 0 | O84: 10583794.3
B85: Annual Proceeds After Taxes | E85: =-Equity_Amount -> -3119035.75 | F85: =SUM(F83:F84) -> 168257.3103 | G85: =SUM(G83:G84) -> 131670.1292 | H85: 197276.0845 | I85: 221134.8168 | J85: 280112.2957 | K85: 301948.1401 | L85: 314939.0999 | M85: 335326.3856 | N85: 356219.632 | O85: 11514729.31
B86: Cash on Cash Return | F86: =IFERROR(F83/Equity_Amount,"-") -> 0.05394529714 | G86: 0.04221501123 | H86: 0.06324906165 | I86: 0.07089845534 | J86: 0.08980733732 | K86: 0.09680816904 | L86: 0.1009732254 | M86: 0.107509632 | N86: 0.1142082556 | O86: 0.2984688479
B88: Net Cash Flows | C88: =SUM(E85:O85) -> 10702577.45
B89: ="Net Present Value at "&ROUND(Equity_Rate*100,2)&"%" -> Net Present Value at 8% | C89: =SUM(E85,NPV(Equity_Rate,F85:O85)) -> 3726383.534
B90: Effective Tax Rate | C90: =IFERROR(IF(C42=0,0,(C42-C91)/C42),"-") -> 0.1780992733
B91: After Tax Leveraged IRR | C91: =IFERROR(IRR(E85:O85),"-") -> 0.1824690735
B92: Avg. Operating Cash on Cash | C92: =IFERROR((SUM(F83:O83)/Hold)/Equity_Amount,"-") -> 0.1038083293
B93: Avg. Cash on Cash | C93: =IFERROR((SUM(F85:O85)/Hold)/Equity_Amount,"-") -> 0.4431373768
B94: ="Present Value of Cash Flows at "&ROUND(Equity_Rate*100,0)&"%" -> Present Value of Cash Flows at 8% | C94: =NPV(Equity_Rate,F85:O85) -> 6845419.284
B95: Plus: Original Loan Amount | C95: =Loan_Amount -> 9357107.25
B96: Total After Tax Leveraged Present Value | C96: =SUM(C94:C95) -> 16202526.53
B97: =IF(LEN(C97)>=7,"Rounded ($10,000's)","Rounded ($1,000's)") -> Rounded ($10,000's) | C97: =IF(LEN(INT(C96))>=7,ROUND(C96,-4),ROUND(C96,-3)) -> 16200000
B98: =IF(Property_Use="Commercial","Per Square Feet","Per Unit") -> Per Unit | C98: =IFERROR(C97/Size_Total,0) -> 192857.1429
B102: www.realpropmetrics.com
B103: ="Version: "&Version -> Version: 9.42 H | © 2022
B104: =TODAY() -> 2022-02-23
B105: This pro forma does not constitute tax advice. Please consult a professional tax advisor.

Sheet Loan Amortization
B3: =Project_Name&" - Loan Amortization Schedule" -> New Hospitality Project - Loan Amortization Schedule
C5: Interest Only Loan | H5: Amortizing Loan
C6: Loan Amount | D6: =IF(Loan_IO_Approval="no","-",Loan_Amount) -> 9357107.25 | H6: Loan Amount | I6: =Loan_Amount_Amortizing -> 9357107.25
C7: Term | D7: =IF(Loan_IO_Approval="no","-",Loan_IO_Term) -> 12 | H7: Term | I7: =Loan_Amor_Term -> 360
C8: Rate | D8: =IF(Loan_IO_Approval="no","-",Loan_IO_Rate) -> 0.06 | H8: Amortization | I8: =Loan_Amortization -> 360
C9: Funding Status | D9: =IF(Loan_IO_Approval="no","-",IF(Loan_IO_Status=0,"Fund Up (Default)",Loan_IO_Status)) -> Fund Up | H9: Rate | I9: =Loan_Amor_Rate -> 0.06
H10: Rate Type | I10: =Loan_Amor_Type -> Fixed
B12: Annual Summary
B13: Year | C13: Dates | D13: Loan Type | E13: Effective Rate | F13: Beginning Balance | G13: Interest | H13: Principal | I13: Total Payments | J13: Ending Balance | L13: IO Interest Due | M13: I/O Interest Due | N13: Spent | O13: Ending Budget
B14: 1 | C14: =RPMDateSpan(B14,1) -> Jan 22 - Dec 22 | D14: =IFERROR(RPMAnnualLoanType(B14),"Enable Macros") -> I/O | E14: =IFERROR(RPMAnnualRate(B14,D14,F14,I14,J14),"Enable Macros") -> 0.06 | F14: =VLOOKUP((B14*12)-11,Amortization_Schedule_Monthly,5,FALSE) -> 779758.9375 | G14: =SUM(OFFSET($G$51:$G$62,(B14-1)*12,0)) -> 304105.9856 | H14: =SUM(OFFSET($H$51:$H$62,(B14-1)*12,0)) -> 0 | I14: =SUM(G14:H14) -> 304105.9856 | J14: =VLOOKUP(B14*12,Amortization_Schedule_Monthly,9,FALSE) -> 9357107.25 | L14: =SUM(IF(B14>Hold,0,IF($B$51:$B$170>($B14-1)*12,IF($B$51:$B$170<=$B14*12,IF($D$51:$D$170="I/O",$G$51:$G$170,0),0),0))) -> 304105.9856 | M14: =Loan_IO_IntCarry -> 318760 | N14: =IF(M14>=L14,L14,M14)*-1 -> -304105.9856 | O14: =SUM(M14:N14) -> 14654.01437
B15: 2 | C15: =RPMDateSpan(B15,1) -> Jan 23 - Dec 23 | D15: =IFERROR(RPMAnnualLoanType(B15),"Enable Macros") -> Amortizing | E15: =IFERROR(RPMAnnualRate(B15,D15,F15,I15,J15),"Enable Macros") -> 0.06 | F15: =VLOOKUP((B15*12)-11,Amortization_Schedule_Monthly,5,FALSE) -> 9357107.25 | G15: =SUM(OFFSET($G$51:$G$62,(B15-1)*12,0)) -> 558300.6549 | H15: =SUM(OFFSET($H$51:$H$62,(B15-1)*12,0)) -> 114906.373 | I15: =SUM(G15:H15) -> 673207.0279 | J15: =VLOOKUP(B15*12,Amortization_Schedule_Monthly,9,FALSE) -> 9242200.877 | L15: =SUM(IF(B15>Hold,0,IF($B$51:$B$170>($B15-1)*12,IF($B$51:$B$170<=$B15*12,IF($D$51:$D$170="I/O",$G$51:$G$170,0),0),0))) -> 0 | M15: =O14 -> 14654.01437 | N15: =IF(M15>=L15,L15,M15)*-1 -> 0 | O15: =SUM(M15:N15) -> 14654.01437
B16: 3 | C16: Jan 24 - Dec 24 | D16: =IFERROR(RPMAnnualLoanType(B16),"Enable Macros") -> Amortizing | E16: =IFERROR(RPMAnnualRate(B16,D16,F16,I16,J16),"Enable Macros") -> 0.06 | F16: 9242200.877 | G16: 551213.4813 | H16: 121993.5466 | I16: 673207.0279 | J16: 9120207.33 | L16: =SUM(IF(B16>Hold,0,IF($B$51:$B$170>($B16-1)*12,IF($B$51:$B$170<=$B16*12,IF($D$51:$D$170="I/O",$G$51:$G$170,0),0),0))) -> 0 | M16: =O15 -> 14654.01437 | N16: 0 | O16: 14654.01437
B17: 4 | C17: Jan 25 - Dec 25 | D17: =IFERROR(RPMAnnualLoanType(B17),"Enable Macros") -> Amortizing | E17: =IFERROR(RPMAnnualRate(B17,D17,F17,I17,J17),"Enable Macros") -> 0.06 | F17: 9120207.33 | G17: 543689.1862 | H17: 129517.8416 | I17: 673207.0279 | J17: 8990689.489 | L17: =SUM(IF(B17>Hold,0,IF($B$51:$B$170>($B17-1)*12,IF($B$51:$B$170<=$B17*12,IF($D$51:$D$170="I/O",$G$51:$G$170,0),0),0))) -> 0 | M17: 14654.01437 | N17: 0 | O17: 14654.01437
B18: 5 | C18: Jan 26 - Dec 26 | D18: =IFERROR(RPMAnnualLoanType(B18),"Enable Macros") -> Amortizing | E18: =IFERROR(RPMAnnualRate(B18,D18,F18,I18,J18),"Enable Macros") -> 0.06 | F18: 8990689.489 | G18: 535700.8092 | H18: 137506.2187 | I18: 673207.0279 | J18: 8853183.27 | L18: =SUM(IF(B18>Hold,0,IF($B$51:$B$170>($B18-1)*12,IF($B$51:$B$170<=$B18*12,IF($D$51:$D$170="I/O",$G$51:$G$170,0),0),0))) -> 0 | M18: 14654.01437 | N18: 0 | O18: 14654.01437
B19: 6 | C19: Jan 27 - Dec 27 | D19: =IFERROR(RPMAnnualLoanType(B19),"Enable Macros") -> Amortizing | E19: =IFERROR(RPMAnnualRate(B19,D19,F19,I19,J19),"Enable Macros") -> 0.06 | F19: 8853183.27 | G19: 527219.7265 | H19: 145987.3014 | I19: 673207.0279 | J19: 8707195.969 | L19: =SUM(IF(B19>Hold,0,IF($B$51:$B$170>($B19-1)*12,IF($B$51:$B$170<=$B19*12,IF($D$51:$D$170="I/O",$G$51:$G$170,0),0),0))) -> 0 | M19: 14654.01437 | N19: 0 | O19: 14654.01437
B20: 7 | C20: Jan 28 - Dec 28 | D20: =IFERROR(RPMAnnualLoanType(B20),"Enable Macros") -> Amortizing | E20: =IFERROR(RPMAnnualRate(B20,D20,F20,I20,J20),"Enable Macros") -> 0.06 | F20: 8707195.969 | G20: 518215.5492 | H20: 154991.4787 | I20: 673207.0279 | J20: 8552204.49 | L20: =SUM(IF(B20>Hold,0,IF($B$51:$B$170>($B20-1)*12,IF($B$51:$B$170<=$B20*12,IF($D$51:$D$170="I/O",$G$51:$G$170,0),0),0))) -> 0 | M20: 14654.01437 | N20: 0 | O20: 14654.01437
B21: 8 | C21: Jan 29 - Dec 29 | D21: =IFERROR(RPMAnnualLoanType(B21),"Enable Macros") -> Amortizing | E21: =IFERROR(RPMAnnualRate(B21,D21,F21,I21,J21),"Enable Macros") -> 0.06 | F21: 8552204.49 | G21: 508656.0139 | H21: 164551.014 | I21: 673207.0279 | J21: 8387653.476 | L21: =SUM(IF(B21>Hold,0,IF($B$51:$B$170>($B21-1)*12,IF($B$51:$B$170<=$B21*12,IF($D$51:$D$170="I/O",$G$51:$G$170,0),0),0))) -> 0 | M21: 14654.01437 | N21: 0 | O21: 14654.01437
B22: 9 | C22: Jan 30 - Dec 30 | D22: =IFERROR(RPMAnnualLoanType(B22),"Enable Macros") -> Amortizing | E22: =IFERROR(RPMAnnualRate(B22,D22,F22,I22,J22),"Enable Macros") -> 0.06 | F22: 8387653.476 | G22: 498506.8674 | H22: 174700.1604 | I22: 673207.0279 | J22: 8212953.316 | L22: =SUM(IF(B22>Hold,0,IF($B$51:$B$170>($B22-1)*12,IF($B$51:$B$170<=$B22*12,IF($D$51:$D$170="I/O",$G$51:$G$170,0),0),0))) -> 0 | M22: 14654.01437 | N22: 0 | O22: 14654.01437
B23: 10 | C23: Jan 31 - Dec 31 | D23: =IFERROR(RPMAnnualLoanType(B23),"Enable Macros") -> Amortizing | E23: =IFERROR(RPMAnnualRate(B23,D23,F23,I23,J23),"Enable Macros") -> 0.06 | F23: 8212953.316 | G23: 487731.7438 | H23: 185475.2841 | I23: 673207.0279 | J23: 8027478.032 | L23: =SUM(IF(B23>Hold,0,IF($B$51:$B$170>($B23-1)*12,IF($B$51:$B$170<=$B23*12,IF($D$51:$D$170="I/O",$G$51:$G$170,0),0),0))) -> 0 | M23: 14654.01437 | N23: 0 | O23: 14654.01437
B24: Total | E24: =IFERROR(RATE(Hold*12,-I24/(Hold*12),Loan_Amount,-VLOOKUP(Hold,Amortization_Schedule_Annual,9,FALSE))*12,"-") -> 0.05745173066 | F24: - | G24: =SUMPRODUCT(--($B$14:$B$23<=Hold),G14:G23) -> 5033340.018 | H24: =SUMPRODUCT(--($B$14:$B$23<=Hold),H14:H23) -> 1329629.218 | I24: =SUMPRODUCT(--($B$14:$B$23<=Hold),I14:I23) -> 6362969.237 | J24: -
I44: www.realpropmetrics.com
I45: ="Version: "&Version -> Version: 9.42 H | © 2022
I46: =TODAY() -> 2022-02-23
B49: Monthly Summary
B50: Month | C50: Date | D50: Loan Type | E50: Interest Rate | F50: Beginning Balance | G50: Interest | H50: Principal | I50: Total Payment | J50: Ending Balance
B51: 1 | C51: =RPMDateSpan(B51,3) -> Jan 2022 | D51: =IFERROR(RPMLoanType(B51),"Enable Macros") -> I/O | E51: =IFERROR(RPMInterestRate(B51),"Enable Macros") -> 0.06 | F51: =IFERROR(RPMBeginningBalance(B51,D51),"Enable Macros") -> 779758.9375 | G51: =F51*(RPMCanadian(D51,E51)/12) -> 3898.794688 | H51: =I51-G51 -> 0 | I51: =IFERROR(RPMTotalPayment(B51,D51,E51,F51),"Enable Macros") -> 3898.794688 | J51: =IF(B51<=SUM(Loan_Amortization,Loan_IO_Term),F51-H51,0) -> 779758.9375
B52: 2 | C52: =RPMDateSpan(B52,3) -> Feb 2022 | D52: =IFERROR(RPMLoanType(B52),"Enable Macros") -> I/O | E52: =IFERROR(RPMInterestRate(B52),"Enable Macros") -> 0.06 | F52: =RPMBeginningBalance(B52,D52,J51) -> 1559517.875 | G52: =F52*(RPMCanadian(D52,E52)/12) -> 7797.589375 | H52: =I52-G52 -> 0 | I52: =IFERROR(RPMTotalPayment(B52,D52,E52,F52),"Enable Macros") -> 7797.589375 | J52: =IF(B52<=SUM(Loan_Amortization,Loan_IO_Term),F52-H52,0) -> 1559517.875
B53: 3 | C53: =RPMDateSpan(B53,3) -> Mar 2022 | D53: =IFERROR(RPMLoanType(B53),"Enable Macros") -> I/O | E53: =IFERROR(RPMInterestRate(B53),"Enable Macros") -> 0.06 | F53: =RPMBeginningBalance(B53,D53,J52) -> 2339276.812 | G53: =F53*(RPMCanadian(D53,E53)/12) -> 11696.38406 | H53: =I53-G53 -> 0 | I53: =IFERROR(RPMTotalPayment(B53,D53,E53,F53),"Enable Macros") -> 11696.38406 | J53: =IF(B53<=SUM(Loan_Amortization,Loan_IO_Term),F53-H53,0) -> 2339276.812
B54: 4 | C54: Apr 2022 | D54: =IFERROR(RPMLoanType(B54),"Enable Macros") -> I/O | E54: =IFERROR(RPMInterestRate(B54),"Enable Macros") -> 0.06 | F54: =RPMBeginningBalance(B54,D54,J53) -> 3119035.75 | G54: 15595.17875 | H54: 0 | I54: =IFERROR(RPMTotalPayment(B54,D54,E54,F54),"Enable Macros") -> 15595.17875 | J54: 3119035.75
B55: 5 | C55: May 2022 | D55: =IFERROR(RPMLoanType(B55),"Enable Macros") -> I/O | E55: =IFERROR(RPMInterestRate(B55),"Enable Macros") -> 0.06 | F55: =RPMBeginningBalance(B55,D55,J54) -> 3898794.688 | G55: 19493.97344 | H55: 0 | I55: =IFERROR(RPMTotalPayment(B55,D55,E55,F55),"Enable Macros") -> 19493.97344 | J55: 3898794.688
B56: 6 | C56: Jun 2022 | D56: =IFERROR(RPMLoanType(B56),"Enable Macros") -> I/O | E56: =IFERROR(RPMInterestRate(B56),"Enable Macros") -> 0.06 | F56: =RPMBeginningBalance(B56,D56,J55) -> 4678553.625 | G56: 23392.76812 | H56: 0 | I56: =IFERROR(RPMTotalPayment(B56,D56,E56,F56),"Enable Macros") -> 23392.76812 | J56: 4678553.625
B57: 7 | C57: Jul 2022 | D57: =IFERROR(RPMLoanType(B57),"Enable Macros") -> I/O | E57: =IFERROR(RPMInterestRate(B57),"Enable Macros") -> 0.06 | F57: =RPMBeginningBalance(B57,D57,J56) -> 5458312.562 | G57: 27291.56281 | H57: 0 | I57: =IFERROR(RPMTotalPayment(B57,D57,E57,F57),"Enable Macros") -> 27291.56281 | J57: 5458312.562
B58: 8 | C58: Aug 2022 | D58: =IFERROR(RPMLoanType(B58),"Enable Macros") -> I/O | E58: =IFERROR(RPMInterestRate(B58),"Enable Macros") -> 0.06 | F58: =RPMBeginningBalance(B58,D58,J57) -> 6238071.5 | G58: 31190.3575 | H58: 0 | I58: =IFERROR(RPMTotalPayment(B58,D58,E58,F58),"Enable Macros") -> 31190.3575 | J58: 6238071.5
B59: 9 | C59: Sep 2022 | D59: =IFERROR(RPMLoanType(B59),"Enable Macros") -> I/O | E59: =IFERROR(RPMInterestRate(B59),"Enable Macros") -> 0.06 | F59: =RPMBeginningBalance(B59,D59,J58) -> 7017830.438 | G59: 35089.15219 | H59: 0 | I59: =IFERROR(RPMTotalPayment(B59,D59,E59,F59),"Enable Macros") -> 35089.15219 | J59: 7017830.438
B60: 10 | C60: Oct 2022 | D60: =IFERROR(RPMLoanType(B60),"Enable Macros") -> I/O | E60: =IFERROR(RPMInterestRate(B60),"Enable Macros") -> 0.06 | F60: =RPMBeginningBalance(B60,D60,J59) -> 7797589.375 | G60: 38987.94688 | H60: 0 | I60: =IFERROR(RPMTotalPayment(B60,D60,E60,F60),"Enable Macros") -> 38987.94688 | J60: 7797589.375
B61: 11 | C61: Nov 2022 | D61: =IFERROR(RPMLoanType(B61),"Enable Macros") -> I/O | E61: =IFERROR(RPMInterestRate(B61),"Enable Macros") -> 0.06 | F61: =RPMBeginningBalance(B61,D61,J60) -> 8577348.312 | G61: 42886.74156 | H61: 0 | I61: =IFERROR(RPMTotalPayment(B61,D61,E61,F61),"Enable Macros") -> 42886.74156 | J61: 8577348.312
B62: 12 | C62: Dec 2022 | D62: =IFERROR(RPMLoanType(B62),"Enable Macros") -> I/O | E62: =IFERROR(RPMInterestRate(B62),"Enable Macros") -> 0.06 | F62: =RPMBeginningBalance(B62,D62,J61) -> 9357107.25 | G62: 46785.53625 | H62: 0 | I62: =IFERROR(RPMTotalPayment(B62,D62,E62,F62),"Enable Macros") -> 46785.53625 | J62: 9357107.25
B63: 13 | C63: Jan 2023 | D63: =IFERROR(RPMLoanType(B63),"Enable Macros") -> Amortizing | E63: =IFERROR(RPMInterestRate(B63),"Enable Macros") -> 0.06 | F63: =RPMBeginningBalance(B63,D63,J62) -> 9357107.25 | G63: 46785.53625 | H63: 9315.049406 | I63: =IFERROR(RPMTotalPayment(B63,D63,E63,F63),"Enable Macros") -> 56100.58566 | J63: 9347792.201
B64: 14 | C64: Feb 2023 | D64: =IFERROR(RPMLoanType(B64),"Enable Macros") -> Amortizing | E64: =IFERROR(RPMInterestRate(B64),"Enable Macros") -> 0.06 | F64: =RPMBeginningBalance(B64,D64,J63) -> 9347792.201 | G64: 46738.961 | H64: 9361.624654 | I64: =IFERROR(RPMTotalPayment(B64,D64,E64,F64),"Enable Macros") -> 56100.58566 | J64: 9338430.576
B65: 15 | C65: Mar 2023 | D65: =IFERROR(RPMLoanType(B65),"Enable Macros") -> Amortizing | E65: =IFERROR(RPMInterestRate(B65),"Enable Macros") -> 0.06 | F65: =RPMBeginningBalance(B65,D65,J64) -> 9338430.576 | G65: 46692.15288 | H65: 9408.432777 | I65: =IFERROR(RPMTotalPayment(B65,D65,E65,F65),"Enable Macros") -> 56100.58566 | J65: 9329022.143
B66: 16 | C66: Apr 2023 | D66: =IFERROR(RPMLoanType(B66),"Enable Macros") -> Amortizing | E66: =IFERROR(RPMInterestRate(B66),"Enable Macros") -> 0.06 | F66: =RPMBeginningBalance(B66,D66,J65) -> 9329022.143 | G66: 46645.11072 | H66: 9455.474941 | I66: =IFERROR(RPMTotalPayment(B66,D66,E66,F66),"Enable Macros") -> 56100.58566 | J66: 9319566.668
B67: 17 | C67: May 2023 | D67: =IFERROR(RPMLoanType(B67),"Enable Macros") -> Amortizing | E67: =IFERROR(RPMInterestRate(B67),"Enable Macros") -> 0.06 | F67: =RPMBeginningBalance(B67,D67,J66) -> 9319566.668 | G67: 46597.83334 | H67: 9502.752315 | I67: =IFERROR(RPMTotalPayment(B67,D67,E67,F67),"Enable Macros") -> 56100.58566 | J67: 9310063.916
B68: 18 | C68: Jun 2023 | D68: =IFERROR(RPMLoanType(B68),"Enable Macros") -> Amortizing | E68: =IFERROR(RPMInterestRate(B68),"Enable Macros") -> 0.06 | F68: =RPMBeginningBalance(B68,D68,J67) -> 9310063.916 | G68: 46550.31958 | H68: 9550.266077 | I68: =IFERROR(RPMTotalPayment(B68,D68,E68,F68),"Enable Macros") -> 56100.58566 | J68: 9300513.65
B69: 19 | C69: Jul 2023 | D69: =IFERROR(RPMLoanType(B69),"Enable Macros") -> Amortizing | E69: =IFERROR(RPMInterestRate(B69),"Enable Macros") -> 0.06 | F69: =RPMBeginningBalance(B69,D69,J68) -> 9300513.65 | G69: 46502.56825 | H69: 9598.017407 | I69: =IFERROR(RPMTotalPayment(B69,D69,E69,F69),"Enable Macros") -> 56100.58566 | J69: 9290915.632
B70: 20 | C70: Aug 2023 | D70: =IFERROR(RPMLoanType(B70),"Enable Macros") -> Amortizing | E70: =IFERROR(RPMInterestRate(B70),"Enable Macros") -> 0.06 | F70: =RPMBeginningBalance(B70,D70,J69) -> 9290915.632 | G70: 46454.57816 | H70: 9646.007494 | I70: =IFERROR(RPMTotalPayment(B70,D70,E70,F70),"Enable Macros") -> 56100.58566 | J70: 9281269.625
B71: 21 | C71: Sep 2023 | D71: =IFERROR(RPMLoanType(B71),"Enable Macros") -> Amortizing | E71: =IFERROR(RPMInterestRate(B71),"Enable Macros") -> 0.06 | F71: =RPMBeginningBalance(B71,D71,J70) -> 9281269.625 | G71: 46406.34812 | H71: 9694.237532 | I71: =IFERROR(RPMTotalPayment(B71,D71,E71,F71),"Enable Macros") -> 56100.58566 | J71: 9271575.387
B72: 22 | C72: Oct 2023 | D72: =IFERROR(RPMLoanType(B72),"Enable Macros") -> Amortizing | E72: =IFERROR(RPMInterestRate(B72),"Enable Macros") -> 0.06 | F72: =RPMBeginningBalance(B72,D72,J71) -> 9271575.387 | G72: 46357.87694 | H72: 9742.708719 | I72: =IFERROR(RPMTotalPayment(B72,D72,E72,F72),"Enable Macros") -> 56100.58566 | J72: 9261832.679
B73: 23 | C73: Nov 2023 | D73: =IFERROR(RPMLoanType(B73),"Enable Macros") -> Amortizing | E73: =IFERROR(RPMInterestRate(B73),"Enable Macros") -> 0.06 | F73: =RPMBeginningBalance(B73,D73,J72) -> 9261832.679 | G73: 46309.16339 | H73: 9791.422263 | I73: =IFERROR(RPMTotalPayment(B73,D73,E73,F73),"Enable Macros") -> 56100.58566 | J73: 9252041.256
B74: 24 | C74: Dec 2023 | D74: =IFERROR(RPMLoanType(B74),"Enable Macros") -> Amortizing | E74: =IFERROR(RPMInterestRate(B74),"Enable Macros") -> 0.06 | F74: =RPMBeginningBalance(B74,D74,J73) -> 9252041.256 | G74: 46260.20628 | H74: 9840.379374 | I74: =IFERROR(RPMTotalPayment(B74,D74,E74,F74),"Enable Macros") -> 56100.58566 | J74: 9242200.877
B75: 25 | C75: Jan 2024 | D75: =IFERROR(RPMLoanType(B75),"Enable Macros") -> Amortizing | E75: =IFERROR(RPMInterestRate(B75),"Enable Macros") -> 0.06 | F75: =RPMBeginningBalance(B75,D75,J74) -> 9242200.877 | G75: 46211.00439 | H75: 9889.581271 | I75: =IFERROR(RPMTotalPayment(B75,D75,E75,F75),"Enable Macros") -> 56100.58566 | J75: 9232311.296
B76: 26 | C76: Feb 2024 | D76: =IFERROR(RPMLoanType(B76),"Enable Macros") -> Amortizing | E76: =IFERROR(RPMInterestRate(B76),"Enable Macros") -> 0.06 | F76: =RPMBeginningBalance(B76,D76,J75) -> 9232311.296 | G76: 46161.55648 | H76: 9939.029178 | I76: =IFERROR(RPMTotalPayment(B76,D76,E76,F76),"Enable Macros") -> 56100.58566 | J76: 9222372.267
B77: 27 | C77: Mar 2024 | D77: =IFERROR(RPMLoanType(B77),"Enable Macros") -> Amortizing | E77: =IFERROR(RPMInterestRate(B77),"Enable Macros") -> 0.06 | F77: =RPMBeginningBalance(B77,D77,J76) -> 9222372.267 | G77: 46111.86133 | H77: 9988.724324 | I77: =IFERROR(RPMTotalPayment(B77,D77,E77,F77),"Enable Macros") -> 56100.58566 | J77: 9212383.542
B78: 28 | C78: Apr 2024 | D78: =IFERROR(RPMLoanType(B78),"Enable Macros") -> Amortizing | E78: =IFERROR(RPMInterestRate(B78),"Enable Macros") -> 0.06 | F78: =RPMBeginningBalance(B78,D78,J77) -> 9212383.542 | G78: 46061.91771 | H78: 10038.66795 | I78: =IFERROR(RPMTotalPayment(B78,D78,E78,F78),"Enable Macros") -> 56100.58566 | J78: 9202344.874
B79: 29 | C79: May 2024 | D79: =IFERROR(RPMLoanType(B79),"Enable Macros") -> Amortizing | E79: =IFERROR(RPMInterestRate(B79),"Enable Macros") -> 0.06 | F79: =RPMBeginningBalance(B79,D79,J78) -> 9202344.874 | G79: 46011.72437 | H79: 10088.86128 | I79: =IFERROR(RPMTotalPayment(B79,D79,E79,F79),"Enable Macros") -> 56100.58566 | J79: 9192256.013
B80: 30 | C80: Jun 2024 | D80: =IFERROR(RPMLoanType(B80),"Enable Macros") -> Amortizing | E80: =IFERROR(RPMInterestRate(B80),"Enable Macros") -> 0.06 | F80: =RPMBeginningBalance(B80,D80,J79) -> 9192256.013 | G80: 45961.28007 | H80: 10139.30559 | I80: =IFERROR(RPMTotalPayment(B80,D80,E80,F80),"Enable Macros") -> 56100.58566 | J80: 9182116.707
B81: 31 | C81: Jul 2024 | D81: =IFERROR(RPMLoanType(B81),"Enable Macros") -> Amortizing | E81: =IFERROR(RPMInterestRate(B81),"Enable Macros") -> 0.06 | F81: =RPMBeginningBalance(B81,D81,J80) -> 9182116.707 | G81: 45910.58354 | H81: 10190.00212 | I81: =IFERROR(RPMTotalPayment(B81,D81,E81,F81),"Enable Macros") -> 56100.58566 | J81: 9171926.705
B82: 32 | C82: Aug 2024 | D82: =IFERROR(RPMLoanType(B82),"Enable Macros") -> Amortizing | E82: =IFERROR(RPMInterestRate(B82),"Enable Macros") -> 0.06 | F82: =RPMBeginningBalance(B82,D82,J81) -> 9171926.705 | G82: 45859.63353 | H82: 10240.95213 | I82: =IFERROR(RPMTotalPayment(B82,D82,E82,F82),"Enable Macros") -> 56100.58566 | J82: 9161685.753
B83: 33 | C83: Sep 2024 | D83: =IFERROR(RPMLoanType(B83),"Enable Macros") -> Amortizing | E83: =IFERROR(RPMInterestRate(B83),"Enable Macros") -> 0.06 | F83: =RPMBeginningBalance(B83,D83,J82) -> 9161685.753 | G83: 45808.42877 | H83: 10292.15689 | I83: =IFERROR(RPMTotalPayment(B83,D83,E83,F83),"Enable Macros") -> 56100.58566 | J83: 9151393.596
B84: 34 | C84: Oct 2024 | D84: =IFERROR(RPMLoanType(B84),"Enable Macros") -> Amortizing | E84: =IFERROR(RPMInterestRate(B84),"Enable Macros") -> 0.06 | F84: =RPMBeginningBalance(B84,D84,J83) -> 9151393.596 | G84: 45756.96798 | H84: 10343.61767 | I84: =IFERROR(RPMTotalPayment(B84,D84,E84,F84),"Enable Macros") -> 56100.58566 | J84: 9141049.979
B85: 35 | C85: Nov 2024 | D85: =IFERROR(RPMLoanType(B85),"Enable Macros") -> Amortizing | E85: =IFERROR(RPMInterestRate(B85),"Enable Macros") -> 0.06 | F85: =RPMBeginningBalance(B85,D85,J84) -> 9141049.979 | G85: 45705.24989 | H85: 10395.33576 | I85: =IFERROR(RPMTotalPayment(B85,D85,E85,F85),"Enable Macros") -> 56100.58566 | J85: 9130654.643
B86: 36 | C86: Dec 2024 | D86: =IFERROR(RPMLoanType(B86),"Enable Macros") -> Amortizing | E86: =IFERROR(RPMInterestRate(B86),"Enable Macros") -> 0.06 | F86: =RPMBeginningBalance(B86,D86,J85) -> 9130654.643 | G86: 45653.27321 | H86: 10447.31244 | I86: =IFERROR(RPMTotalPayment(B86,D86,E86,F86),"Enable Macros") -> 56100.58566 | J86: 9120207.33
B87: 37 | C87: Jan 2025 | D87: =IFERROR(RPMLoanType(B87),"Enable Macros") -> Amortizing | E87: =IFERROR(RPMInterestRate(B87),"Enable Macros") -> 0.06 | F87: =RPMBeginningBalance(B87,D87,J86) -> 9120207.33 | G87: 45601.03665 | H87: 10499.549 | I87: =IFERROR(RPMTotalPayment(B87,D87,E87,F87),"Enable Macros") -> 56100.58566 | J87: 9109707.781
B88: 38 | C88: Feb 2025 | D88: =IFERROR(RPMLoanType(B88),"Enable Macros") -> Amortizing | E88: =IFERROR(RPMInterestRate(B88),"Enable Macros") -> 0.06 | F88: =RPMBeginningBalance(B88,D88,J87) -> 9109707.781 | G88: 45548.53891 | H88: 10552.04675 | I88: =IFERROR(RPMTotalPayment(B88,D88,E88,F88),"Enable Macros") -> 56100.58566 | J88: 9099155.735
B89: 39 | C89: Mar 2025 | D89: =IFERROR(RPMLoanType(B89),"Enable Macros") -> Amortizing | E89: =IFERROR(RPMInterestRate(B89),"Enable Macros") -> 0.06 | F89: =RPMBeginningBalance(B89,D89,J88) -> 9099155.735 | G89: 45495.77867 | H89: 10604.80698 | I89: =IFERROR(RPMTotalPayment(B89,D89,E89,F89),"Enable Macros") -> 56100.58566 | J89: 9088550.928
B90: 40 | C90: Apr 2025 | D90: =IFERROR(RPMLoanType(B90),"Enable Macros") -> Amortizing | E90: =IFERROR(RPMInterestRate(B90),"Enable Macros") -> 0.06 | F90: =RPMBeginningBalance(B90,D90,J89) -> 9088550.928 | G90: 45442.75464 | H90: 10657.83102 | I90: =IFERROR(RPMTotalPayment(B90,D90,E90,F90),"Enable Macros") -> 56100.58566 | J90: 9077893.097
B91: 41 | C91: May 2025 | D91: =IFERROR(RPMLoanType(B91),"Enable Macros") -> Amortizing | E91: =IFERROR(RPMInterestRate(B91),"Enable Macros") -> 0.06 | F91: =RPMBeginningBalance(B91,D91,J90) -> 9077893.097 | G91: 45389.46548 | H91: 10711.12017 | I91: =IFERROR(RPMTotalPayment(B91,D91,E91,F91),"Enable Macros") -> 56100.58566 | J91: 9067181.976
B92: 42 | C92: Jun 2025 | D92: =IFERROR(RPMLoanType(B92),"Enable Macros") -> Amortizing | E92: =IFERROR(RPMInterestRate(B92),"Enable Macros") -> 0.06 | F92: =RPMBeginningBalance(B92,D92,J91) -> 9067181.976 | G92: 45335.90988 | H92: 10764.67577 | I92: =IFERROR(RPMTotalPayment(B92,D92,E92,F92),"Enable Macros") -> 56100.58566 | J92: 9056417.301
B93: 43 | C93: Jul 2025 | D93: =IFERROR(RPMLoanType(B93),"Enable Macros") -> Amortizing | E93: =IFERROR(RPMInterestRate(B93),"Enable Macros") -> 0.06 | F93: =RPMBeginningBalance(B93,D93,J92) -> 9056417.301 | G93: 45282.0865 | H93: 10818.49915 | I93: =IFERROR(RPMTotalPayment(B93,D93,E93,F93),"Enable Macros") -> 56100.58566 | J93: 9045598.802
B94: 44 | C94: Aug 2025 | D94: =IFERROR(RPMLoanType(B94),"Enable Macros") -> Amortizing | E94: =IFERROR(RPMInterestRate(B94),"Enable Macros") -> 0.06 | F94: =RPMBeginningBalance(B94,D94,J93) -> 9045598.802 | G94: 45227.99401 | H94: 10872.59165 | I94: =IFERROR(RPMTotalPayment(B94,D94,E94,F94),"Enable Macros") -> 56100.58566 | J94: 9034726.21
B95: 45 | C95: Sep 2025 | D95: =IFERROR(RPMLoanType(B95),"Enable Macros") -> Amortizing | E95: =IFERROR(RPMInterestRate(B95),"Enable Macros") -> 0.06 | F95: =RPMBeginningBalance(B95,D95,J94) -> 9034726.21 | G95: 45173.63105 | H95: 10926.95461 | I95: =IFERROR(RPMTotalPayment(B95,D95,E95,F95),"Enable Macros") -> 56100.58566 | J95: 9023799.255
B96: 46 | C96: Oct 2025 | D96: =IFERROR(RPMLoanType(B96),"Enable Macros") -> Amortizing | E96: =IFERROR(RPMInterestRate(B96),"Enable Macros") -> 0.06 | F96: =RPMBeginningBalance(B96,D96,J95) -> 9023799.255 | G96: 45118.99628 | H96: 10981.58938 | I96: =IFERROR(RPMTotalPayment(B96,D96,E96,F96),"Enable Macros") -> 56100.58566 | J96: 9012817.666
B97: 47 | C97: Nov 2025 | D97: =IFERROR(RPMLoanType(B97),"Enable Macros") -> Amortizing | E97: =IFERROR(RPMInterestRate(B97),"Enable Macros") -> 0.06 | F97: =RPMBeginningBalance(B97,D97,J96) -> 9012817.666 | G97: 45064.08833 | H97: 11036.49733 | I97: =IFERROR(RPMTotalPayment(B97,D97,E97,F97),"Enable Macros") -> 56100.58566 | J97: 9001781.169
B98: 48 | C98: Dec 2025 | D98: =IFERROR(RPMLoanType(B98),"Enable Macros") -> Amortizing | E98: =IFERROR(RPMInterestRate(B98),"Enable Macros") -> 0.06 | F98: =RPMBeginningBalance(B98,D98,J97) -> 9001781.169 | G98: 45008.90584 | H98: 11091.67981 | I98: =IFERROR(RPMTotalPayment(B98,D98,E98,F98),"Enable Macros") -> 56100.58566 | J98: 8990689.489
B99: 49 | C99: Jan 2026 | D99: =IFERROR(RPMLoanType(B99),"Enable Macros") -> Amortizing | E99: =IFERROR(RPMInterestRate(B99),"Enable Macros") -> 0.06 | F99: =RPMBeginningBalance(B99,D99,J98) -> 8990689.489 | G99: 44953.44744 | H99: 11147.13821 | I99: =IFERROR(RPMTotalPayment(B99,D99,E99,F99),"Enable Macros") -> 56100.58566 | J99: 8979542.351
B100: 50 | C100: Feb 2026 | D100: =IFERROR(RPMLoanType(B100),"Enable Macros") -> Amortizing | E100: =IFERROR(RPMInterestRate(B100),"Enable Macros") -> 0.06 | F100: =RPMBeginningBalance(B100,D100,J99) -> 8979542.351 | G100: 44897.71175 | H100: 11202.8739 | I100: =IFERROR(RPMTotalPayment(B100,D100,E100,F100),"Enable Macros") -> 56100.58566 | J100: 8968339.477
B101: 51 | C101: Mar 2026 | D101: =IFERROR(RPMLoanType(B101),"Enable Macros") -> Amortizing | E101: =IFERROR(RPMInterestRate(B101),"Enable Macros") -> 0.06 | F101: =RPMBeginningBalance(B101,D101,J100) -> 8968339.477 | G101: 44841.69738 | H101: 11258.88827 | I101: =IFERROR(RPMTotalPayment(B101,D101,E101,F101),"Enable Macros") -> 56100.58566 | J101: 8957080.588
B102: 52 | C102: Apr 2026 | D102: =IFERROR(RPMLoanType(B102),"Enable Macros") -> Amortizing | E102: =IFERROR(RPMInterestRate(B102),"Enable Macros") -> 0.06 | F102: =RPMBeginningBalance(B102,D102,J101) -> 8957080.588 | G102: 44785.40294 | H102: 11315.18271 | I102: =IFERROR(RPMTotalPayment(B102,D102,E102,F102),"Enable Macros") -> 56100.58566 | J102: 8945765.406
B103: 53 | C103: May 2026 | D103: =IFERROR(RPMLoanType(B103),"Enable Macros") -> Amortizing | E103: =IFERROR(RPMInterestRate(B103),"Enable Macros") -> 0.06 | F103: =RPMBeginningBalance(B103,D103,J102) -> 8945765.406 | G103: 44728.82703 | H103: 11371.75863 | I103: =IFERROR(RPMTotalPayment(B103,D103,E103,F103),"Enable Macros") -> 56100.58566 | J103: 8934393.647
B104: 54 | C104: Jun 2026 | D104: =IFERROR(RPMLoanType(B104),"Enable Macros") -> Amortizing | E104: =IFERROR(RPMInterestRate(B104),"Enable Macros") -> 0.06 | F104: =RPMBeginningBalance(B104,D104,J103) -> 8934393.647 | G104: 44671.96824 | H104: 11428.61742 | I104: =IFERROR(RPMTotalPayment(B104,D104,E104,F104),"Enable Macros") -> 56100.58566 | J104: 8922965.03
B105: 55 | C105: Jul 2026 | D105: =IFERROR(RPMLoanType(B105),"Enable Macros") -> Amortizing | E105: =IFERROR(RPMInterestRate(B105),"Enable Macros") -> 0.06 | F105: =RPMBeginningBalance(B105,D105,J104) -> 8922965.03 | G105: 44614.82515 | H105: 11485.76051 | I105: =IFERROR(RPMTotalPayment(B105,D105,E105,F105),"Enable Macros") -> 56100.58566 | J105: 8911479.269
B106: 56 | C106: Aug 2026 | D106: =IFERROR(RPMLoanType(B106),"Enable Macros") -> Amortizing | E106: =IFERROR(RPMInterestRate(B106),"Enable Macros") -> 0.06 | F106: =RPMBeginningBalance(B106,D106,J105) -> 8911479.269 | G106: 44557.39635 | H106: 11543.18931 | I106: =IFERROR(RPMTotalPayment(B106,D106,E106,F106),"Enable Macros") -> 56100.58566 | J106: 8899936.08
B107: 57 | C107: Sep 2026 | D107: =IFERROR(RPMLoanType(B107),"Enable Macros") -> Amortizing | E107: =IFERROR(RPMInterestRate(B107),"Enable Macros") -> 0.06 | F107: =RPMBeginningBalance(B107,D107,J106) -> 8899936.08 | G107: 44499.6804 | H107: 11600.90526 | I107: =IFERROR(RPMTotalPayment(B107,D107,E107,F107),"Enable Macros") -> 56100.58566 | J107: 8888335.175
B108: 58 | C108: Oct 2026 | D108: =IFERROR(RPMLoanType(B108),"Enable Macros") -> Amortizing | E108: =IFERROR(RPMInterestRate(B108),"Enable Macros") -> 0.06 | F108: =RPMBeginningBalance(B108,D108,J107) -> 8888335.175 | G108: 44441.67587 | H108: 11658.90978 | I108: =IFERROR(RPMTotalPayment(B108,D108,E108,F108),"Enable Macros") -> 56100.58566 | J108: 8876676.265
B109: 59 | C109: Nov 2026 | D109: =IFERROR(RPMLoanType(B109),"Enable Macros") -> Amortizing | E109: =IFERROR(RPMInterestRate(B109),"Enable Macros") -> 0.06 | F109: =RPMBeginningBalance(B109,D109,J108) -> 8876676.265 | G109: 44383.38132 | H109: 11717.20433 | I109: =IFERROR(RPMTotalPayment(B109,D109,E109,F109),"Enable Macros") -> 56100.58566 | J109: 8864959.06
B110: 60 | C110: Dec 2026 | D110: =IFERROR(RPMLoanType(B110),"Enable Macros") -> Amortizing | E110: =IFERROR(RPMInterestRate(B110),"Enable Macros") -> 0.06 | F110: =RPMBeginningBalance(B110,D110,J109) -> 8864959.06 | G110: 44324.7953 | H110: 11775.79035 | I110: =IFERROR(RPMTotalPayment(B110,D110,E110,F110),"Enable Macros") -> 56100.58566 | J110: 8853183.27
B111: 61 | C111: Jan 2027 | D111: =IFERROR(RPMLoanType(B111),"Enable Macros") -> Amortizing | E111: =IFERROR(RPMInterestRate(B111),"Enable Macros") -> 0.06 | F111: =RPMBeginningBalance(B111,D111,J110) -> 8853183.27 | G111: 44265.91635 | H111: 11834.66931 | I111: =IFERROR(RPMTotalPayment(B111,D111,E111,F111),"Enable Macros") -> 56100.58566 | J111: 8841348.601
B112: 62 | C112: Feb 2027 | D112: =IFERROR(RPMLoanType(B112),"Enable Macros") -> Amortizing | E112: =IFERROR(RPMInterestRate(B112),"Enable Macros") -> 0.06 | F112: =RPMBeginningBalance(B112,D112,J111) -> 8841348.601 | G112: 44206.743 | H112: 11893.84265 | I112: =IFERROR(RPMTotalPayment(B112,D112,E112,F112),"Enable Macros") -> 56100.58566 | J112: 8829454.758
B113: 63 | C113: Mar 2027 | D113: =IFERROR(RPMLoanType(B113),"Enable Macros") -> Amortizing | E113: =IFERROR(RPMInterestRate(B113),"Enable Macros") -> 0.06 | F113: =RPMBeginningBalance(B113,D113,J112) -> 8829454.758 | G113: 44147.27379 | H113: 11953.31187 | I113: =IFERROR(RPMTotalPayment(B113,D113,E113,F113),"Enable Macros") -> 56100.58566 | J113: 8817501.446
B114: 64 | C114: Apr 2027 | D114: =IFERROR(RPMLoanType(B114),"Enable Macros") -> Amortizing | E114: =IFERROR(RPMInterestRate(B114),"Enable Macros") -> 0.06 | F114: =RPMBeginningBalance(B114,D114,J113) -> 8817501.446 | G114: 44087.50723 | H114: 12013.07843 | I114: =IFERROR(RPMTotalPayment(B114,D114,E114,F114),"Enable Macros") -> 56100.58566 | J114: 8805488.368
B115: 65 | C115: May 2027 | D115: =IFERROR(RPMLoanType(B115),"Enable Macros") -> Amortizing | E115: =IFERROR(RPMInterestRate(B115),"Enable Macros") -> 0.06 | F115: =RPMBeginningBalance(B115,D115,J114) -> 8805488.368 | G115: 44027.44184 | H115: 12073.14382 | I115: =IFERROR(RPMTotalPayment(B115,D115,E115,F115),"Enable Macros") -> 56100.58566 | J115: 8793415.224
B116: 66 | C116: Jun 2027 | D116: =IFERROR(RPMLoanType(B116),"Enable Macros") -> Amortizing | E116: =IFERROR(RPMInterestRate(B116),"Enable Macros") -> 0.06 | F116: =RPMBeginningBalance(B116,D116,J115) -> 8793415.224 | G116: 43967.07612 | H116: 12133.50954 | I116: =IFERROR(RPMTotalPayment(B116,D116,E116,F116),"Enable Macros") -> 56100.58566 | J116: 8781281.714
B117: 67 | C117: =RPMDateSpan(B117,3) -> Jul 2027 | D117: =IFERROR(RPMLoanType(B117),"Enable Macros") -> Amortizing | E117: =IFERROR(RPMInterestRate(B117),"Enable Macros") -> 0.06 | F117: =RPMBeginningBalance(B117,D117,J116) -> 8781281.714 | G117: =F117*(RPMCanadian(D117,E117)/12) -> 43906.40857 | H117: =I117-G117 -> 12194.17708 | I117: =IFERROR(RPMTotalPayment(B117,D117,E117,F117),"Enable Macros") -> 56100.58566 | J117: =IF(B117<=SUM(Loan_Amortization,Loan_IO_Term),F117-H117,0) -> 8769087.537
B118: 68 | C118: Aug 2027 | D118: =IFERROR(RPMLoanType(B118),"Enable Macros") -> Amortizing | E118: =IFERROR(RPMInterestRate(B118),"Enable Macros") -> 0.06 | F118: =RPMBeginningBalance(B118,D118,J117) -> 8769087.537 | G118: 43845.43769 | H118: 12255.14797 | I118: =IFERROR(RPMTotalPayment(B118,D118,E118,F118),"Enable Macros") -> 56100.58566 | J118: 8756832.389
B119: 69 | C119: Sep 2027 | D119: =IFERROR(RPMLoanType(B119),"Enable Macros") -> Amortizing | E119: =IFERROR(RPMInterestRate(B119),"Enable Macros") -> 0.06 | F119: =RPMBeginningBalance(B119,D119,J118) -> 8756832.389 | G119: 43784.16195 | H119: 12316.42371 | I119: =IFERROR(RPMTotalPayment(B119,D119,E119,F119),"Enable Macros") -> 56100.58566 | J119: 8744515.966
B120: 70 | C120: Oct 2027 | D120: =IFERROR(RPMLoanType(B120),"Enable Macros") -> Amortizing | E120: =IFERROR(RPMInterestRate(B120),"Enable Macros") -> 0.06 | F120: =RPMBeginningBalance(B120,D120,J119) -> 8744515.966 | G120: 43722.57983 | H120: 12378.00583 | I120: =IFERROR(RPMTotalPayment(B120,D120,E120,F120),"Enable Macros") -> 56100.58566 | J120: 8732137.96
B121: 71 | C121: Nov 2027 | D121: =IFERROR(RPMLoanType(B121),"Enable Macros") -> Amortizing | E121: =IFERROR(RPMInterestRate(B121),"Enable Macros") -> 0.06 | F121: =RPMBeginningBalance(B121,D121,J120) -> 8732137.96 | G121: 43660.6898 | H121: 12439.89586 | I121: =IFERROR(RPMTotalPayment(B121,D121,E121,F121),"Enable Macros") -> 56100.58566 | J121: 8719698.064
B122: 72 | C122: Dec 2027 | D122: =IFERROR(RPMLoanType(B122),"Enable Macros") -> Amortizing | E122: =IFERROR(RPMInterestRate(B122),"Enable Macros") -> 0.06 | F122: =RPMBeginningBalance(B122,D122,J121) -> 8719698.064 | G122: 43598.49032 | H122: 12502.09534 | I122: =IFERROR(RPMTotalPayment(B122,D122,E122,F122),"Enable Macros") -> 56100.58566 | J122: 8707195.969
B123: 73 | C123: Jan 2028 | D123: =IFERROR(RPMLoanType(B123),"Enable Macros") -> Amortizing | E123: =IFERROR(RPMInterestRate(B123),"Enable Macros") -> 0.06 | F123: =RPMBeginningBalance(B123,D123,J122) -> 8707195.969 | G123: 43535.97984 | H123: 12564.60581 | I123: =IFERROR(RPMTotalPayment(B123,D123,E123,F123),"Enable Macros") -> 56100.58566 | J123: 8694631.363
B124: 74 | C124: Feb 2028 | D124: =IFERROR(RPMLoanType(B124),"Enable Macros") -> Amortizing | E124: =IFERROR(RPMInterestRate(B124),"Enable Macros") -> 0.06 | F124: =RPMBeginningBalance(B124,D124,J123) -> 8694631.363 | G124: 43473.15681 | H124: 12627.42884 | I124: =IFERROR(RPMTotalPayment(B124,D124,E124,F124),"Enable Macros") -> 56100.58566 | J124: 8682003.934
B125: 75 | C125: Mar 2028 | D125: =IFERROR(RPMLoanType(B125),"Enable Macros") -> Amortizing | E125: =IFERROR(RPMInterestRate(B125),"Enable Macros") -> 0.06 | F125: =RPMBeginningBalance(B125,D125,J124) -> 8682003.934 | G125: 43410.01967 | H125: 12690.56599 | I125: =IFERROR(RPMTotalPayment(B125,D125,E125,F125),"Enable Macros") -> 56100.58566 | J125: 8669313.368
B126: 76 | C126: Apr 2028 | D126: =IFERROR(RPMLoanType(B126),"Enable Macros") -> Amortizing | E126: =IFERROR(RPMInterestRate(B126),"Enable Macros") -> 0.06 | F126: =RPMBeginningBalance(B126,D126,J125) -> 8669313.368 | G126: 43346.56684 | H126: 12754.01882 | I126: =IFERROR(RPMTotalPayment(B126,D126,E126,F126),"Enable Macros") -> 56100.58566 | J126: 8656559.349
B127: 77 | C127: May 2028 | D127: =IFERROR(RPMLoanType(B127),"Enable Macros") -> Amortizing | E127: =IFERROR(RPMInterestRate(B127),"Enable Macros") -> 0.06 | F127: =RPMBeginningBalance(B127,D127,J126) -> 8656559.349 | G127: 43282.79675 | H127: 12817.78891 | I127: =IFERROR(RPMTotalPayment(B127,D127,E127,F127),"Enable Macros") -> 56100.58566 | J127: 8643741.56
B128: 78 | C128: Jun 2028 | D128: =IFERROR(RPMLoanType(B128),"Enable Macros") -> Amortizing | E128: =IFERROR(RPMInterestRate(B128),"Enable Macros") -> 0.06 | F128: =RPMBeginningBalance(B128,D128,J127) -> 8643741.56 | G128: 43218.7078 | H128: 12881.87785 | I128: =IFERROR(RPMTotalPayment(B128,D128,E128,F128),"Enable Macros") -> 56100.58566 | J128: 8630859.682
B129: 79 | C129: Jul 2028 | D129: =IFERROR(RPMLoanType(B129),"Enable Macros") -> Amortizing | E129: =IFERROR(RPMInterestRate(B129),"Enable Macros") -> 0.06 | F129: =RPMBeginningBalance(B129,D129,J128) -> 8630859.682 | G129: 43154.29841 | H129: 12946.28724 | I129: =IFERROR(RPMTotalPayment(B129,D129,E129,F129),"Enable Macros") -> 56100.58566 | J129: 8617913.395
B130: 80 | C130: Aug 2028 | D130: =IFERROR(RPMLoanType(B130),"Enable Macros") -> Amortizing | E130: =IFERROR(RPMInterestRate(B130),"Enable Macros") -> 0.06 | F130: =RPMBeginningBalance(B130,D130,J129) -> 8617913.395 | G130: 43089.56698 | H130: 13011.01868 | I130: =IFERROR(RPMTotalPayment(B130,D130,E130,F130),"Enable Macros") -> 56100.58566 | J130: 8604902.377
B131: 81 | C131: Sep 2028 | D131: =IFERROR(RPMLoanType(B131),"Enable Macros") -> Amortizing | E131: =IFERROR(RPMInterestRate(B131),"Enable Macros") -> 0.06 | F131: =RPMBeginningBalance(B131,D131,J130) -> 8604902.377 | G131: 43024.51188 | H131: 13076.07377 | I131: =IFERROR(RPMTotalPayment(B131,D131,E131,F131),"Enable Macros") -> 56100.58566 | J131: 8591826.303
B132: 82 | C132: Oct 2028 | D132: =IFERROR(RPMLoanType(B132),"Enable Macros") -> Amortizing | E132: =IFERROR(RPMInterestRate(B132),"Enable Macros") -> 0.06 | F132: =RPMBeginningBalance(B132,D132,J131) -> 8591826.303 | G132: 42959.13151 | H132: 13141.45414 | I132: =IFERROR(RPMTotalPayment(B132,D132,E132,F132),"Enable Macros") -> 56100.58566 | J132: 8578684.849
B133: 83 | C133: Nov 2028 | D133: =IFERROR(RPMLoanType(B133),"Enable Macros") -> Amortizing | E133: =IFERROR(RPMInterestRate(B133),"Enable Macros") -> 0.06 | F133: =RPMBeginningBalance(B133,D133,J132) -> 8578684.849 | G133: 42893.42424 | H133: 13207.16141 | I133: =IFERROR(RPMTotalPayment(B133,D133,E133,F133),"Enable Macros") -> 56100.58566 | J133: 8565477.687
B134: 84 | C134: Dec 2028 | D134: =IFERROR(RPMLoanType(B134),"Enable Macros") -> Amortizing | E134: =IFERROR(RPMInterestRate(B134),"Enable Macros") -> 0.06 | F134: =RPMBeginningBalance(B134,D134,J133) -> 8565477.687 | G134: 42827.38844 | H134: 13273.19722 | I134: =IFERROR(RPMTotalPayment(B134,D134,E134,F134),"Enable Macros") -> 56100.58566 | J134: 8552204.49
B135: 85 | C135: Jan 2029 | D135: =IFERROR(RPMLoanType(B135),"Enable Macros") -> Amortizing | E135: =IFERROR(RPMInterestRate(B135),"Enable Macros") -> 0.06 | F135: =RPMBeginningBalance(B135,D135,J134) -> 8552204.49 | G135: 42761.02245 | H135: 13339.56321 | I135: =IFERROR(RPMTotalPayment(B135,D135,E135,F135),"Enable Macros") -> 56100.58566 | J135: 8538864.927
B136: 86 | C136: Feb 2029 | D136: =IFERROR(RPMLoanType(B136),"Enable Macros") -> Amortizing | E136: =IFERROR(RPMInterestRate(B136),"Enable Macros") -> 0.06 | F136: =RPMBeginningBalance(B136,D136,J135) -> 8538864.927 | G136: 42694.32463 | H136: 13406.26102 | I136: =IFERROR(RPMTotalPayment(B136,D136,E136,F136),"Enable Macros") -> 56100.58566 | J136: 8525458.666
B137: 87 | C137: Mar 2029 | D137: =IFERROR(RPMLoanType(B137),"Enable Macros") -> Amortizing | E137: =IFERROR(RPMInterestRate(B137),"Enable Macros") -> 0.06 | F137: =RPMBeginningBalance(B137,D137,J136) -> 8525458.666 | G137: 42627.29333 | H137: 13473.29233 | I137: =IFERROR(RPMTotalPayment(B137,D137,E137,F137),"Enable Macros") -> 56100.58566 | J137: 8511985.373
B138: 88 | C138: Apr 2029 | D138: =IFERROR(RPMLoanType(B138),"Enable Macros") -> Amortizing | E138: =IFERROR(RPMInterestRate(B138),"Enable Macros") -> 0.06 | F138: =RPMBeginningBalance(B138,D138,J137) -> 8511985.373 | G138: 42559.92687 | H138: 13540.65879 | I138: =IFERROR(RPMTotalPayment(B138,D138,E138,F138),"Enable Macros") -> 56100.58566 | J138: 8498444.715
B139: 89 | C139: May 2029 | D139: =IFERROR(RPMLoanType(B139),"Enable Macros") -> Amortizing | E139: =IFERROR(RPMInterestRate(B139),"Enable Macros") -> 0.06 | F139: =RPMBeginningBalance(B139,D139,J138) -> 8498444.715 | G139: 42492.22357 | H139: 13608.36208 | I139: =IFERROR(RPMTotalPayment(B139,D139,E139,F139),"Enable Macros") -> 56100.58566 | J139: 8484836.353
B140: 90 | C140: Jun 2029 | D140: =IFERROR(RPMLoanType(B140),"Enable Macros") -> Amortizing | E140: =IFERROR(RPMInterestRate(B140),"Enable Macros") -> 0.06 | F140: =RPMBeginningBalance(B140,D140,J139) -> 8484836.353 | G140: 42424.18176 | H140: 13676.40389 | I140: =IFERROR(RPMTotalPayment(B140,D140,E140,F140),"Enable Macros") -> 56100.58566 | J140: 8471159.949
B141: 91 | C141: Jul 2029 | D141: =IFERROR(RPMLoanType(B141),"Enable Macros") -> Amortizing | E141: =IFERROR(RPMInterestRate(B141),"Enable Macros") -> 0.06 | F141: =RPMBeginningBalance(B141,D141,J140) -> 8471159.949 | G141: 42355.79974 | H141: 13744.78591 | I141: =IFERROR(RPMTotalPayment(B141,D141,E141,F141),"Enable Macros") -> 56100.58566 | J141: 8457415.163
B142: 92 | C142: Aug 2029 | D142: =IFERROR(RPMLoanType(B142),"Enable Macros") -> Amortizing | E142: =IFERROR(RPMInterestRate(B142),"Enable Macros") -> 0.06 | F142: =RPMBeginningBalance(B142,D142,J141) -> 8457415.163 | G142: 42287.07581 | H142: 13813.50984 | I142: =IFERROR(RPMTotalPayment(B142,D142,E142,F142),"Enable Macros") -> 56100.58566 | J142: 8443601.653
B143: 93 | C143: Sep 2029 | D143: =IFERROR(RPMLoanType(B143),"Enable Macros") -> Amortizing | E143: =IFERROR(RPMInterestRate(B143),"Enable Macros") -> 0.06 | F143: =RPMBeginningBalance(B143,D143,J142) -> 8443601.653 | G143: 42218.00826 | H143: 13882.57739 | I143: =IFERROR(RPMTotalPayment(B143,D143,E143,F143),"Enable Macros") -> 56100.58566 | J143: 8429719.076
B144: 94 | C144: Oct 2029 | D144: =IFERROR(RPMLoanType(B144),"Enable Macros") -> Amortizing | E144: =IFERROR(RPMInterestRate(B144),"Enable Macros") -> 0.06 | F144: =RPMBeginningBalance(B144,D144,J143) -> 8429719.076 | G144: 42148.59538 | H144: 13951.99028 | I144: =IFERROR(RPMTotalPayment(B144,D144,E144,F144),"Enable Macros") -> 56100.58566 | J144: 8415767.085
B145: 95 | C145: Nov 2029 | D145: =IFERROR(RPMLoanType(B145),"Enable Macros") -> Amortizing | E145: =IFERROR(RPMInterestRate(B145),"Enable Macros") -> 0.06 | F145: =RPMBeginningBalance(B145,D145,J144) -> 8415767.085 | G145: 42078.83543 | H145: 14021.75023 | I145: =IFERROR(RPMTotalPayment(B145,D145,E145,F145),"Enable Macros") -> 56100.58566 | J145: 8401745.335
B146: 96 | C146: Dec 2029 | D146: =IFERROR(RPMLoanType(B146),"Enable Macros") -> Amortizing | E146: =IFERROR(RPMInterestRate(B146),"Enable Macros") -> 0.06 | F146: =RPMBeginningBalance(B146,D146,J145) -> 8401745.335 | G146: 42008.72668 | H146: 14091.85898 | I146: =IFERROR(RPMTotalPayment(B146,D146,E146,F146),"Enable Macros") -> 56100.58566 | J146: 8387653.476
B147: 97 | C147: Jan 2030 | D147: =IFERROR(RPMLoanType(B147),"Enable Macros") -> Amortizing | E147: =IFERROR(RPMInterestRate(B147),"Enable Macros") -> 0.06 | F147: =RPMBeginningBalance(B147,D147,J146) -> 8387653.476 | G147: 41938.26738 | H147: 14162.31828 | I147: =IFERROR(RPMTotalPayment(B147,D147,E147,F147),"Enable Macros") -> 56100.58566 | J147: 8373491.158
B148: 98 | C148: Feb 2030 | D148: =IFERROR(RPMLoanType(B148),"Enable Macros") -> Amortizing | E148: =IFERROR(RPMInterestRate(B148),"Enable Macros") -> 0.06 | F148: =RPMBeginningBalance(B148,D148,J147) -> 8373491.158 | G148: 41867.45579 | H148: 14233.12987 | I148: =IFERROR(RPMTotalPayment(B148,D148,E148,F148),"Enable Macros") -> 56100.58566 | J148: 8359258.028
B149: 99 | C149: Mar 2030 | D149: =IFERROR(RPMLoanType(B149),"Enable Macros") -> Amortizing | E149: =IFERROR(RPMInterestRate(B149),"Enable Macros") -> 0.06 | F149: =RPMBeginningBalance(B149,D149,J148) -> 8359258.028 | G149: 41796.29014 | H149: 14304.29552 | I149: =IFERROR(RPMTotalPayment(B149,D149,E149,F149),"Enable Macros") -> 56100.58566 | J149: 8344953.732
B150: 100 | C150: Apr 2030 | D150: =IFERROR(RPMLoanType(B150),"Enable Macros") -> Amortizing | E150: =IFERROR(RPMInterestRate(B150),"Enable Macros") -> 0.06 | F150: =RPMBeginningBalance(B150,D150,J149) -> 8344953.732 | G150: 41724.76866 | H150: 14375.81699 | I150: =IFERROR(RPMTotalPayment(B150,D150,E150,F150),"Enable Macros") -> 56100.58566 | J150: 8330577.915
B151: 101 | C151: May 2030 | D151: =IFERROR(RPMLoanType(B151),"Enable Macros") -> Amortizing | E151: =IFERROR(RPMInterestRate(B151),"Enable Macros") -> 0.06 | F151: =RPMBeginningBalance(B151,D151,J150) -> 8330577.915 | G151: 41652.88958 | H151: 14447.69608 | I151: =IFERROR(RPMTotalPayment(B151,D151,E151,F151),"Enable Macros") -> 56100.58566 | J151: 8316130.219
B152: 102 | C152: Jun 2030 | D152: =IFERROR(RPMLoanType(B152),"Enable Macros") -> Amortizing | E152: =IFERROR(RPMInterestRate(B152),"Enable Macros") -> 0.06 | F152: =RPMBeginningBalance(B152,D152,J151) -> 8316130.219 | G152: 41580.6511 | H152: 14519.93456 | I152: =IFERROR(RPMTotalPayment(B152,D152,E152,F152),"Enable Macros") -> 56100.58566 | J152: 8301610.285
B153: 103 | C153: Jul 2030 | D153: =IFERROR(RPMLoanType(B153),"Enable Macros") -> Amortizing | E153: =IFERROR(RPMInterestRate(B153),"Enable Macros") -> 0.06 | F153: =RPMBeginningBalance(B153,D153,J152) -> 8301610.285 | G153: 41508.05142 | H153: 14592.53423 | I153: =IFERROR(RPMTotalPayment(B153,D153,E153,F153),"Enable Macros") -> 56100.58566 | J153: 8287017.751
B154: 104 | C154: Aug 2030 | D154: =IFERROR(RPMLoanType(B154),"Enable Macros") -> Amortizing | E154: =IFERROR(RPMInterestRate(B154),"Enable Macros") -> 0.06 | F154: =RPMBeginningBalance(B154,D154,J153) -> 8287017.751 | G154: 41435.08875 | H154: 14665.4969 | I154: =IFERROR(RPMTotalPayment(B154,D154,E154,F154),"Enable Macros") -> 56100.58566 | J154: 8272352.254
B155: 105 | C155: Sep 2030 | D155: =IFERROR(RPMLoanType(B155),"Enable Macros") -> Amortizing | E155: =IFERROR(RPMInterestRate(B155),"Enable Macros") -> 0.06 | F155: =RPMBeginningBalance(B155,D155,J154) -> 8272352.254 | G155: 41361.76127 | H155: 14738.82439 | I155: =IFERROR(RPMTotalPayment(B155,D155,E155,F155),"Enable Macros") -> 56100.58566 | J155: 8257613.429
B156: 106 | C156: Oct 2030 | D156: =IFERROR(RPMLoanType(B156),"Enable Macros") -> Amortizing | E156: =IFERROR(RPMInterestRate(B156),"Enable Macros") -> 0.06 | F156: =RPMBeginningBalance(B156,D156,J155) -> 8257613.429 | G156: 41288.06715 | H156: 14812.51851 | I156: =IFERROR(RPMTotalPayment(B156,D156,E156,F156),"Enable Macros") -> 56100.58566 | J156: 8242800.911
B157: 107 | C157: Nov 2030 | D157: =IFERROR(RPMLoanType(B157),"Enable Macros") -> Amortizing | E157: =IFERROR(RPMInterestRate(B157),"Enable Macros") -> 0.06 | F157: =RPMBeginningBalance(B157,D157,J156) -> 8242800.911 | G157: 41214.00455 | H157: 14886.5811 | I157: =IFERROR(RPMTotalPayment(B157,D157,E157,F157),"Enable Macros") -> 56100.58566 | J157: 8227914.33
B158: 108 | C158: Dec 2030 | D158: =IFERROR(RPMLoanType(B158),"Enable Macros") -> Amortizing | E158: =IFERROR(RPMInterestRate(B158),"Enable Macros") -> 0.06 | F158: =RPMBeginningBalance(B158,D158,J157) -> 8227914.33 | G158: 41139.57165 | H158: 14961.01401 | I158: =IFERROR(RPMTotalPayment(B158,D158,E158,F158),"Enable Macros") -> 56100.58566 | J158: 8212953.316
B159: 109 | C159: Jan 2031 | D159: =IFERROR(RPMLoanType(B159),"Enable Macros") -> Amortizing | E159: =IFERROR(RPMInterestRate(B159),"Enable Macros") -> 0.06 | F159: =RPMBeginningBalance(B159,D159,J158) -> 8212953.316 | G159: 41064.76658 | H159: 15035.81908 | I159: =IFERROR(RPMTotalPayment(B159,D159,E159,F159),"Enable Macros") -> 56100.58566 | J159: 8197917.497
B160: 110 | C160: Feb 2031 | D160: =IFERROR(RPMLoanType(B160),"Enable Macros") -> Amortizing | E160: =IFERROR(RPMInterestRate(B160),"Enable Macros") -> 0.06 | F160: =RPMBeginningBalance(B160,D160,J159) -> 8197917.497 | G160: 40989.58748 | H160: 15110.99817 | I160: =IFERROR(RPMTotalPayment(B160,D160,E160,F160),"Enable Macros") -> 56100.58566 | J160: 8182806.498
B161: 111 | C161: Mar 2031 | D161: =IFERROR(RPMLoanType(B161),"Enable Macros") -> Amortizing | E161: =IFERROR(RPMInterestRate(B161),"Enable Macros") -> 0.06 | F161: =RPMBeginningBalance(B161,D161,J160) -> 8182806.498 | G161: 40914.03249 | H161: 15186.55316 | I161: =IFERROR(RPMTotalPayment(B161,D161,E161,F161),"Enable Macros") -> 56100.58566 | J161: 8167619.945
B162: 112 | C162: Apr 2031 | D162: =IFERROR(RPMLoanType(B162),"Enable Macros") -> Amortizing | E162: =IFERROR(RPMInterestRate(B162),"Enable Macros") -> 0.06 | F162: =RPMBeginningBalance(B162,D162,J161) -> 8167619.945 | G162: 40838.09973 | H162: 15262.48593 | I162: =IFERROR(RPMTotalPayment(B162,D162,E162,F162),"Enable Macros") -> 56100.58566 | J162: 8152357.459
B163: 113 | C163: May 2031 | D163: =IFERROR(RPMLoanType(B163),"Enable Macros") -> Amortizing | E163: =IFERROR(RPMInterestRate(B163),"Enable Macros") -> 0.06 | F163: =RPMBeginningBalance(B163,D163,J162) -> 8152357.459 | G163: 40761.7873 | H163: 15338.79836 | I163: =IFERROR(RPMTotalPayment(B163,D163,E163,F163),"Enable Macros") -> 56100.58566 | J163: 8137018.661
B164: 114 | C164: Jun 2031 | D164: =IFERROR(RPMLoanType(B164),"Enable Macros") -> Amortizing | E164: =IFERROR(RPMInterestRate(B164),"Enable Macros") -> 0.06 | F164: =RPMBeginningBalance(B164,D164,J163) -> 8137018.661 | G164: 40685.0933 | H164: 15415.49235 | I164: =IFERROR(RPMTotalPayment(B164,D164,E164,F164),"Enable Macros") -> 56100.58566 | J164: 8121603.169
B165: 115 | C165: Jul 2031 | D165: =IFERROR(RPMLoanType(B165),"Enable Macros") -> Amortizing | E165: =IFERROR(RPMInterestRate(B165),"Enable Macros") -> 0.06 | F165: =RPMBeginningBalance(B165,D165,J164) -> 8121603.169 | G165: 40608.01584 | H165: 15492.56981 | I165: =IFERROR(RPMTotalPayment(B165,D165,E165,F165),"Enable Macros") -> 56100.58566 | J165: 8106110.599
B166: 116 | C166: Aug 2031 | D166: =IFERROR(RPMLoanType(B166),"Enable Macros") -> Amortizing | E166: =IFERROR(RPMInterestRate(B166),"Enable Macros") -> 0.06 | F166: =RPMBeginningBalance(B166,D166,J165) -> 8106110.599 | G166: 40530.55299 | H166: 15570.03266 | I166: =IFERROR(RPMTotalPayment(B166,D166,E166,F166),"Enable Macros") -> 56100.58566 | J166: 8090540.566
B167: 117 | C167: Sep 2031 | D167: =IFERROR(RPMLoanType(B167),"Enable Macros") -> Amortizing | E167: =IFERROR(RPMInterestRate(B167),"Enable Macros") -> 0.06 | F167: =RPMBeginningBalance(B167,D167,J166) -> 8090540.566 | G167: 40452.70283 | H167: 15647.88283 | I167: =IFERROR(RPMTotalPayment(B167,D167,E167,F167),"Enable Macros") -> 56100.58566 | J167: 8074892.683
B168: 118 | C168: Oct 2031 | D168: =IFERROR(RPMLoanType(B168),"Enable Macros") -> Amortizing | E168: =IFERROR(RPMInterestRate(B168),"Enable Macros") -> 0.06 | F168: =RPMBeginningBalance(B168,D168,J167) -> 8074892.683 | G168: 40374.46342 | H168: 15726.12224 | I168: =IFERROR(RPMTotalPayment(B168,D168,E168,F168),"Enable Macros") -> 56100.58566 | J168: 8059166.561
B169: 119 | C169: Nov 2031 | D169: =IFERROR(RPMLoanType(B169),"Enable Macros") -> Amortizing | E169: =IFERROR(RPMInterestRate(B169),"Enable Macros") -> 0.06 | F169: =RPMBeginningBalance(B169,D169,J168) -> 8059166.561 | G169: 40295.83281 | H169: 15804.75285 | I169: =IFERROR(RPMTotalPayment(B169,D169,E169,F169),"Enable Macros") -> 56100.58566 | J169: 8043361.808
B170: 120 | C170: Dec 2031 | D170: =IFERROR(RPMLoanType(B170),"Enable Macros") -> Amortizing | E170: =IFERROR(RPMInterestRate(B170),"Enable Macros") -> 0.06 | F170: =RPMBeginningBalance(B170,D170,J169) -> 8043361.808 | G170: 40216.80904 | H170: 15883.77662 | I170: =IFERROR(RPMTotalPayment(B170,D170,E170,F170),"Enable Macros") -> 56100.58566 | J170: 8027478.032

Sheet Sources & Uses
B2: =Project_Name&" - Sources & Uses" -> New Hospitality Project - Sources & Uses
B4: Period | C4: 0 | D4: 1 | E4: 2 | F4: 3 | G4: 4 | H4: 5 | I4: 6 | J4: 7 | K4: 8 | L4: 9 | M4: 10 | N4: Total
D5: =RPMDateSpan(D4,1) -> Jan 22 - Dec 22 | E5: =RPMDateSpan(E4,1) -> Jan 23 - Dec 23 | F5: Jan 24 - Dec 24 | G5: Jan 25 - Dec 25 | H5: Jan 26 - Dec 26 | I5: Jan 27 - Dec 27 | J5: Jan 28 - Dec 28 | K5: Jan 29 - Dec 29 | L5: Jan 30 - Dec 30 | M5: Jan 31 - Dec 31
B7: Sources Of Capital
B8: Debt Proceeds | C8: =IF(AND(Loan_IO_Status="Fund Up",Loan_IO_Term>0,Loan_IO_Approval="Yes"),0,Loan_Amount) -> 0 | D8: =IF(OR(Loan_IO_Status<>"Fund Up",Loan_IO_Approval="No"),0,IF(D4*12<=Loan_IO_MonthFunded,VLOOKUP(D4,Amortization_Schedule_Annual,9,FALSE)-SUM($C$8:C8),IF(AND(Loan_IO_MonthFunded>C4*12,Loan_IO_MonthFunded<=D4*12),Loan_Amount-SUM($C$8:C8),0))) -> 9357107.25 | E8: =IF(OR(Loan_IO_Status<>"Fund Up",Loan_IO_Approval="No"),0,IF(E4*12<=Loan_IO_MonthFunded,VLOOKUP(E4,Amortization_Schedule_Annual,9,FALSE)-SUM($C$8:D8),IF(AND(Loan_IO_MonthFunded>D4*12,Loan_IO_MonthFunded<=E4*12),Loan_Amount-SUM($C$8:D8),0))) -> 0 | F8: =IF(OR(Loan_IO_Status<>"Fund Up",Loan_IO_Approval="No"),0,IF(F4*12<=Loan_IO_MonthFunded,VLOOKUP(F4,Amortization_Schedule_Annual,9,FALSE)-SUM($C$8:E8),IF(AND(Loan_IO_MonthFunded>E4*12,Loan_IO_MonthFunded<=F4*12),Loan_Amount-SUM($C$8:E8),0))) -> 0 | G8: =IF(OR(Loan_IO_Status<>"Fund Up",Loan_IO_Approval="No"),0,IF(G4*12<=Loan_IO_MonthFunded,VLOOKUP(G4,Amortization_Schedule_Annual,9,FALSE)-SUM($C$8:F8),IF(AND(Loan_IO_MonthFunded>F4*12,Loan_IO_MonthFunded<=G4*12),Loan_Amount-SUM($C$8:F8),0))) -> 0 | H8: =IF(OR(Loan_IO_Status<>"Fund Up",Loan_IO_Approval="No"),0,IF(H4*12<=Loan_IO_MonthFunded,VLOOKUP(H4,Amortization_Schedule_Annual,9,FALSE)-SUM($C$8:G8),IF(AND(Loan_IO_MonthFunded>G4*12,Loan_IO_MonthFunded<=H4*12),Loan_Amount-SUM($C$8:G8),0))) -> 0 | I8: =IF(OR(Loan_IO_Status<>"Fund Up",Loan_IO_Approval="No"),0,IF(I4*12<=Loan_IO_MonthFunded,VLOOKUP(I4,Amortization_Schedule_Annual,9,FALSE)-SUM($C$8:H8),IF(AND(Loan_IO_MonthFunded>H4*12,Loan_IO_MonthFunded<=I4*12),Loan_Amount-SUM($C$8:H8),0))) -> 0 | J8: =IF(OR(Loan_IO_Status<>"Fund Up",Loan_IO_Approval="No"),0,IF(J4*12<=Loan_IO_MonthFunded,VLOOKUP(J4,Amortization_Schedule_Annual,9,FALSE)-SUM($C$8:I8),IF(AND(Loan_IO_MonthFunded>I4*12,Loan_IO_MonthFunded<=J4*12),Loan_Amount-SUM($C$8:I8),0))) -> 0 | K8: =IF(OR(Loan_IO_Status<>"Fund Up",Loan_IO_Approval="No"),0,IF(K4*12<=Loan_IO_MonthFunded,VLOOKUP(K4,Amortization_Schedule_Annual,9,FALSE)-SUM($C$8:J8),IF(AND(Loan_IO_MonthFunded>J4*12,Loan_IO_MonthFunded<=K4*12),Loan_Amount-SUM($C$8:J8),0))) -> 0 | L8: =IF(OR(Loan_IO_Status<>"Fund Up",Loan_IO_Approval="No"),0,IF(L4*12<=Loan_IO_MonthFunded,VLOOKUP(L4,Amortization_Schedule_Annual,9,FALSE)-SUM($C$8:K8),IF(AND(Loan_IO_MonthFunded>K4*12,Loan_IO_MonthFunded<=L4*12),Loan_Amount-SUM($C$8:K8),0))) -> 0 | M8: =IF(OR(Loan_IO_Status<>"Fund Up",Loan_IO_Approval="No"),0,IF(M4*12<=Loan_IO_MonthFunded,VLOOKUP(M4,Amortization_Schedule_Annual,9,FALSE)-SUM($C$8:L8),IF(AND(Loan_IO_MonthFunded>L4*12,Loan_IO_MonthFunded<=M4*12),Loan_Amount-SUM($C$8:L8),0))) -> 0 | N8: =SUM(C8:M8) -> 9357107.25
B9: Refinance Proceeds | C9: 0 | D9: =IF(Hold<D4,0,IF(ROUNDUP((Loan_IO_Term+1)/12,0)=D4,Loan_Amount_Amortizing-Loan_Amount,0)) -> 0 | E9: 0 | F9: 0 | G9: 0 | H9: 0 | I9: 0 | J9: 0 | K9: 0 | L9: 0 | M9: 0 | N9: 0
B10: Equity Contributions | C10: =Equity_Amount -> 3119035.75 | D10: =IF('Return Detail'!F85<0,-'Return Detail'!F85,0) -> 0 | E10: =IF('Return Detail'!G85<0,-'Return Detail'!G85,0) -> 0 | F10: =IF('Return Detail'!H85<0,-'Return Detail'!H85,0) -> 0 | G10: =IF('Return Detail'!I85<0,-'Return Detail'!I85,0) -> 0 | H10: =IF('Return Detail'!J85<0,-'Return Detail'!J85,0) -> 0 | I10: =IF('Return Detail'!K85<0,-'Return Detail'!K85,0) -> 0 | J10: =IF('Return Detail'!L85<0,-'Return Detail'!L85,0) -> 0 | K10: =IF('Return Detail'!M85<0,-'Return Detail'!M85,0) -> 0 | L10: =IF('Return Detail'!N85<0,-'Return Detail'!N85,0) -> 0 | M10: =IF('Return Detail'!O85<0,-'Return Detail'!O85,0) -> 0 | N10: 3119035.75
B11: Net Operating Income | C11: 0 | D11: =IF('Return Detail'!F$6>0,'Return Detail'!F$6,0) -> 0 | E11: =IF('Return Detail'!G$6>0,'Return Detail'!G$6,0) -> 942827.8475 | F11: =IF('Return Detail'!H$6>0,'Return Detail'!H$6,0) -> 1048455.058 | G11: =IF('Return Detail'!I$6>0,'Return Detail'!I$6,0) -> 1090117.509 | H11: =IF('Return Detail'!J$6>0,'Return Detail'!J$6,0) -> 1186085.847 | I11: =IF('Return Detail'!K$6>0,'Return Detail'!K$6,0) -> 1225206.48 | J11: =IF('Return Detail'!L$6>0,'Return Detail'!L$6,0) -> 1251030.074 | K11: =IF('Return Detail'!M$6>0,'Return Detail'!M$6,0) -> 1288561.343 | L11: =IF('Return Detail'!N$6>0,'Return Detail'!N$6,0) -> 1327219.059 | M11: =IF('Return Detail'!O$6>0,'Return Detail'!O$6,0) -> 1367036.568 | N11: 10726539.79
B12: Non-Regular Income | C12: 0 | D12: ='Return Detail'!F8 -> 133713.75 | E12: ='Return Detail'!G8 -> 0 | F12: ='Return Detail'!H8 -> 0 | G12: ='Return Detail'!I8 -> 0 | H12: ='Return Detail'!J8 -> 0 | I12: ='Return Detail'!K8 -> 0 | J12: ='Return Detail'!L8 -> 0 | K12: ='Return Detail'!M8 -> 0 | L12: ='Return Detail'!N8 -> 0 | M12: ='Return Detail'!O8 -> 553961.9416 | N12: 687675.6916
B13: Reserve Draw for Taxes | C13: 0 | D13: ='Return Detail'!F$82 -> 0 | E13: ='Return Detail'!G$82 -> 0 | F13: ='Return Detail'!H$82 -> 0 | G13: ='Return Detail'!I$82 -> 0 | H13: ='Return Detail'!J$82 -> 0 | I13: ='Return Detail'!K$82 -> 0 | J13: ='Return Detail'!L$82 -> 0 | K13: ='Return Detail'!M$82 -> 0 | L13: ='Return Detail'!N$82 -> 0 | M13: ='Return Detail'!O$82 -> 0 | N13: 0
B14: Gross Proceeds from Sale | C14: 0 | D14: ='Return Detail'!F$10 -> 0 | E14: ='Return Detail'!G$10 -> 0 | F14: ='Return Detail'!H$10 -> 0 | G14: ='Return Detail'!I$10 -> 0 | H14: ='Return Detail'!J$10 -> 0 | I14: ='Return Detail'!K$10 -> 0 | J14: ='Return Detail'!L$10 -> 0 | K14: ='Return Detail'!M$10 -> 0 | L14: ='Return Detail'!N$10 -> 0 | M14: ='Return Detail'!O$10 -> 21128997.63 | N14: 21128997.63
B15: Total Sources Of Capital | C15: =SUM(C8:C14) -> 3119035.75 | D15: 9490821 | E15: 942827.8475 | F15: 1048455.058 | G15: 1090117.509 | H15: 1186085.847 | I15: 1225206.48 | J15: 1251030.074 | K15: 1288561.343 | L15: 1327219.059 | M15: 23049996.14 | N15: 45019356.11
B17: Uses Of Capital
B18: =IF(Project_Type="Acquisition","Acquisition Price","Development Costs") -> Development Costs | C18: =IF(AND(Loan_IO_Status="Fund Up",Loan_IO_Term>0,Loan_IO_Approval="yes"),Equity_Amount-SUM(C19:C32),Acquisition_Gross) -> 2984035.75 | D18: =D8 -> 9357107.25 | E18: 0 | F18: 0 | G18: 0 | H18: 0 | I18: 0 | J18: 0 | K18: 0 | L18: 0 | M18: 0 | N18: =SUM(C18:M18) -> 12341143
B19: Costs and Fees | C19: =SUM(Due_Diligence_Cost,Loan_Fee) -> 0 | D19: =-SUM('Return Detail'!F34,'Return Detail'!F28) -> 0 | E19: =-SUM('Return Detail'!G34,'Return Detail'!G28) -> 0 | F19: =-SUM('Return Detail'!H34,'Return Detail'!H28) -> 0 | G19: =-SUM('Return Detail'!I34,'Return Detail'!I28) -> 0 | H19: =-SUM('Return Detail'!J34,'Return Detail'!J28) -> 0 | I19: =-SUM('Return Detail'!K34,'Return Detail'!K28) -> 0 | J19: =-SUM('Return Detail'!L34,'Return Detail'!L28) -> 0 | K19: =-SUM('Return Detail'!M34,'Return Detail'!M28) -> 0 | L19: =-SUM('Return Detail'!N34,'Return Detail'!N28) -> 0 | M19: =-SUM('Return Detail'!O34,'Return Detail'!O28) -> 845159.9051 | N19: =SUM(C19:M19) -> 845159.9051
B20: Initial Reserve Accounts | C20: =SUM(Reserve_CapEx,Reserve_Operating,Reserve_Replacement) -> 135000 | D20: 0 | E20: 0 | F20: 0 | G20: 0 | H20: 0 | I20: 0 | J20: 0 | K20: 0 | L20: 0 | M20: 0 | N20: 135000
B21: Operating Requirements | C21: 0 | D21: =IF('Return Detail'!F$6<0,-'Return Detail'!F$6,0) -> 133713.75 | E21: =IF('Return Detail'!G$6<0,-'Return Detail'!G$6,0) -> 0 | F21: =IF('Return Detail'!H$6<0,-'Return Detail'!H$6,0) -> 0 | G21: =IF('Return Detail'!I$6<0,-'Return Detail'!I$6,0) -> 0 | H21: =IF('Return Detail'!J$6<0,-'Return Detail'!J$6,0) -> 0 | I21: =IF('Return Detail'!K$6<0,-'Return Detail'!K$6,0) -> 0 | J21: =IF('Return Detail'!L$6<0,-'Return Detail'!L$6,0) -> 0 | K21: =IF('Return Detail'!M$6<0,-'Return Detail'!M$6,0) -> 0 | L21: =IF('Return Detail'!N$6<0,-'Return Detail'!N$6,0) -> 0 | M21: =IF('Return Detail'!O$6<0,-'Return Detail'!O$6,0) -> 0 | N21: =SUM(C21:M21) -> 133713.75
B22: Mortgage Balance | C22: 0 | D22: =-'Return Detail'!F$35 -> 0 | E22: =-'Return Detail'!G$35 -> 0 | F22: =-'Return Detail'!H$35 -> 0 | G22: =-'Return Detail'!I$35 -> 0 | H22: =-'Return Detail'!J$35 -> 0 | I22: =-'Return Detail'!K$35 -> 0 | J22: =-'Return Detail'!L$35 -> 0 | K22: =-'Return Detail'!M$35 -> 0 | L22: =-'Return Detail'!N$35 -> 0 | M22: =-'Return Detail'!O$35 -> 8027478.032 | N22: =SUM(C22:M22) -> 8027478.032
B23: Mortgage Exit Fee | C23: 0 | D23: =-'Return Detail'!F36 -> 0 | E23: =-'Return Detail'!G36 -> 0 | F23: =-'Return Detail'!H36 -> 0 | G23: =-'Return Detail'!I36 -> 0 | H23: =-'Return Detail'!J36 -> 0 | I23: =-'Return Detail'!K36 -> 0 | J23: =-'Return Detail'!L36 -> 0 | K23: =-'Return Detail'!M36 -> 0 | L23: =-'Return Detail'!N36 -> 0 | M23: =-'Return Detail'!O36 -> 0 | N23: =SUM(C23:M23) -> 0
B24: Annual Interest Expense | C24: 0 | D24: =IF(D4>Hold,0,VLOOKUP(D$4,Amortization_Schedule_Annual,6,FALSE)) -> 304105.9856 | E24: 558300.6549 | F24: 551213.4813 | G24: 543689.1862 | H24: 535700.8092 | I24: 527219.7265 | J24: 518215.5492 | K24: 508656.0139 | L24: 498506.8674 | M24: 487731.7438 | N24: 5033340.018
B25: Less: Budgeted Interest | C25: 0 | D25: =IF(D4>Hold,0,'Cash Flows'!F112) -> -304105.9856 | E25: =IF(E4>Hold,0,'Cash Flows'!G112) -> 0 | F25: =IF(F4>Hold,0,'Cash Flows'!H112) -> 0 | G25: =IF(G4>Hold,0,'Cash Flows'!I112) -> 0 | H25: =IF(H4>Hold,0,'Cash Flows'!J112) -> 0 | I25: =IF(I4>Hold,0,'Cash Flows'!K112) -> 0 | J25: =IF(J4>Hold,0,'Cash Flows'!L112) -> 0 | K25: =IF(K4>Hold,0,'Cash Flows'!M112) -> 0 | L25: =IF(L4>Hold,0,'Cash Flows'!N112) -> 0 | M25: =IF(M4>Hold,0,'Cash Flows'!O112) -> 0 | N25: -304105.9856
B26: Annual Principal Paydown | C26: 0 | D26: =IF(D4>Hold,0,VLOOKUP(D$4,Amortization_Schedule_Annual,7,FALSE)) -> 0 | E26: 114906.373 | F26: 121993.5466 | G26: 129517.8416 | H26: 137506.2187 | I26: 145987.3014 | J26: 154991.4787 | K26: 164551.014 | L26: 174700.1604 | M26: 185475.2841 | N26: 1329629.218
B27: Capital Expenses | C27: 0 | D27: =-'Return Detail'!F$7 -> 0 | E27: =-'Return Detail'!G$7 -> 0 | F27: =-'Return Detail'!H$7 -> 0 | G27: =-'Return Detail'!I$7 -> 0 | H27: =-'Return Detail'!J$7 -> 0 | I27: =-'Return Detail'!K$7 -> 0 | J27: =-'Return Detail'!L$7 -> 0 | K27: =-'Return Detail'!M$7 -> 0 | L27: =-'Return Detail'!N$7 -> 0 | M27: =-'Return Detail'!O$7 -> 0 | N27: 0
B28: Operating Tax Liability | C28: 0 | D28: =-'Return Detail'!F81 -> -168257.3103 | E28: =-'Return Detail'!G81 -> 137950.6904 | F28: =-'Return Detail'!H81 -> 177971.9459 | G28: =-'Return Detail'!I81 -> 195775.6647 | H28: =-'Return Detail'!J81 -> 232766.5231 | I28: =-'Return Detail'!K81 -> 250051.3125 | J28: =-'Return Detail'!L81 -> 262883.9467 | K28: =-'Return Detail'!M81 -> 280027.9298 | L28: =-'Return Detail'!N81 -> 297792.3995 | M28: =-'Return Detail'!O81 -> 316856.4747 | N28: 1983819.577
B29: Ordinary Income Tax Liability | C29: 0 | D29: =-'Return Detail'!F74 -> 0 | E29: =-'Return Detail'!G74 -> 0 | F29: =-'Return Detail'!H74 -> 0 | G29: =-'Return Detail'!I74 -> 0 | H29: =-'Return Detail'!J74 -> 0 | I29: =-'Return Detail'!K74 -> 0 | J29: =-'Return Detail'!L74 -> 0 | K29: =-'Return Detail'!M74 -> 0 | L29: =-'Return Detail'!N74 -> 0 | M29: =-'Return Detail'!O74 -> 0 | N29: 0
B30: Cost Recovery Tax Liability | C30: 0 | D30: =-'Return Detail'!F75 -> 0 | E30: =-'Return Detail'!G75 -> 0 | F30: =-'Return Detail'!H75 -> 0 | G30: =-'Return Detail'!I75 -> 0 | H30: =-'Return Detail'!J75 -> 0 | I30: =-'Return Detail'!K75 -> 0 | J30: =-'Return Detail'!L75 -> 0 | K30: =-'Return Detail'!M75 -> 0 | L30: =-'Return Detail'!N75 -> 0 | M30: =-'Return Detail'!O75 -> 111026.4442 | N30: 111026.4442
B31: Capital Gains Tax Liability | C31: 0 | D31: =-'Return Detail'!F76 -> 0 | E31: =-'Return Detail'!G76 -> 0 | F31: =-'Return Detail'!H76 -> 0 | G31: =-'Return Detail'!I76 -> 0 | H31: =-'Return Detail'!J76 -> 0 | I31: =-'Return Detail'!K76 -> 0 | J31: =-'Return Detail'!L76 -> 0 | K31: =-'Return Detail'!M76 -> 0 | L31: =-'Return Detail'!N76 -> 0 | M31: =-'Return Detail'!O76 -> 1561538.945 | N31: 1561538.945
B32: Equity Returns | C32: 0 | D32: =IF('Return Detail'!F$85>0,'Return Detail'!F$85,0) -> 168257.3103 | E32: =IF('Return Detail'!G$85>0,'Return Detail'!G$85,0) -> 131670.1292 | F32: =IF('Return Detail'!H$85>0,'Return Detail'!H$85,0) -> 197276.0845 | G32: =IF('Return Detail'!I$85>0,'Return Detail'!I$85,0) -> 221134.8168 | H32: =IF('Return Detail'!J$85>0,'Return Detail'!J$85,0) -> 280112.2957 | I32: =IF('Return Detail'!K$85>0,'Return Detail'!K$85,0) -> 301948.1401 | J32: =IF('Return Detail'!L$85>0,'Return Detail'!L$85,0) -> 314939.0999 | K32: =IF('Return Detail'!M$85>0,'Return Detail'!M$85,0) -> 335326.3856 | L32: =IF('Return Detail'!N$85>0,'Return Detail'!N$85,0) -> 356219.632 | M32: =IF('Return Detail'!O$85>0,'Return Detail'!O$85,0) -> 11514729.31 | N32: 13821613.2
B33: Total Uses Of Capital | C33: =SUM(C18:C32) -> 3119035.75 | D33: =SUM(D18:D32) -> 9490821 | E33: 942827.8475 | F33: 1048455.058 | G33: 1090117.509 | H33: 1186085.847 | I33: 1225206.48 | J33: 1251030.074 | K33: 1288561.343 | L33: 1327219.059 | M33: 23049996.14 | N33: 45019356.11
B37: www.realpropmetrics.com
B38: ="Version: "&Version -> Version: 9.42 H | © 2022
B39: =TODAY() -> 2022-02-23

Sheet Equity Investor Returns
B2: =Project_Name&" - "&IF(LEFT(B21,3)="Pre","Pre-Tax Equity Investor Returns","Post-Tax Equity Investor Returns") -> New Hospitality Project - Pre-Tax Equity Investor Returns
Q3: Year | R3: 1 | S3: 2 | T3: 3 | U3: 4 | V3: 5 | W3: 6 | X3: 7 | Y3: 8 | Z3: 9 | AA3: 10
Q4: =Name_Partner -> Equity Investor | R4: =E32 -> 0 | S4: =F32 -> 242130.9549 | T4: 336988.6793 | U4: 361790.4219 | V4: 381102.7346 | W4: 400663.0515 | X4: 413574.8485 | Y4: 432340.4829 | Z4: 451669.3409 | AA4: 6876738.912
Q5: =Name_Developer -> Developer | R5: =E47 -> 0 | S5: =F47 -> 25440.727 | T5: 25440.727 | U5: 44547.09445 | V5: 131776.0842 | W5: 151336.4011 | X5: 164248.1981 | Y5: 183013.8325 | Z5: 202342.6905 | AA5: 6627412.261
E6: Cash Flow Distribution
C7: Method | D7: Basis | E7: Rate | F7: =Name_Partner& "Split" -> Equity InvestorSplit | G7: =Name_Developer&" Split" -> Developer Split
B8: Initial Equity Contribution | F8: =Contribution_JV -> 0.8980425 | G8: =Contribution_Developer -> 0.1019575
B9: Preferred Return | C9: Cumulative | D9: Cash on Cash | E9: =Equity_Rate -> 0.08 | F9: =Contribution_JV -> 0.8980425 | G9: =1-Pref_Investor -> 0.1019575
B10: Hurdle 1 | D10: =D9 -> Cash on Cash | E10: =Preferred_Return_Rate+0.02 -> 0.1 | F10: 0.7 | G10: =1-F10 -> 0.3
B11: Hurdle 2 | D11: =D10 -> Cash on Cash | E11: =Hurdle1_Rate+0.02 -> 0.12 | F11: 0.6 | G11: =1-F11 -> 0.4
B12: Hurdle 3 | D12: =D11 -> Cash on Cash | E12: 0 | F12: 0.5 | G12: 0.5
B13: Final Split | F13: 0.5 | G13: 0.5
B14: Reversion (Sale) Proceeds | C14: Independent | F14: 0.5 | G14: =1-F14 -> 0.5
B19: Cash Flow Waterfall Summary
B20: Period | D20: 0 | E20: 1 | F20: 2 | G20: 3 | H20: 4 | I20: 5 | J20: 6 | K20: 7 | L20: 8 | M20: 9 | N20: 10
B21: Pre-Tax Net Cash Flow | D21: =IF(LEFT($B$21,3)="Pre",'Return Detail'!E37,'Return Detail'!E85) -> -3119035.75 | E21: =IF(LEFT($B$21,3)="Pre",'Return Detail'!F$32,'Return Detail'!F$83) -> 0 | F21: =IF(LEFT($B$21,3)="Pre",'Return Detail'!G$32,'Return Detail'!G$83) -> 269620.8196 | G21: =IF(LEFT($B$21,3)="Pre",'Return Detail'!H$32,'Return Detail'!H$83) -> 375248.0304 | H21: =IF(LEFT($B$21,3)="Pre",'Return Detail'!I$32,'Return Detail'!I$83) -> 416910.4815 | I21: =IF(LEFT($B$21,3)="Pre",'Return Detail'!J$32,'Return Detail'!J$83) -> 512878.8188 | J21: =IF(LEFT($B$21,3)="Pre",'Return Detail'!K$32,'Return Detail'!K$83) -> 551999.4526 | K21: =IF(LEFT($B$21,3)="Pre",'Return Detail'!L$32,'Return Detail'!L$83) -> 577823.0465 | L21: =IF(LEFT($B$21,3)="Pre",'Return Detail'!M$32,'Return Detail'!M$83) -> 615354.3154 | M21: =IF(LEFT($B$21,3)="Pre",'Return Detail'!N$32,'Return Detail'!N$83) -> 654012.0315 | N21: =IF(LEFT($B$21,3)="Pre",'Return Detail'!O$32,'Return Detail'!O$83) -> 1247791.482
B22: =IF(LEFT($B$21,3)="Pre","Pre-Tax Sale Proceeds","Post-Tax Sale Proceeds") -> Pre-Tax Sale Proceeds | D22: 0 | E22: =IF(LEFT($B$21,3)="Pre",'Return Detail'!F$73,'Return Detail'!F$77) -> 0 | F22: =IF(LEFT($B$21,3)="Pre",'Return Detail'!G$73,'Return Detail'!G$77) -> 0 | G22: =IF(LEFT($B$21,3)="Pre",'Return Detail'!H$73,'Return Detail'!H$77) -> 0 | H22: =IF(LEFT($B$21,3)="Pre",'Return Detail'!I$73,'Return Detail'!I$77) -> 0 | I22: =IF(LEFT($B$21,3)="Pre",'Return Detail'!J$73,'Return Detail'!J$77) -> 0 | J22: =IF(LEFT($B$21,3)="Pre",'Return Detail'!K$73,'Return Detail'!K$77) -> 0 | K22: =IF(LEFT($B$21,3)="Pre",'Return Detail'!L$73,'Return Detail'!L$77) -> 0 | L22: =IF(LEFT($B$21,3)="Pre",'Return Detail'!M$73,'Return Detail'!M$77) -> 0 | M22: =IF(LEFT($B$21,3)="Pre",'Return Detail'!N$73,'Return Detail'!N$77) -> 0 | N22: =IF(LEFT($B$21,3)="Pre",'Return Detail'!O$73,'Return Detail'!O$77) -> 12256359.69
B23: Total Cash Flow | D23: =SUM(D21:D22) -> -3119035.75 | E23: =SUM(E21:E22) -> 0 | F23: 269620.8196 | G23: 375248.0304 | H23: 416910.4815 | I23: 512878.8188 | J23: 551999.4526 | K23: 577823.0465 | L23: 615354.3154 | M23: 654012.0315 | N23: 13504151.17
B25: =Name_Partner -> Equity Investor
B26: Cash Flow Paid at Preferred Return | D26: =D80 -> -2801026.663 | E26: =E88 -> 0 | F26: =F88 -> 242130.9549 | G26: 336988.6793 | H26: 317208.8978 | I26: 224082.133 | J26: 224082.133 | K26: 224082.133 | L26: 224082.133 | M26: 224082.133 | N26: 224082.133
B27: Cash Flow Paid at Hurdle 1 | D27: =D113 -> 0 | E27: =SUM(E113:E114) -> 0 | F27: =SUM(F113:F114) -> 0 | G27: 0 | H27: 44581.52405 | I27: 56020.53325 | J27: 56020.53325 | K27: 56020.53325 | L27: 56020.53325 | M27: 56020.53325 | N27: 56020.53325
B28: Cash Flow Paid at Hurdle 2 | D28: =D134 -> 0 | E28: =SUM(E134:E135) -> 0 | F28: =SUM(F134:F135) -> 0 | G28: 0 | H28: 0 | I28: 56020.53325 | J28: 56020.53325 | K28: 56020.53325 | L28: 56020.53325 | M28: 56020.53325 | N28: 56020.53325
B29: Cash Flow Paid at Hurdle 3 | D29: =D155 -> 0 | E29: =SUM(E155:E156) -> 0 | F29: =SUM(F155:F156) -> 0 | G29: 0 | H29: 0 | I29: 0 | J29: 0 | K29: 0 | L29: 0 | M29: 0 | N29: 0
B30: Cash Flow Paid at Final Split | D30: =D175 -> 0 | E30: =E175 -> 0 | F30: 0 | G30: 0 | H30: 0 | I30: 44979.53508 | J30: 64539.85198 | K30: 77451.64895 | L30: 96217.28338 | M30: 115546.1414 | N30: 412435.8665
B31: Cash Flow Paid at Reversion (Sale) | D31: 0 | E31: =IF(Reversion_Method="Independent",E$22*Reversion_Split_Equity,0) -> 0 | F31: 0 | G31: 0 | H31: 0 | I31: 0 | J31: 0 | K31: 0 | L31: 0 | M31: 0 | N31: 6128179.846
B32: Total Cash Flow to Equity Investor | D32: =SUM(D26:D31) -> -2801026.663 | E32: =SUM(E26:E31) -> 0 | F32: 242130.9549 | G32: 336988.6793 | H32: 361790.4219 | I32: 381102.7346 | J32: 400663.0515 | K32: 413574.8485 | L32: 432340.4829 | M32: 451669.3409 | N32: 6876738.912
B33: Annual Cash on Cash | E33: =IFERROR(E32/(Equity_Amount*Contribution_JV),"-") -> 0 | F33: 0.08644364515 | G33: 0.1203089866 | H33: 0.1291635052 | I33: 0.1360582317 | J33: 0.1430414986 | K33: 0.1476511645 | L33: 0.1543507203 | M33: 0.1612513536 | N33: 2.455077991
B35: Net Cash Flow | C35: =SUM(D32:N32) -> 7095972.764
B36: IRR | C36: =IFERROR(IRR(D32:N32),"-") -> 0.1650884334
B37: Equity Multiple | C37: =IFERROR(SUM(E32:N32)/(Equity_Amount*Contribution_JV),"-") -> 3.533347097
B38: Average Annual Cash on Cash Return | C38: =IFERROR((SUM(E32:N32)/Hold)/(Equity_Amount*Contribution_JV),"-") -> 0.3533347097
B40: =Name_Developer -> Developer
B41: Cash Flow Paid at Preferred Return | D41: =D96 -> -318009.0875 | E41: =E96 -> 0 | F41: 25440.727 | G41: 25440.727 | H41: 25440.727 | I41: 25440.727 | J41: 25440.727 | K41: 25440.727 | L41: 25440.727 | M41: 25440.727 | N41: 25440.727
B42: Cash Flow Paid at Hurdle 1 | D42: =D122 -> 0 | E42: =E122 -> 0 | F42: 0 | G42: 0 | H42: 19106.36745 | I42: 24008.79996 | J42: 24008.79996 | K42: 24008.79996 | L42: 24008.79996 | M42: 24008.79996 | N42: 24008.79996
B43: Cash Flow Paid at Hurdle 2 | D43: =D143 -> 0 | E43: =E143 -> 0 | F43: 0 | G43: 0 | H43: 0 | I43: 37347.02217 | J43: 37347.02217 | K43: 37347.02217 | L43: 37347.02217 | M43: 37347.02217 | N43: 37347.02217
B44: Cash Flow Paid at Hurdle 3 | D44: =D164 -> 0 | E44: =E164 -> 0 | F44: 0 | G44: 0 | H44: 0 | I44: 0 | J44: 0 | K44: 0 | L44: 0 | M44: 0 | N44: 0
B45: Cash Flow Paid at Final Split | D45: =D180 -> 0 | E45: =E180 -> 0 | F45: 0 | G45: 0 | H45: 0 | I45: 44979.53508 | J45: 64539.85198 | K45: 77451.64895 | L45: 96217.28338 | M45: 115546.1414 | N45: 412435.8665
B46: Cash Flow Paid at Reversion (Sale) | D46: 0 | E46: =IF(Reversion_Method="Independent",E$22*Reversion_Split_Dev,0) -> 0 | F46: 0 | G46: 0 | H46: 0 | I46: 0 | J46: 0 | K46: 0 | L46: 0 | M46: 0 | N46: 6128179.846
B47: Total Cash Flow to Developer | D47: =SUM(D41:D46) -> -318009.0875 | E47: =SUM(E41:E46) -> 0 | F47: 25440.727 | G47: 25440.727 | H47: 44547.09445 | I47: 131776.0842 | J47: 151336.4011 | K47: 164248.1981 | L47: 183013.8325 | M47: 202342.6905 | N47: 6627412.261
B48: Annual Cash on Cash | E48: =IFERROR(E47/(Equity_Amount*Contribution_Developer),"-") -> 0 | F48: 0.08 | G48: 0.08 | H48: 0.1400811996 | I48: 0.4143783602 | J48: 0.475887033 | K48: 0.5164890079 | L48: 0.5754987505 | M48: 0.6362795861 | N48: 20.84032351
B50: Net Cash Flow | C50: =SUM(D47:N47) -> 7237548.929
B51: IRR | C51: =IFERROR(IRR(D47:N47),"-") -> 0.4137166999
B52: Equity Multiple | C52: =IFERROR(SUM(E47:N47)/(Equity_Amount*Contribution_Developer),"-") -> 23.75893744
B53: Average Annual Cash on Cash Return | C53: =IFERROR((SUM(E47:N47)/Hold)/(Equity_Amount*Contribution_Developer),"-") -> 2.375893744
B59: www.realpropmetrics.com
B60: ="Version: "&Version -> Version: 9.42 H | © 2022
B61: =TODAY() -> 2022-02-23
B62: This pro forma does not constitute tax advice. Please consult a professional tax advisor.
B66: =B2 -> New Hospitality Project - Pre-Tax Equity Investor Returns
B68: Cash Flow Waterfall Detail Analysis
B70: =B20 -> Period | D70: =D20 -> 0 | E70: 1 | F70: 2 | G70: 3 | H70: 4 | I70: 5 | J70: 6 | K70: 7 | L70: 8 | M70: 9 | N70: 10
B71: =B21 -> Pre-Tax Net Cash Flow | D71: =IF(Reversion_Method="Independent",D$21,D$23) -> -3119035.75 | E71: 0 | F71: 269620.8196 | G71: 375248.0304 | H71: 416910.4815 | I71: 512878.8188 | J71: 551999.4526 | K71: 577823.0465 | L71: 615354.3154 | M71: 654012.0315 | N71: 1247791.482
B73: Preferred Return
B74: =Name_Partner -> Equity Investor
B75: ="CF Allocation at "&ROUND(Pref_Investor*100,1)&"%" -> CF Allocation at 89.8% | D75: =D$71*Contribution_JV -> -2801026.663 | E75: =E$71*Pref_Investor -> 0 | F75: 242130.9549 | G75: 336988.6793 | H75: 374403.3311 | I75: 460586.9766 | J75: 495718.9684 | K75: 518909.6533 | L75: 552614.3278 | M75: 587330.5998 | N75: 1120569.782
B76: Amount Paid at Preferred Return (IRR) | D76: =IF($D$9="IRR",$D$21*Contribution_JV,0) -> 0 | E76: =IF(OR(E$20>Hold,Preferred_Return_Rate=0,$D$9<>"IRR"),0,IF(NPV(Preferred_Return_Rate,$E$75:E$75)+$D$75<0,E75,FV(Preferred_Return_Rate,E$20,,D75))) -> 0 | F76: =IF(OR(F$20>Hold,Preferred_Return_Rate=0,$D$9<>"IRR",SUM(NPV(Preferred_Return_Rate,$E$75:E$75),$D$75)>0),0,IF(NPV(Preferred_Return_Rate,$E$75:F$75)+$D$75<0,F75,FV(Preferred_Return_Rate,F$20,,NPV(Preferred_Return_Rate,$E$75:E$75)+$D75))) -> 0 | G76: =IF(OR(G$20>Hold,Preferred_Return_Rate=0,$D$9<>"IRR",SUM(NPV(Preferred_Return_Rate,$E$75:F$75),$D$75)>0),0,IF(NPV(Preferred_Return_Rate,$E$75:G$75)+$D$75<0,G75,FV(Preferred_Return_Rate,G$20,,NPV(Preferred_Return_Rate,$E$75:F$75)+$D75))) -> 0 | H76: =IF(OR(H$20>Hold,Preferred_Return_Rate=0,$D$9<>"IRR",SUM(NPV(Preferred_Return_Rate,$E$75:G$75),$D$75)>0),0,IF(NPV(Preferred_Return_Rate,$E$75:H$75)+$D$75<0,H75,FV(Preferred_Return_Rate,H$20,,NPV(Preferred_Return_Rate,$E$75:G$75)+$D75))) -> 0 | I76: =IF(OR(I$20>Hold,Preferred_Return_Rate=0,$D$9<>"IRR",SUM(NPV(Preferred_Return_Rate,$E$75:H$75),$D$75)>0),0,IF(NPV(Preferred_Return_Rate,$E$75:I$75)+$D$75<0,I75,FV(Preferred_Return_Rate,I$20,,NPV(Preferred_Return_Rate,$E$75:H$75)+$D75))) -> 0 | J76: =IF(OR(J$20>Hold,Preferred_Return_Rate=0,$D$9<>"IRR",SUM(NPV(Preferred_Return_Rate,$E$75:I$75),$D$75)>0),0,IF(NPV(Preferred_Return_Rate,$E$75:J$75)+$D$75<0,J75,FV(Preferred_Return_Rate,J$20,,NPV(Preferred_Return_Rate,$E$75:I$75)+$D75))) -> 0 | K76: =IF(OR(K$20>Hold,Preferred_Return_Rate=0,$D$9<>"IRR",SUM(NPV(Preferred_Return_Rate,$E$75:J$75),$D$75)>0),0,IF(NPV(Preferred_Return_Rate,$E$75:K$75)+$D$75<0,K75,FV(Preferred_Return_Rate,K$20,,NPV(Preferred_Return_Rate,$E$75:J$75)+$D75))) -> 0 | L76: =IF(OR(L$20>Hold,Preferred_Return_Rate=0,$D$9<>"IRR",SUM(NPV(Preferred_Return_Rate,$E$75:K$75),$D$75)>0),0,IF(NPV(Preferred_Return_Rate,$E$75:L$75)+$D$75<0,L75,FV(Preferred_Return_Rate,L$20,,NPV(Preferred_Return_Rate,$E$75:K$75)+$D75))) -> 0 | M76: =IF(OR(M$20>Hold,Preferred_Return_Rate=0,$D$9<>"IRR",SUM(NPV(Preferred_Return_Rate,$E$75:L$75),$D$75)>0),0,IF(NPV(Preferred_Return_Rate,$E$75:M$75)+$D$75<0,M75,FV(Preferred_Return_Rate,M$20,,NPV(Preferred_Return_Rate,$E$75:L$75)+$D75))) -> 0 | N76: =IF(OR(N$20>Hold,Preferred_Return_Rate=0,$D$9<>"IRR",SUM(NPV(Preferred_Return_Rate,$E$75:M$75),$D$75)>0),0,IF(NPV(Preferred_Return_Rate,$E$75:N$75)+$D$75<0,N75,FV(Preferred_Return_Rate,N$20,,NPV(Preferred_Return_Rate,$E$75:M$75)+$D75))) -> 0
B77: Amount Paid at Preferred Return (COC) | D77: =IF($D$9="Cash on Cash",$D$21*Contribution_JV,0) -> -2801026.663 | E77: =IF(OR(E$70>Hold,Preferred_Return_Rate=0,$D$9<>"Cash on Cash"),0,MIN(-$D$75*Preferred_Return_Rate,E75)) -> 0 | F77: 224082.133 | G77: 224082.133 | H77: 224082.133 | I77: 224082.133 | J77: 224082.133 | K77: 224082.133 | L77: 224082.133 | M77: 224082.133 | N77: 224082.133
B78: CF Remaining for Next Hurdle | D78: =D75-SUM(D76:D77) -> 0 | E78: 0 | F78: 18048.82187 | G78: 112906.5463 | H78: 150321.1981 | I78: 236504.8436 | J78: 271636.8354 | K78: 294827.5203 | L78: 328532.1948 | M78: 363248.4668 | N78: 896487.6487
B80: ="Cash Flow Received by "&Name_Partner -> Cash Flow Received by Equity Investor | D80: =SUM(D76:D77) -> -2801026.663 | E80: 0 | F80: 224082.133 | G80: 224082.133 | H80: 224082.133 | I80: 224082.133 | J80: 224082.133 | K80: 224082.133 | L80: 224082.133 | M80: 224082.133 | N80: 224082.133
B81: =Name_Partner&" IRR at "&B73 -> Equity Investor IRR at Preferred Return | C81: =IFERROR(IRR(D80:N80),"-") -> -0.05179294584
B83: Cumulative Preferred Return Catchup
B84: Cumulative Amount Due as Preferred Return | E84: =IF(OR(Hold<E70,$D$9<>"Cash on Cash",Preferred_Return_Method<>"Cumulative"),0,(Equity_Amount*Contribution_JV)*Preferred_Return_Rate*E$70) -> 224082.133 | F84: 448164.266 | G84: 672246.399 | H84: 896328.532 | I84: 1120410.665 | J84: 1344492.798 | K84: 1568574.931 | L84: 1792657.064 | M84: 2016739.197 | N84: 2240821.33
B85: Cumulative Amount Paid as Preferred Return | E85: =IF(OR(Hold<E70,Preferred_Return_Method<>"Cumulative",$D$9<>"Cash on Cash"),0,SUM($E$77:E77,$D$87:D87)) -> 0 | F85: =IF(OR(Hold<F70,Preferred_Return_Method<>"Cumulative",$D$9<>"Cash on Cash"),0,SUM($E$77:F77,$D$87:E87)) -> 224082.133 | G85: =IF(OR(Hold<G70,Preferred_Return_Method<>"Cumulative",$D$9<>"Cash on Cash"),0,SUM($E$77:G77,$D$87:F87)) -> 466213.0879 | H85: =IF(OR(Hold<H70,Preferred_Return_Method<>"Cumulative",$D$9<>"Cash on Cash"),0,SUM($E$77:H77,$D$87:G87)) -> 803201.7672 | I85: =IF(OR(Hold<I70,Preferred_Return_Method<>"Cumulative",$D$9<>"Cash on Cash"),0,SUM($E$77:I77,$D$87:H87)) -> 1120410.665 | J85: =IF(OR(Hold<J70,Preferred_Return_Method<>"Cumulative",$D$9<>"Cash on Cash"),0,SUM($E$77:J77,$D$87:I87)) -> 1344492.798 | K85: =IF(OR(Hold<K70,Preferred_Return_Method<>"Cumulative",$D$9<>"Cash on Cash"),0,SUM($E$77:K77,$D$87:J87)) -> 1568574.931 | L85: =IF(OR(Hold<L70,Preferred_Return_Method<>"Cumulative",$D$9<>"Cash on Cash"),0,SUM($E$77:L77,$D$87:K87)) -> 1792657.064 | M85: =IF(OR(Hold<M70,Preferred_Return_Method<>"Cumulative",$D$9<>"Cash on Cash"),0,SUM($E$77:M77,$D$87:L87)) -> 2016739.197 | N85: =IF(OR(Hold<N70,Preferred_Return_Method<>"Cumulative",$D$9<>"Cash on Cash"),0,SUM($E$77:N77,$D$87:M87)) -> 2240821.33
B86: Balance Remaining | E86: =E84-E85 -> 224082.133 | F86: =F84-F85 -> 224082.133 | G86: 206033.3111 | H86: 93126.76481 | I86: 0 | J86: 0 | K86: 0 | L86: 0 | M86: 0 | N86: 0
B87: Catch Up Paid | E87: =IF(AND(E86>0,E75>(Equity_Amount*Contribution_JV*Preferred_Return_Rate)),MIN(E78,E86),0) -> 0 | F87: 18048.82187 | G87: 112906.5463 | H87: 93126.76481 | I87: 0 | J87: 0 | K87: 0 | L87: 0 | M87: 0 | N87: 0
B88: ="Total Annual Cash Flow to "&Name_Partner -> Total Annual Cash Flow to Equity Investor | E88: =SUM(E80,E87) -> 0 | F88: =SUM(F80,F87) -> 242130.9549 | G88: 336988.6793 | H88: 317208.8978 | I88: 224082.133 | J88: 224082.133 | K88: 224082.133 | L88: 224082.133 | M88: 224082.133 | N88: 224082.133
B90: =Name_Developer -> Developer
B91: ="CF Allocation at "&ROUND(Pref_Developer*100,1)&"%" -> CF Allocation at 10.2% | D91: =D$71*Contribution_Developer -> -318009.0875 | E91: =E$71*Pref_Developer -> 0 | F91: 27489.86471 | G91: 38259.35106 | H91: 42507.15042 | I91: 52291.84217 | J91: 56280.48419 | K91: 58913.39327 | L91: 62739.98761 | M91: 66681.4317 | N91: 127221.7
B92: Amount Paid at Preferred Return (IRR) | D92: =IF($D$9="IRR",$D$21*Contribution_Developer,0) -> 0 | E92: =IF(OR(E$20>Hold,Preferred_Return_Rate=0,$D$9<>"IRR"),0,IF(NPV(Preferred_Return_Rate,$E$91:E$91)+$D$91<0,E91,FV(Preferred_Return_Rate,E$20,,D91))) -> 0 | F92: =IF(OR(F$20>Hold,Preferred_Return_Rate=0,$D$9<>"IRR",SUM(NPV(Preferred_Return_Rate,$E$91:E$91),$D$91)>0),0,IF(NPV(Preferred_Return_Rate,$E$91:F$91)+$D$91<0,F91,FV(Preferred_Return_Rate,F$20,,NPV(Preferred_Return_Rate,$E$91:E$91)+$D91))) -> 0 | G92: =IF(OR(G$20>Hold,Preferred_Return_Rate=0,$D$9<>"IRR",SUM(NPV(Preferred_Return_Rate,$E$91:F$91),$D$91)>0),0,IF(NPV(Preferred_Return_Rate,$E$91:G$91)+$D$91<0,G91,FV(Preferred_Return_Rate,G$20,,NPV(Preferred_Return_Rate,$E$91:F$91)+$D91))) -> 0 | H92: =IF(OR(H$20>Hold,Preferred_Return_Rate=0,$D$9<>"IRR",SUM(NPV(Preferred_Return_Rate,$E$91:G$91),$D$91)>0),0,IF(NPV(Preferred_Return_Rate,$E$91:H$91)+$D$91<0,H91,FV(Preferred_Return_Rate,H$20,,NPV(Preferred_Return_Rate,$E$91:G$91)+$D91))) -> 0 | I92: =IF(OR(I$20>Hold,Preferred_Return_Rate=0,$D$9<>"IRR",SUM(NPV(Preferred_Return_Rate,$E$91:H$91),$D$91)>0),0,IF(NPV(Preferred_Return_Rate,$E$91:I$91)+$D$91<0,I91,FV(Preferred_Return_Rate,I$20,,NPV(Preferred_Return_Rate,$E$91:H$91)+$D91))) -> 0 | J92: =IF(OR(J$20>Hold,Preferred_Return_Rate=0,$D$9<>"IRR",SUM(NPV(Preferred_Return_Rate,$E$91:I$91),$D$91)>0),0,IF(NPV(Preferred_Return_Rate,$E$91:J$91)+$D$91<0,J91,FV(Preferred_Return_Rate,J$20,,NPV(Preferred_Return_Rate,$E$91:I$91)+$D91))) -> 0 | K92: =IF(OR(K$20>Hold,Preferred_Return_Rate=0,$D$9<>"IRR",SUM(NPV(Preferred_Return_Rate,$E$91:J$91),$D$91)>0),0,IF(NPV(Preferred_Return_Rate,$E$91:K$91)+$D$91<0,K91,FV(Preferred_Return_Rate,K$20,,NPV(Preferred_Return_Rate,$E$91:J$91)+$D91))) -> 0 | L92: =IF(OR(L$20>Hold,Preferred_Return_Rate=0,$D$9<>"IRR",SUM(NPV(Preferred_Return_Rate,$E$91:K$91),$D$91)>0),0,IF(NPV(Preferred_Return_Rate,$E$91:L$91)+$D$91<0,L91,FV(Preferred_Return_Rate,L$20,,NPV(Preferred_Return_Rate,$E$91:K$91)+$D91))) -> 0 | M92: =IF(OR(M$20>Hold,Preferred_Return_Rate=0,$D$9<>"IRR",SUM(NPV(Preferred_Return_Rate,$E$91:L$91),$D$91)>0),0,IF(NPV(Preferred_Return_Rate,$E$91:M$91)+$D$91<0,M91,FV(Preferred_Return_Rate,M$20,,NPV(Preferred_Return_Rate,$E$91:L$91)+$D91))) -> 0 | N92: =IF(OR(N$20>Hold,Preferred_Return_Rate=0,$D$9<>"IRR",SUM(NPV(Preferred_Return_Rate,$E$91:M$91),$D$91)>0),0,IF(NPV(Preferred_Return_Rate,$E$91:N$91)+$D$91<0,N91,FV(Preferred_Return_Rate,N$20,,NPV(Preferred_Return_Rate,$E$91:M$91)+$D91))) -> 0
B93: Amount Paid at Preferred Return (COC) | D93: =IF($D$9="Cash on Cash",$D$21*Contribution_Developer,0) -> -318009.0875 | E93: =IF(OR(E$70>Hold,Preferred_Return_Rate=0,$D$9<>"Cash on Cash"),0,MIN(-$D$91*Preferred_Return_Rate,E91)) -> 0 | F93: 25440.727 | G93: 25440.727 | H93: 25440.727 | I93: 25440.727 | J93: 25440.727 | K93: 25440.727 | L93: 25440.727 | M93: 25440.727 | N93: 25440.727
B94: CF Remaining for Next Hurdle | D94: =D91-SUM(D92:D93) -> 0 | E94: =E91-SUM(E92:E93) -> 0 | F94: 2049.137714 | G94: 12818.62406 | H94: 17066.42342 | I94: 26851.11517 | J94: 30839.75719 | K94: 33472.66627 | L94: 37299.26061 | M94: 41240.7047 | N94: 101780.973
B96: ="Total CF Received by "&Name_Developer -> Total CF Received by Developer | D96: =SUM(D92:D93) -> -318009.0875 | E96: =SUM(E92:E93) -> 0 | F96: =SUM(F92:F93) -> 25440.727 | G96: 25440.727 | H96: 25440.727 | I96: 25440.727 | J96: 25440.727 | K96: 25440.727 | L96: 25440.727 | M96: 25440.727 | N96: 25440.727
B97: =Name_Developer&" IRR at Preferred Return" -> Developer IRR at Preferred Return | C97: =IFERROR(IRR(D96:N96),"-") -> -0.05179294584
B99: Cumulative Preferred Return Catchup
B100: Cumulative Amount Due as Preferred Return | E100: =IF(OR(Hold<E70,$D$9<>"Cash on Cash",Preferred_Return_Method<>"Cumulative"),0,(Equity_Amount*Contribution_Developer)*Preferred_Return_Rate*E$70) -> 25440.727 | F100: 50881.454 | G100: 76322.181 | H100: 101762.908 | I100: 127203.635 | J100: 152644.362 | K100: 178085.089 | L100: 203525.816 | M100: 228966.543 | N100: 254407.27
B101: Cumulative Amount Paid as Preferred Return | E101: =IF(OR(Hold<E70,Preferred_Return_Method<>"Cumulative",$D$9<>"Cash on Cash"),0,SUM($E$93:E93,$D$103:D103)) -> 0 | F101: =IF(OR(Hold<F70,Preferred_Return_Method<>"Cumulative",$D$9<>"Cash on Cash"),0,SUM($E$93:F93,$D$103:E103)) -> 25440.727 | G101: =IF(OR(Hold<G70,Preferred_Return_Method<>"Cumulative",$D$9<>"Cash on Cash"),0,SUM($E$93:G93,$D$103:F103)) -> 52930.59171 | H101: =IF(OR(Hold<H70,Preferred_Return_Method<>"Cumulative",$D$9<>"Cash on Cash"),0,SUM($E$93:H93,$D$103:G103)) -> 91189.94277 | I101: =IF(OR(Hold<I70,Preferred_Return_Method<>"Cumulative",$D$9<>"Cash on Cash"),0,SUM($E$93:I93,$D$103:H103)) -> 127203.635 | J101: =IF(OR(Hold<J70,Preferred_Return_Method<>"Cumulative",$D$9<>"Cash on Cash"),0,SUM($E$93:J93,$D$103:I103)) -> 152644.362 | K101: =IF(OR(Hold<K70,Preferred_Return_Method<>"Cumulative",$D$9<>"Cash on Cash"),0,SUM($E$93:K93,$D$103:J103)) -> 178085.089 | L101: =IF(OR(Hold<L70,Preferred_Return_Method<>"Cumulative",$D$9<>"Cash on Cash"),0,SUM($E$93:L93,$D$103:K103)) -> 203525.816 | M101: =IF(OR(Hold<M70,Preferred_Return_Method<>"Cumulative",$D$9<>"Cash on Cash"),0,SUM($E$93:M93,$D$103:L103)) -> 228966.543 | N101: =IF(OR(Hold<N70,Preferred_Return_Method<>"Cumulative",$D$9<>"Cash on Cash"),0,SUM($E$93:N93,$D$103:M103)) -> 254407.27
B102: Balance Remaining | E102: =E100-E101 -> 25440.727 | F102: =F100-F101 -> 25440.727 | G102: 23391.58928 | H102: 10572.96523 | I102: 0 | J102: 0 | K102: 0 | L102: 0 | M102: 0 | N102: 0
B103: Catch Up Paid | E103: =IF(AND(E102>0,E91>(Equity_Amount*Contribution_Developer*Preferred_Return_Rate)),MIN(E94,E102),0) -> 0 | F103: 2049.137714 | G103: 12818.62406 | H103: 10572.96523 | I103: 0 | J103: 0 | K103: 0 | L103: 0 | M103: 0 | N103: 0
B104: ="Total Annual Cash Flow to "&Name_Partner -> Total Annual Cash Flow to Equity Investor | E104: =SUM(E96,E103) -> 0 | F104: =SUM(F96,F103) -> 27489.86471 | G104: 38259.35106 | H104: 36013.69222 | I104: 25440.727 | J104: 25440.727 | K104: 25440.727 | L104: 25440.727 | M104: 25440.727 | N104: 25440.727
B107: Total CF Paid at Preferred Return | D107: =SUM(D80,D96) -> -3119035.75 | E107: =SUM(E88,E104) -> 0 | F107: 269620.8196 | G107: 375248.0304 | H107: 353222.59 | I107: 249522.86 | J107: 249522.86 | K107: 249522.86 | L107: 249522.86 | M107: 249522.86 | N107: 249522.86
B108: CF Remaining for Next Hurdle | D108: =SUM(D78,D94) -> 0 | E108: =E$71-E$107 -> 0 | F108: 0 | G108: 0 | H108: 63687.89151 | I108: 263355.9588 | J108: 302476.5926 | K108: 328300.1865 | L108: 365831.4554 | M108: 404489.1715 | N108: 998268.6217
B110: Hurdle 1
B111: =Name_Partner -> Equity Investor
B112: ="CF Allocation at "&ROUND(Hurdle1_Investor*100,1)&"%" -> CF Allocation at 70% | D112: =D108*Hurdle1_Investor -> 0 | E112: 0 | F112: 0 | G112: 0 | H112: 44581.52405 | I112: 184349.1712 | J112: 211733.6148 | K112: 229810.1306 | L112: 256082.0188 | M112: 283142.42 | N112: 698788.0352
B113: Amount Paid at Hurdle 1 (IRR) | D113: 0 | E113: =IF(OR(E$20>Hold,Hurdle1_Rate=0,$D$10<>"IRR"),0,MAX(0,MIN(E112,FV(Hurdle1_Rate,E$20,,NPV(Hurdle1_Rate,$E$80:E$80)+$D$80)))) -> 0 | F113: =IF(OR(F$20>Hold,Hurdle1_Rate=0,$D$10<>"IRR",SUM(NPV(Hurdle1_Rate,$E$117:E$117),$D$117)>=0),0,MAX(0,MIN(F112,FV(Hurdle1_Rate,F$20,,SUM(NPV(Hurdle1_Rate,$E$117:E$117,F80),$D$117))))) -> 0 | G113: =IF(OR(G$20>Hold,Hurdle1_Rate=0,$D$10<>"IRR",SUM(NPV(Hurdle1_Rate,$E$117:F$117),$D$117)>=0),0,MAX(0,MIN(G112,FV(Hurdle1_Rate,G$20,,SUM(NPV(Hurdle1_Rate,$E$117:F$117,G80),$D$117))))) -> 0 | H113: =IF(OR(H$20>Hold,Hurdle1_Rate=0,$D$10<>"IRR",SUM(NPV(Hurdle1_Rate,$E$117:G$117),$D$117)>=0),0,MAX(0,MIN(H112,FV(Hurdle1_Rate,H$20,,SUM(NPV(Hurdle1_Rate,$E$117:G$117,H80),$D$117))))) -> 0 | I113: =IF(OR(I$20>Hold,Hurdle1_Rate=0,$D$10<>"IRR",SUM(NPV(Hurdle1_Rate,$E$117:H$117),$D$117)>=0),0,MAX(0,MIN(I112,FV(Hurdle1_Rate,I$20,,SUM(NPV(Hurdle1_Rate,$E$117:H$117,I80),$D$117))))) -> 0 | J113: =IF(OR(J$20>Hold,Hurdle1_Rate=0,$D$10<>"IRR",SUM(NPV(Hurdle1_Rate,$E$117:I$117),$D$117)>=0),0,MAX(0,MIN(J112,FV(Hurdle1_Rate,J$20,,SUM(NPV(Hurdle1_Rate,$E$117:I$117,J80),$D$117))))) -> 0 | K113: =IF(OR(K$20>Hold,Hurdle1_Rate=0,$D$10<>"IRR",SUM(NPV(Hurdle1_Rate,$E$117:J$117),$D$117)>=0),0,MAX(0,MIN(K112,FV(Hurdle1_Rate,K$20,,SUM(NPV(Hurdle1_Rate,$E$117:J$117,K80),$D$117))))) -> 0 | L113: =IF(OR(L$20>Hold,Hurdle1_Rate=0,$D$10<>"IRR",SUM(NPV(Hurdle1_Rate,$E$117:K$117),$D$117)>=0),0,MAX(0,MIN(L112,FV(Hurdle1_Rate,L$20,,SUM(NPV(Hurdle1_Rate,$E$117:K$117,L80),$D$117))))) -> 0 | M113: =IF(OR(M$20>Hold,Hurdle1_Rate=0,$D$10<>"IRR",SUM(NPV(Hurdle1_Rate,$E$117:L$117),$D$117)>=0),0,MAX(0,MIN(M112,FV(Hurdle1_Rate,M$20,,SUM(NPV(Hurdle1_Rate,$E$117:L$117,M80),$D$117))))) -> 0 | N113: =IF(OR(N$20>Hold,Hurdle1_Rate=0,$D$10<>"IRR",SUM(NPV(Hurdle1_Rate,$E$117:M$117),$D$117)>=0),0,MAX(0,MIN(N112,FV(Hurdle1_Rate,N$20,,SUM(NPV(Hurdle1_Rate,$E$117:M$117,N80),$D$117))))) -> 0
B114: Amount Paid at Hurdle 1 (COC) | D114: 0 | E114: =IF(OR(E$70>Hold,Hurdle1_Rate=0,$D$10<>"Cash on Cash"),0,MIN(-$D$80*Hurdle1_Rate-E80,E112)) -> 0 | F114: 0 | G114: 0 | H114: 44581.52405 | I114: 56020.53325 | J114: 56020.53325 | K114: 56020.53325 | L114: 56020.53325 | M114: 56020.53325 | N114: 56020.53325
B115: CF Remaining for Next Hurdle | D115: =D112-SUM(D113:D114) -> 0 | E115: =E112-SUM(E113:E114) -> 0 | F115: 0 | G115: 0 | H115: 0 | I115: 128328.6379 | J115: 155713.0816 | K115: 173789.5973 | L115: 200061.4855 | M115: 227121.8868 | N115: 642767.5019
B117: ="Cash Flow Received by "&Name_Partner -> Cash Flow Received by Equity Investor | D117: =SUM(D80,D113:D114) -> -2801026.663 | E117: 0 | F117: 224082.133 | G117: 224082.133 | H117: 268663.6571 | I117: 280102.6663 | J117: 280102.6663 | K117: 280102.6663 | L117: 280102.6663 | M117: 280102.6663 | N117: 280102.6663
B118: =Name_Partner&" IRR at "&B110 -> Equity Investor IRR at Hurdle 1 | C118: =IFERROR(IRR(D117:N117),"-") -> -0.02457704081
B120: =Name_Developer -> Developer
B121: ="CF Allocation at "&ROUND(Hurdle1_Developer*100,1)&"%" -> CF Allocation at 30% | D121: =D108*Hurdle1_Developer -> 0 | E121: 0 | F121: 0 | G121: 0 | H121: 19106.36745 | I121: 79006.78764 | J121: 90742.97778 | K121: 98490.05596 | L121: 109749.4366 | M121: 121346.7514 | N121: 299480.5865
B122: Amount Paid at Hurdle 1 | D122: 0 | E122: =IF(OR(E$20>Hold,Hurdle1_Investor=0),0,(SUM(E113:E114)/Hurdle1_Investor)*Hurdle1_Developer) -> 0 | F122: 0 | G122: 0 | H122: 19106.36745 | I122: 24008.79996 | J122: 24008.79996 | K122: 24008.79996 | L122: 24008.79996 | M122: 24008.79996 | N122: 24008.79996
B123: CF Remaining for Next Hurdle | D123: =D121-D122 -> 0 | E123: =E121-E122 -> 0 | F123: 0 | G123: 0 | H123: 0 | I123: 54997.98767 | J123: 66734.17781 | K123: 74481.256 | L123: 85740.63665 | M123: 97337.95148 | N123: 275471.7865
B125: ="Total CF Received by "&Name_Developer -> Total CF Received by Developer | D125: =SUM(D93,D122) -> -318009.0875 | E125: 0 | F125: 25440.727 | G125: 25440.727 | H125: 44547.09445 | I125: 49449.52696 | J125: 49449.52696 | K125: 49449.52696 | L125: 49449.52696 | M125: 49449.52696 | N125: 49449.52696
B126: =Name_Developer&" IRR at "&B110 -> Developer IRR at Hurdle 1 | C126: =IFERROR(IRR(D125:N125),"-") -> 0.03349986987
B128: Total CF Paid at Hurdle 1 | D128: =SUM(D113,D122) -> 0 | E128: =SUM(E113:E114,E122) -> 0 | F128: =SUM(F113:F114,F122) -> 0 | G128: 0 | H128: 63687.89151 | I128: 80029.33321 | J128: 80029.33321 | K128: 80029.33321 | L128: 80029.33321 | M128: 80029.33321 | N128: 80029.33321
B129: CF Remaining for Next Hurdle | D129: =D108-D128 -> 0 | E129: =E108-E128 -> 0 | F129: 0 | G129: 0 | H129: 0 | I129: 183326.6256 | J129: 222447.2594 | K129: 248270.8533 | L129: 285802.1222 | M129: 324459.8383 | N129: 918239.2885
B131: Hurdle 2
B132: =Name_Partner -> Equity Investor
B133: ="CF Allocation at "&ROUND(Hurdle2_Investor*100,1)&"%" -> CF Allocation at 60% | D133: =D129*Hurdle2_Investor -> 0 | E133: 0 | F133: 0 | G133: 0 | H133: 0 | I133: 109995.9753 | J133: 133468.3556 | K133: 148962.512 | L133: 171481.2733 | M133: 194675.903 | N133: 550943.5731
B134: Amount Paid at Hurdle 2 (IRR) | D134: 0 | E134: =IF(OR(E$20>Hold,Hurdle2_Rate=0,$D$11<>"IRR"),0,MAX(0,MIN(E133,FV(Hurdle2_Rate,E$20,,NPV(Hurdle2_Rate,$E$117:E$117)+$D$117)))) -> 0 | F134: =IF(OR(F$20>Hold,$D$11<>"IRR",Hurdle2_Rate=0,SUM(NPV(Hurdle2_Rate,$E$138:E$138),$D$138)>=0),0,MAX(0,MIN(F133,FV(Hurdle2_Rate,F$20,,SUM(NPV(Hurdle2_Rate,$E$138:E$138,F117),$D$138))))) -> 0 | G134: =IF(OR(G$20>Hold,$D$11<>"IRR",Hurdle2_Rate=0,SUM(NPV(Hurdle2_Rate,$E$138:F$138),$D$138)>=0),0,MAX(0,MIN(G133,FV(Hurdle2_Rate,G$20,,SUM(NPV(Hurdle2_Rate,$E$138:F$138,G117),$D$138))))) -> 0 | H134: =IF(OR(H$20>Hold,$D$11<>"IRR",Hurdle2_Rate=0,SUM(NPV(Hurdle2_Rate,$E$138:G$138),$D$138)>=0),0,MAX(0,MIN(H133,FV(Hurdle2_Rate,H$20,,SUM(NPV(Hurdle2_Rate,$E$138:G$138,H117),$D$138))))) -> 0 | I134: =IF(OR(I$20>Hold,$D$11<>"IRR",Hurdle2_Rate=0,SUM(NPV(Hurdle2_Rate,$E$138:H$138),$D$138)>=0),0,MAX(0,MIN(I133,FV(Hurdle2_Rate,I$20,,SUM(NPV(Hurdle2_Rate,$E$138:H$138,I117),$D$138))))) -> 0 | J134: =IF(OR(J$20>Hold,$D$11<>"IRR",Hurdle2_Rate=0,SUM(NPV(Hurdle2_Rate,$E$138:I$138),$D$138)>=0),0,MAX(0,MIN(J133,FV(Hurdle2_Rate,J$20,,SUM(NPV(Hurdle2_Rate,$E$138:I$138,J117),$D$138))))) -> 0 | K134: =IF(OR(K$20>Hold,$D$11<>"IRR",Hurdle2_Rate=0,SUM(NPV(Hurdle2_Rate,$E$138:J$138),$D$138)>=0),0,MAX(0,MIN(K133,FV(Hurdle2_Rate,K$20,,SUM(NPV(Hurdle2_Rate,$E$138:J$138,K117),$D$138))))) -> 0 | L134: =IF(OR(L$20>Hold,$D$11<>"IRR",Hurdle2_Rate=0,SUM(NPV(Hurdle2_Rate,$E$138:K$138),$D$138)>=0),0,MAX(0,MIN(L133,FV(Hurdle2_Rate,L$20,,SUM(NPV(Hurdle2_Rate,$E$138:K$138,L117),$D$138))))) -> 0 | M134: =IF(OR(M$20>Hold,$D$11<>"IRR",Hurdle2_Rate=0,SUM(NPV(Hurdle2_Rate,$E$138:L$138),$D$138)>=0),0,MAX(0,MIN(M133,FV(Hurdle2_Rate,M$20,,SUM(NPV(Hurdle2_Rate,$E$138:L$138,M117),$D$138))))) -> 0 | N134: =IF(OR(N$20>Hold,$D$11<>"IRR",Hurdle2_Rate=0,SUM(NPV(Hurdle2_Rate,$E$138:M$138),$D$138)>=0),0,MAX(0,MIN(N133,FV(Hurdle2_Rate,N$20,,SUM(NPV(Hurdle2_Rate,$E$138:M$138,N117),$D$138))))) -> 0
B135: Amount Paid at Hurdle 2 (COC) | D135: 0 | E135: =IF(OR(E$70>Hold,Hurdle2_Rate=0,$D$11<>"Cash on Cash"),0,MIN(-$D$80*Hurdle2_Rate-E117,E133)) -> 0 | F135: 0 | G135: 0 | H135: 0 | I135: 56020.53325 | J135: 56020.53325 | K135: 56020.53325 | L135: 56020.53325 | M135: 56020.53325 | N135: 56020.53325
B136: CF Remaining for Next Hurdle | D136: =D133-SUM(D134:D135) -> 0 | E136: =E133-SUM(E134:E135) -> 0 | F136: 0 | G136: 0 | H136: 0 | I136: 53975.44209 | J136: 77447.82237 | K136: 92941.97875 | L136: 115460.7401 | M136: 138655.3697 | N136: 494923.0398
B138: ="Cash Flow Received by "&Name_Partner -> Cash Flow Received by Equity Investor | D138: =SUM(D117,D134:D135) -> -2801026.663 | E138: =SUM(E117,E134:E135) -> 0 | F138: 224082.133 | G138: 224082.133 | H138: 268663.6571 | I138: 336123.1995 | J138: 336123.1995 | K138: 336123.1995 | L138: 336123.1995 | M138: 336123.1995 | N138: 336123.1995
B139: =Name_Partner&" IRR at "&B131 -> Equity Investor IRR at Hurdle 2 | C139: =IFERROR(IRR(D138:N138),"-") -> -0.003832966029
B141: =Name_Developer -> Developer
B142: ="CF Allocation at "&ROUND(Hurdle2_Developer*100,1)&"%" -> CF Allocation at 40% | D142: =D129*Hurdle2_Developer -> 0 | E142: 0 | F142: 0 | G142: 0 | H142: 0 | I142: 73330.65023 | J142: 88978.90375 | K142: 99308.34133 | L142: 114320.8489 | M142: 129783.9353 | N142: 367295.7154
B143: Amount Paid at Hurdle 2 | D143: 0 | E143: =IF(OR(E$20>Hold,Hurdle2_Investor=0),0,(SUM(E134:E135)/Hurdle2_Investor)*Hurdle2_Developer) -> 0 | F143: 0 | G143: 0 | H143: 0 | I143: 37347.02217 | J143: 37347.02217 | K143: 37347.02217 | L143: 37347.02217 | M143: 37347.02217 | N143: 37347.02217
B144: CF Remaining for Next Hurdle | D144: =D142-D143 -> 0 | E144: =E142-E143 -> 0 | F144: 0 | G144: 0 | H144: 0 | I144: 35983.62806 | J144: 51631.88158 | K144: 61961.31916 | L144: 76973.8267 | M144: 92436.91314 | N144: 329948.6932
B146: ="Total CF Received by "&Name_Developer -> Total CF Received by Developer | D146: =SUM(D125,D143) -> -318009.0875 | E146: =SUM(E125,E143) -> 0 | F146: 25440.727 | G146: 25440.727 | H146: 44547.09445 | I146: 86796.54913 | J146: 86796.54913 | K146: 86796.54913 | L146: 86796.54913 | M146: 86796.54913 | N146: 86796.54913
B147: =Name_Developer&" IRR at "&B131 -> Developer IRR at Hurdle 2 | C147: =IFERROR(IRR(D146:N146),"-") -> 0.1057909129
B149: Total CF Paid at Hurdle 2 | D149: =SUM(D134:D135,D143) -> 0 | E149: =SUM(E134:E135,E143) -> 0 | F149: 0 | G149: 0 | H149: 0 | I149: 93367.55542 | J149: 93367.55542 | K149: 93367.55542 | L149: 93367.55542 | M149: 93367.55542 | N149: 93367.55542
B150: CF Remaining for Next Hurdle | D150: =D129-D149 -> 0 | E150: =E129-E149 -> 0 | F150: 0 | G150: 0 | H150: 0 | I150: 89959.07016 | J150: 129079.704 | K150: 154903.2979 | L150: 192434.5668 | M150: 231092.2828 | N150: 824871.7331
B152: Hurdle 3
B153: =Name_Partner -> Equity Investor
B154: ="CF Allocation at "&ROUND(Hurdle3_Investor*100,1)&"%" -> CF Allocation at 50% | D154: =D150*Hurdle3_Investor -> 0 | E154: 0 | F154: 0 | G154: 0 | H154: 0 | I154: 44979.53508 | J154: 64539.85198 | K154: 77451.64895 | L154: 96217.28338 | M154: 115546.1414 | N154: 412435.8665
B155: Amount Paid at Hurdle 3 (IRR) | D155: 0 | E155: =IF(OR(E$20>Hold,Hurdle3_Rate=0,$D$12<>"IRR"),0,MAX(0,MIN(E154,FV(Hurdle3_Rate,E$20,,NPV(Hurdle3_Rate,$E$138:E$138)+$D$138)))) -> 0 | F155: =IF(OR(F$20>Hold,$D$12<>"IRR",Hurdle3_Rate=0,SUM(NPV(Hurdle3_Rate,$E$159:E$159),$D$159)>=0),0,MAX(0,MIN(F154,FV(Hurdle3_Rate,F$20,,SUM(NPV(Hurdle3_Rate,$E$159:E$159,F138),$D$159))))) -> 0 | G155: =IF(OR(G$20>Hold,$D$12<>"IRR",Hurdle3_Rate=0,SUM(NPV(Hurdle3_Rate,$E$159:F$159),$D$159)>=0),0,MAX(0,MIN(G154,FV(Hurdle3_Rate,G$20,,SUM(NPV(Hurdle3_Rate,$E$159:F$159,G138),$D$159))))) -> 0 | H155: =IF(OR(H$20>Hold,$D$12<>"IRR",Hurdle3_Rate=0,SUM(NPV(Hurdle3_Rate,$E$159:G$159),$D$159)>=0),0,MAX(0,MIN(H154,FV(Hurdle3_Rate,H$20,,SUM(NPV(Hurdle3_Rate,$E$159:G$159,H138),$D$159))))) -> 0 | I155: =IF(OR(I$20>Hold,$D$12<>"IRR",Hurdle3_Rate=0,SUM(NPV(Hurdle3_Rate,$E$159:H$159),$D$159)>=0),0,MAX(0,MIN(I154,FV(Hurdle3_Rate,I$20,,SUM(NPV(Hurdle3_Rate,$E$159:H$159,I138),$D$159))))) -> 0 | J155: =IF(OR(J$20>Hold,$D$12<>"IRR",Hurdle3_Rate=0,SUM(NPV(Hurdle3_Rate,$E$159:I$159),$D$159)>=0),0,MAX(0,MIN(J154,FV(Hurdle3_Rate,J$20,,SUM(NPV(Hurdle3_Rate,$E$159:I$159,J138),$D$159))))) -> 0 | K155: =IF(OR(K$20>Hold,$D$12<>"IRR",Hurdle3_Rate=0,SUM(NPV(Hurdle3_Rate,$E$159:J$159),$D$159)>=0),0,MAX(0,MIN(K154,FV(Hurdle3_Rate,K$20,,SUM(NPV(Hurdle3_Rate,$E$159:J$159,K138),$D$159))))) -> 0 | L155: =IF(OR(L$20>Hold,$D$12<>"IRR",Hurdle3_Rate=0,SUM(NPV(Hurdle3_Rate,$E$159:K$159),$D$159)>=0),0,MAX(0,MIN(L154,FV(Hurdle3_Rate,L$20,,SUM(NPV(Hurdle3_Rate,$E$159:K$159,L138),$D$159))))) -> 0 | M155: =IF(OR(M$20>Hold,$D$12<>"IRR",Hurdle3_Rate=0,SUM(NPV(Hurdle3_Rate,$E$159:L$159),$D$159)>=0),0,MAX(0,MIN(M154,FV(Hurdle3_Rate,M$20,,SUM(NPV(Hurdle3_Rate,$E$159:L$159,M138),$D$159))))) -> 0 | N155: =IF(OR(N$20>Hold,$D$12<>"IRR",Hurdle3_Rate=0,SUM(NPV(Hurdle3_Rate,$E$159:M$159),$D$159)>=0),0,MAX(0,MIN(N154,FV(Hurdle3_Rate,N$20,,SUM(NPV(Hurdle3_Rate,$E$159:M$159,N138),$D$159))))) -> 0
B156: Amount Paid at Hurdle 3 (COC) | D156: 0 | E156: =IF(OR(E$70>Hold,Hurdle3_Rate=0,$D$12<>"Cash on Cash"),0,MIN(-$D$80*Hurdle3_Rate-E138,E154)) -> 0 | F156: 0 | G156: 0 | H156: 0 | I156: 0 | J156: 0 | K156: 0 | L156: 0 | M156: 0 | N156: 0
B157: CF Remaining for Next Hurdle | D157: =D154-D155 -> 0 | E157: =E154-E155 -> 0 | F157: 0 | G157: 0 | H157: 0 | I157: 44979.53508 | J157: 64539.85198 | K157: 77451.64895 | L157: 96217.28338 | M157: 115546.1414 | N157: 412435.8665
B159: ="Cash Flow Received by "&Name_Partner -> Cash Flow Received by Equity Investor | D159: =SUM(D138,D155:D156) -> -2801026.663 | E159: =SUM(E138,E155:E156) -> 0 | F159: 224082.133 | G159: 224082.133 | H159: 268663.6571 | I159: 336123.1995 | J159: 336123.1995 | K159: 336123.1995 | L159: 336123.1995 | M159: 336123.1995 | N159: 336123.1995
B160: =Name_Partner&" IRR at "&B152 -> Equity Investor IRR at Hurdle 3 | C160: =IFERROR(IRR(D159:N159),"-") -> -0.003832966029
B162: =Name_Developer -> Developer
B163: ="CF Allocation at "&ROUND(Hurdle3_Developer*100,1)&"%" -> CF Allocation at 50% | D163: =D150*Hurdle3_Developer -> 0 | E163: 0 | F163: 0 | G163: 0 | H163: 0 | I163: 44979.53508 | J163: 64539.85198 | K163: 77451.64895 | L163: 96217.28338 | M163: 115546.1414 | N163: 412435.8665
B164: Amount Paid at Hurdle 3 | D164: 0 | E164: =IF(OR(E$20>Hold,Hurdle3_Investor=0),0,(SUM(E155:E156)/Hurdle3_Investor)*Hurdle3_Developer) -> 0 | F164: 0 | G164: 0 | H164: 0 | I164: 0 | J164: 0 | K164: 0 | L164: 0 | M164: 0 | N164: 0
B165: CF Remaining for Next Hurdle | D165: =D163-D164 -> 0 | E165: =E163-E164 -> 0 | F165: 0 | G165: 0 | H165: 0 | I165: 44979.53508 | J165: 64539.85198 | K165: 77451.64895 | L165: 96217.28338 | M165: 115546.1414 | N165: 412435.8665
B167: ="Total CF Received by "&Name_Developer -> Total CF Received by Developer | D167: =SUM(D146,D164) -> -318009.0875 | E167: =SUM(E146,E164) -> 0 | F167: 25440.727 | G167: 25440.727 | H167: 44547.09445 | I167: 86796.54913 | J167: 86796.54913 | K167: 86796.54913 | L167: 86796.54913 | M167: 86796.54913 | N167: 86796.54913
B168: =Name_Developer&" IRR at "&B152 -> Developer IRR at Hurdle 3 | C168: =IFERROR(IRR(D167:N167),"-") -> 0.1057909129
B170: Total CF Paid at Hurdle 3 | D170: =SUM(D155:D156,D164) -> 0 | E170: =SUM(E155:E156,E164) -> 0 | F170: 0 | G170: 0 | H170: 0 | I170: 0 | J170: 0 | K170: 0 | L170: 0 | M170: 0 | N170: 0
B171: CF Remaining for Next Hurdle | D171: =D150-D170 -> 0 | E171: =E150-E170 -> 0 | F171: 0 | G171: 0 | H171: 0 | I171: 89959.07016 | J171: 129079.704 | K171: 154903.2979 | L171: 192434.5668 | M171: 231092.2828 | N171: 824871.7331
B173: Final Split
B174: =Name_Partner -> Equity Investor
B175: ="CF Paid at "&ROUND(Hurdle_Final_Investor*100,1)&"%" -> CF Paid at 50% | D175: =D171*Hurdle_Final_Investor -> 0 | E175: 0 | F175: 0 | G175: 0 | H175: 0 | I175: 44979.53508 | J175: 64539.85198 | K175: 77451.64895 | L175: 96217.28338 | M175: 115546.1414 | N175: 412435.8665
B176: ="Total CF Received by "&Name_Partner -> Total CF Received by Equity Investor | D176: =SUM(D159,D175) -> -2801026.663 | E176: =SUM(E159,E175) -> 0 | F176: 224082.133 | G176: 224082.133 | H176: 268663.6571 | I176: 381102.7346 | J176: 400663.0515 | K176: 413574.8485 | L176: 432340.4829 | M176: 451669.3409 | N176: 748559.066
B177: ="Final "&Name_Partner&" IRR" -> Final Equity Investor IRR | C177: =IFERROR(IRR(D176:N176),"-") -> 0.03536950465
B179: =Name_Developer -> Developer
B180: ="CF Paid at "&ROUND(Hurdle_Final_Developer*100,1)&"%" -> CF Paid at 50% | D180: =D171*Hurdle_Final_Developer -> 0 | E180: 0 | F180: 0 | G180: 0 | H180: 0 | I180: 44979.53508 | J180: 64539.85198 | K180: 77451.64895 | L180: 96217.28338 | M180: 115546.1414 | N180: 412435.8665
B181: ="Total CF Received by "&Name_Developer -> Total CF Received by Developer | D181: =SUM(D167,D180) -> -318009.0875 | E181: =SUM(E167,E180) -> 0 | F181: 25440.727 | G181: 25440.727 | H181: 44547.09445 | I181: 131776.0842 | J181: 151336.4011 | K181: 164248.1981 | L181: 183013.8325 | M181: 202342.6905 | N181: 499232.4157
B182: ="Final "&Name_Developer&" IRR" -> Final Developer IRR | C182: =IFERROR(IRR(D181:N181),"-") -> 0.2244768641
B185: www.realpropmetrics.com
B186: ="Version: "&Version -> Version: 9.42 H | © 2022
B187: =TODAY() -> 2022-02-23
B188: This pro forma does not constitute tax advice. Please consult a professional tax advisor.

Sheet Holding Period Sensitivity
B3: =Project_Name&" - Holding Period Sensitivity Analysis" -> New Hospitality Project - Holding Period Sensitivity Analysis
B4: These charts show the project's perfomanced based on Disposition year. They assume continued financing regardless of term.
B47: Project Level IRR Sensitivity
B49: Period | D49: 1 | E49: =D49+1 -> 2 | F49: =E49+1 -> 3 | G49: 4 | H49: 5 | I49: 6 | J49: 7 | K49: 8 | L49: 9 | M49: 10 | N49: 11
B52: NOI (exlcuding Reserves) | D52: ='Cash Flows'!F81 -> -133713.75 | E52: ='Cash Flows'!G81 -> 997229.8475 | F52: ='Cash Flows'!H81 -> 1104489.118 | G52: ='Cash Flows'!I81 -> 1147832.591 | H52: ='Cash Flows'!J81 -> 1245532.381 | I52: ='Cash Flows'!K81 -> 1286436.411 | J52: ='Cash Flows'!L81 -> 1314096.903 | K52: ='Cash Flows'!M81 -> 1353520.176 | L52: ='Cash Flows'!N81 -> 1394126.657 | M52: ='Cash Flows'!O81 -> 1435951.394 | N52: ='Cash Flows'!P81 -> 1479029.834
B53: Refinance Proceeds | D53: ='Cash Flows'!F121 -> 0 | E53: ='Cash Flows'!G121 -> 0 | F53: ='Cash Flows'!H121 -> 0 | G53: ='Cash Flows'!I121 -> 0 | H53: ='Cash Flows'!J121 -> 0 | I53: ='Cash Flows'!K121 -> 0 | J53: ='Cash Flows'!L121 -> 0 | K53: ='Cash Flows'!M121 -> 0 | L53: ='Cash Flows'!N121 -> 0 | M53: ='Cash Flows'!O121 -> 0 | N53: ='Cash Flows'!P121 -> 0
B54: Less: Reserves | D54: =-'Cash Flows'!F87 -> 0 | E54: =-'Cash Flows'!G87 -> -54402 | F54: =-'Cash Flows'!H87 -> -56034.06 | G54: =-'Cash Flows'!I87 -> -57715.0818 | H54: =-'Cash Flows'!J87 -> -59446.53425 | I54: =-'Cash Flows'!K87 -> -61229.93028 | J54: =-'Cash Flows'!L87 -> -63066.82819 | K54: =-'Cash Flows'!M87 -> -64958.83304 | L54: =-'Cash Flows'!N87 -> -66907.59803 | M54: =-'Cash Flows'!O87 -> -68914.82597 | N54: =-'Cash Flows'!P87 -> -70982.27075
B55: Less: Debt Service | D55: =-'Cash Flows'!F113 -> 0 | E55: =-'Cash Flows'!G113 -> -673207.0279 | F55: =-'Cash Flows'!H113 -> -673207.0279 | G55: =-'Cash Flows'!I113 -> -673207.0279 | H55: =-'Cash Flows'!J113 -> -673207.0279 | I55: =-'Cash Flows'!K113 -> -673207.0279 | J55: =-'Cash Flows'!L113 -> -673207.0279 | K55: =-'Cash Flows'!M113 -> -673207.0279 | L55: =-'Cash Flows'!N113 -> -673207.0279 | M55: =-'Cash Flows'!O113 -> -673207.0279 | N55: 0
B56: Cash Flow After Debt Service | D56: =SUM(D52:D55) -> -133713.75 | E56: 269620.8196 | F56: 375248.0304 | G56: 416910.4815 | H56: 512878.8188 | I56: 551999.4526 | J56: 577823.0465 | K56: 615354.3154 | L56: 654012.0315 | M56: 693829.5401 | N56: 1408047.563
B57: Less: Mortgage Origination Fee | D57: ='Cash Flows'!F122 -> 0 | E57: ='Cash Flows'!G122 -> 0 | F57: ='Cash Flows'!H122 -> 0 | G57: ='Cash Flows'!I122 -> 0 | H57: ='Cash Flows'!J122 -> 0 | I57: ='Cash Flows'!K122 -> 0 | J57: ='Cash Flows'!L122 -> 0 | K57: ='Cash Flows'!M122 -> 0 | L57: ='Cash Flows'!N122 -> 0 | M57: ='Cash Flows'!O122 -> 0 | N57: 0
B58: Less: Capital Expenses | D58: =-'Cash Flows'!F135 -> 0 | E58: =-'Cash Flows'!G135 -> 0 | F58: =-'Cash Flows'!H135 -> 0 | G58: =-'Cash Flows'!I135 -> 0 | H58: =-'Cash Flows'!J135 -> 0 | I58: =-'Cash Flows'!K135 -> 0 | J58: =-'Cash Flows'!L135 -> 0 | K58: =-'Cash Flows'!M135 -> 0 | L58: =-'Cash Flows'!N135 -> 0 | M58: =-'Cash Flows'!O135 -> 0 | N58: 0
B59: Other Non-Regular Income | D59: =SUM('Cash Flows'!F138:F141) -> 133713.75 | E59: =SUM('Cash Flows'!G138:G141) -> 0 | F59: =SUM('Cash Flows'!H138:H141) -> 0 | G59: =SUM('Cash Flows'!I138:I141) -> 0 | H59: =SUM('Cash Flows'!J138:J141) -> 0 | I59: =SUM('Cash Flows'!K138:K141) -> 0 | J59: =SUM('Cash Flows'!L138:L141) -> 0 | K59: =SUM('Cash Flows'!M138:M141) -> 0 | L59: =SUM('Cash Flows'!N138:N141) -> 0 | M59: =SUM('Cash Flows'!O138:O141) -> 553961.9416 | N59: 0
B60: Distributable Cash Flow | D60: =SUM(D56:D59) -> 0 | E60: =SUM(E56:E59) -> 269620.8196 | F60: 375248.0304 | G60: 416910.4815 | H60: 512878.8188 | I60: 551999.4526 | J60: 577823.0465 | K60: 615354.3154 | L60: 654012.0315 | M60: 1247791.482 | N60: 1408047.563
B62: Reversion Analysis (if sold in this year)
B63: Reversion Cash Flow | D63: =IF(Disposition="Cap Rate",E52/Exit_Rate,FV(Exit_Rate,D49,0,-Acquisition_Gross)) -> 14246140.68 | E63: =IF(Disposition="Cap Rate",F52/Exit_Rate,FV(Exit_Rate,E49,0,-Acquisition_Gross)) -> 15778415.98 | F63: 16397608.45 | G63: 17793319.73 | H63: 18377663.01 | I63: 18772812.89 | J63: 19336002.52 | K63: 19916095.11 | L63: 20513591.34 | M63: 21128997.63
B64: Less: Cost of Sale | D64: =-D63*Sale_Cost -> -569845.6271 | E64: -631136.639 | F64: -655904.3378 | G64: -711732.7891 | H64: -735106.5204 | I64: -750912.5158 | J64: -773440.1007 | K64: -796643.8042 | L64: -820543.6537 | M64: -845159.9051
B65: Less: Mortgage Exit Fee | D65: =D66*Loan_Exit_Fee -> 0 | E65: 0 | F65: 0 | G65: 0 | H65: 0 | I65: 0 | J65: 0 | K65: 0 | L65: 0 | M65: 0
B66: Less: Mortgage Balance | D66: =-VLOOKUP(D$49*12,Amortization_Schedule_Monthly,9,FALSE) -> -9357107.25 | E66: -9242200.877 | F66: -9120207.33 | G66: -8990689.489 | H66: -8853183.27 | I66: -8707195.969 | J66: -8552204.49 | K66: -8387653.476 | L66: -8212953.316 | M66: -8027478.032
B67: Return of Reserve Funds | D67: ='Cash Flows'!F186 -> 1286.25 | E67: ='Cash Flows'!G186 -> 55688.25 | F67: ='Cash Flows'!H186 -> 111722.31 | G67: ='Cash Flows'!I186 -> 169437.3918 | H67: ='Cash Flows'!J186 -> 228883.9261 | I67: ='Cash Flows'!K186 -> 290113.8563 | J67: ='Cash Flows'!L186 -> 353180.6845 | K67: ='Cash Flows'!M186 -> 418139.5176 | L67: ='Cash Flows'!N186 -> 485047.1156 | M67: ='Cash Flows'!O186 -> 553961.9416
B68: Reversion Balance | D68: =SUM(D63:D67) -> 4320474.051 | E68: =SUM(E63:E67) -> 5960766.709 | F68: 6733219.088 | G68: 8260334.841 | H68: 9018257.146 | I68: 9604818.266 | J68: 10363538.61 | K68: 11149937.34 | L68: 11965141.49 | M68: 12810321.63
B71: Periods | C71: 0 | D71: =C71+1 -> 1 | E71: =D71+1 -> 2 | F71: 3 | G71: 4 | H71: 5 | I71: 6 | J71: 7 | K71: =J71+1 -> 8 | L71: 9 | M71: 10 | N71: IRR | O71: NPV
B72: 1 | C72: =-Equity_Amount -> -3119035.75 | D72: =IF($B72<D$49,0,IF($B72=D$49,SUM($D$60,D$68),D$60)) -> 4320474.051 | E72: 0 | F72: 0 | G72: 0 | H72: 0 | I72: 0 | J72: 0 | K72: 0 | L72: 0 | M72: 0 | N72: =IFERROR(IRR(C72:M72),"-") -> 0.3851954249 | O72: =SUM(C72,NPV(Equity_Rate,D72:M72)) -> 881403.186
B73: 2 | C73: -3119035.75 | D73: =IF($B73<D$49,0,IF($B73=D$49,SUM(D$60,D$68),D$60)) -> 0 | E73: =IF($B73<E$49,0,IF($B73=E$49,SUM(E$60,E$68),E$60)) -> 6230387.529 | F73: 0 | G73: 0 | H73: 0 | I73: 0 | J73: 0 | K73: 0 | L73: 0 | M73: 0 | N73: =IFERROR(IRR(C73:M73),"-") -> 0.4133422895 | O73: 2222517.344
B74: 3 | C74: -3119035.75 | D74: =IF($B74<D$49,0,IF($B74=D$49,SUM(D$60,D$68),D$60)) -> 0 | E74: 269620.8196 | F74: 7108467.118 | G74: 0 | H74: 0 | I74: 0 | J74: 0 | K74: 0 | L74: 0 | M74: 0 | N74: 0.3378815863 | O74: 2755051.028
B75: 4 | C75: -3119035.75 | D75: 0 | E75: 269620.8196 | F75: 375248.0304 | G75: 8677245.323 | H75: 0 | I75: 0 | J75: 0 | K75: 0 | L75: 0 | M75: 0 | N75: 0.3262244406 | O75: 3788038.983
B76: 5 | C76: -3119035.75 | D76: 0 | E76: 269620.8196 | F76: 375248.0304 | G76: 416910.4815 | H76: 9531135.965 | I76: 0 | J76: 0 | K76: 0 | L76: 0 | M76: 0 | N76: 0.2931979142 | O76: 4203177.267
B77: 6 | C77: -3119035.75 | D77: 0 | E77: 269620.8196 | F77: 375248.0304 | G77: 416910.4815 | H77: 512878.8188 | I77: 10156817.72 | J77: 0 | K77: 0 | L77: 0 | M77: 0 | N77: 0.2675617388 | O77: 4466021.019
B78: 7 | C78: -3119035.75 | D78: 0 | E78: 269620.8196 | F78: 375248.0304 | G78: 416910.4815 | H78: 512878.8188 | I78: 551999.4526 | J78: 10941361.66 | K78: 0 | L78: 0 | M78: 0 | N78: 0.2515392851 | O78: 4797535.714
B79: 8 | C79: -3119035.75 | D79: 0 | E79: 269620.8196 | F79: 375248.0304 | G79: 416910.4815 | H79: 512878.8188 | I79: 551999.4526 | J79: 577823.0465 | K79: 11765291.66 | L79: 0 | M79: 0 | N79: 0.2393769698 | O79: 5106931.473
B80: 9 | C80: -3119035.75 | D80: 0 | E80: 269620.8196 | F80: 375248.0304 | G80: 416910.4815 | H80: 512878.8188 | I80: 551999.4526 | J80: 577823.0465 | K80: 615354.3154 | L80: 12619153.52 | M80: 0 | N80: 0.2297871265 | O80: 5395685.777
B81: 10 | C81: -3119035.75 | D81: 0 | E81: 269620.8196 | F81: 375248.0304 | G81: 416910.4815 | H81: 512878.8188 | I81: 551999.4526 | J81: 577823.0465 | K81: 615354.3154 | L81: 654012.0315 | M81: 14058113.11 | N81: 0.2256301492 | O81: 5921762.556
B87: www.realpropmetrics.com/
B88: ="Version: "&Version -> Version: 9.42 H | © 2022
B89: =TODAY() -> 2022-02-23
